Workbook

Sheet Sheet1
B2: Bruger: | C2: =Makro!D20 -> 0 | K2: Letbetonvæg | O2: Betonelement-Foreningen Feb 2019
B3: Sagsnavn: | C3: Letbetonhuset | H3: Sag nr.: | I3: 23 - 4545
B4: Bygningsdel: | C4: Væg i modul B-C/3 | H4: Dato: | I4: 2019-01-01 | K4: =IF(AM113," ","NB : ")&AL114&AL115&AL116&AL117&AL118&AL119&AL120&AL121&AL122&AL123&AL124&AL125&AL126&AL127&AL128&AL129&AL130&AL131&AL132&AL133&AL134&AL135&AL136&AL137&AL138&AL139&AL140&AL141&AL142 -> NB : For ny bruger: Klik på knappen 'angiv nyt brugernavn' for ibrugtagning.
B5: Emne: | C5: Normale lastkombinationer | H5: Init: | I5: JFJ
C7: Mindste betonspændinger | G7: Største betonspændinger | K7: Materialeparametre | O7: Afledte parametre | AK7: HOVEDGEOMETRI | AQ7: ELEMENTGRAFIK | AY7: VÆGFELTER | CL7: Venstre | CP7: Midt | CT7: Højre | CX7: Resultat - pr felt | DF7: TOTAL | DP7: GRAF | DR7: =COLUMN() -> 122 | EA7: =COLUMN() -> 131
C8: Felt | D8: nEd | E8: mEd | F8: sMIN | G8: Felt | H8: nEd | I8: mEd | J8: sMAX | L8: d | M8: 1800 | N8: kg/m3 | Q8: fcd | R8: =M9/M12 -> 6.451612903 | S8: MPa | AR8: Elementrand | AT8: Vindue 2 | AV8: Vindue 1 | AZ8: Felt 1 | BB8: Felt 2 | BD8: Felt 3 | BF8: Felt 4 | BK8: NcR | BL8: t | BM8: Ls | BN8: B | BO8: b1 | BP8: b2 | BQ8: h1 | BR8: h2 | BS8: Nabo | BT8: L1 | BU8: L2 | BV8: Tilf | BW8: b_v/H | BX8: b_h/H | BY8: s1' | BZ8: s2' | CA8: n | CB8: en | CC8: N1 | CD8: eN1 | CE8: N2 | CF8: eN2 | CG8: w | CH8: mw | CI8: s1 | CJ8: s0 | CK8: s2 | CL8: n-s1 | CM8: m-s1 | CN8: sMIN | CO8: sMAX | CP8: n-s0 | CQ8: m-s0 | CR8: sMIN | CS8: sMAX | CT8: n-s2 | CU8: m-s2 | CV8: sMIN | CW8: sMAX | CX8: ID | CY8: n | CZ8: m | DA8: sMIN | DB8: ID | DC8: n | DD8: m | DE8: sMAX | DF8: ID | DG8: n | DH8: m | DI8: sMIN | DJ8: ID | DK8: n | DL8: m | DM8: sMAX | DP8: n | DQ8: md | DR8: =OFFSET($DF$10,COLUMN()-119,0) -> 0 | DS8: =OFFSET($DF$10,COLUMN()-119,0) -> 0 | DT8: 0 | DU8: 0 | DV8: 0 | DW8: 0 | DX8: 0 | DY8: 0 | DZ8: 0 | EA8: =OFFSET($DJ$10,COLUMN()-128,0) -> 0 | EB8: =OFFSET($DJ$10,COLUMN()-128,0) -> 0 | EC8: 0 | ED8: 0 | EE8: 0 | EF8: 0 | EG8: 0 | EH8: 0 | EI8: 0
B9: Lasttilfælde | D9: (KN/m) | E9: (kNm/m) | F9: (MPa) | H9: (KN/m) | I9: (kNm/m) | J9: (MPa) | L9: fck | M9: 10 | N9: MPa | Q9: fctd | R9: =AS98/M13 -> 1.085498843 | S9: MPa | AL9: H | AM9: B | AR9: x | AS9: y | AT9: x | AU9: y | AV9: x | AW9: y | AZ9: x | BA9: y | BB9: x | BC9: y | BD9: x | BE9: y | BF9: x | BG9: y | BI9: Felt 1 | BK9: =$R$13/1000 -> 0.651156345 | BL9: =$M$19/1000 -> 0.15 | BM9: =$AZ$107/1000 -> 3 | BN9: =($AZ$11-$AZ$10)/1000 -> 1.25 | BO9: =($AZ$16-$AZ$17)/1000 -> 0.15 | BP9: =($AZ$12-$AZ$13)/1000 -> 0.135 | BQ9: =$BA$16/1000 -> 2.5 | BR9: =$BA$13/1000 -> 2.5 | BS9: =IF($BB$10=1000000,FALSE,TRUE) -> TRUE | BT9: =IF(AND($AP$13,$AS$76=1),$AT$80,0) -> 0.8 | BU9: =IF(BS9,0.5*$BA$21/1000,IF(AND($AP$17,$AS$77=1),$BB$80,0)) -> 0.75 | BV9: =AZ105 -> 0 | BW9: =AZ109/M17 -> 0.4166666667 | BX9: =AZ111/M17 -> 0.4166666667 | BY9: =BO9+BQ9/6 -> 0.5666666667 | BZ9: =BP9+BR9/6 -> 0.5516666667 | DP9: 0 | DQ9: =IF($AM$113,MIN((($M$19/1000)^2*1000*$R$9/6+($M$19/6000)*DP9)*($DP$29-DP9)/$DP$29,(($M$19/1000)^2*1000*$R$8/6-($M$19/6000)*DP9)*($DP$29-DP9)/$DP$29),0) -> 0
B10: =K31 -> A | C10: =DF10 -> 0 | D10: =DG10 -> 0 | E10: =DH10 -> 0 | F10: =DI10 -> 0 | G10: =DJ10 -> 0 | H10: =DK10 -> 0 | I10: =DL10 -> 0 | J10: =DM10 -> 0 | K10: =IF(AQ98=1," Beregnet"," Defineret") -> Beregnet | L10: ftk | M10: =0.42*$M$9^(2/3)*IF($M$8>1400,(0.4+0.6*$M$8/2200),0.78) -> 1.736798149 | N10: MPa | O10: Søjlebæreevne | Q10: Ls | R10: =M17 -> 3000 | S10: mm | AL10: =M17 -> 3000 | AM10: =M18 -> 7000 | AR10: 0 | AS10: 0 | AT10: =AN16 -> 5500 | AU10: =AO16 -> 1000 | AV10: =AN14 -> 1250 | AW10: =AO14 -> 1000 | AY10: 1 | AZ10: =INDEX(Felt1,AY10,1+($AU$26-1)*2) -> 0 | BA10: =INDEX(Felt1,AY10,2+($AU$26-1)*2) -> 0 | BB10: =INDEX(Felt2,AY10,1+($AU$26-1)*2) -> 2750 | BC10: =INDEX(Felt2,AY10,2+($AU$26-1)*2) -> 0 | BD10: =INDEX(Felt3,AY10,1+($AU$26-1)*2) -> 6500 | BE10: =INDEX(Felt3,AY10,2+($AU$26-1)*2) -> 0 | BF10: =INDEX(Felt4,AY10,1+($AU$26-1)*2) -> 1000000 | BG10: =INDEX(Felt4,AY10,2+($AU$26-1)*2) -> 1000000 | BI10: Lasttilfælde | BJ10: =K31 -> A | BK10: =BK9 -> 0.651156345 | BL10: =BL9 -> 0.15 | BM10: =BM9 -> 3 | BN10: =BN9 -> 1.25 | BO10: =BO9 -> 0.15 | BP10: =BP9 -> 0.135 | BQ10: =BQ9 -> 2.5 | BR10: =BR9 -> 2.5 | BS10: =BS9 -> TRUE | BT10: =BT9 -> 0.8 | BU10: 0.75 | BV10: =BV9 -> 0 | BW10: =BW9 -> 0.4166666667 | BX10: =BX9 -> 0.4166666667 | BY10: =BY9 -> 0.5666666667 | BZ10: =BZ9 -> 0.5516666667 | CA10: =SUM(N31:P31)/1000 -> 0.003 | CB10: =IF(CA10=0,0,(N31*$N$41+O31*$O$41-P31*$P$41)/(1000000*CA10)) -> 0.045 | CC10: =AT84/1000 -> 0.0024 | CD10: =AU84/1000 -> 0.045 | CE10: =IF(BS10,BU10*CA10,$BB$84/1000) -> 0.00225 | CF10: =IF(BS10,CB10,$BC$84/1000) -> 0.045 | CG10: =S31/1000 -> 0.00094 | CH10: =0.125*CG10*BM10^2 -> 0.0010575 | CI10: =IF(BY10+BZ10<=BN10,BY10,MIN(IF(CC10=0,0,BN10*CC10/(CC10+CE10)),BY10)) -> 0.5666666667 | CJ10: =BN10-CI10-CK10 -> 0.1316666667 | CK10: =IF(BY10+BZ10<=BN10,BZ10,MIN(IF(CE10=0,0,BN10*CE10/(CC10+CE10)),BZ10)) -> 0.5516666667 | CL10: =IF(CI10=0,0,CA10+CC10/CI10) -> 0.007235294118 | CM10: =IF(CI10=0,CB10*CA10,CB10*CA10+CD10*CC10/CI10)+CH10+IF(BV10=0,CG10*BT10*BM10*IF(BW10>1,0.27,BW10^-1/8-29*BW10^2/800+141*BW10/800)+CG10*BU10*BM10*IF(BX10>1.5,0,BX10^-1/8+2*BX10^2/27-BX10/6),IF(BW10<0.2,CG10*BT10*BM10*0.6*BW10,CG10*BT10*BM10*IF(BW10<1,(1125*BW10^3-3225*BW10^2+3075*BW10-111)/3200,0.27))) -> 0.002726189393 | CN10: =CL10/($BL10)-6*($BK10/($BK10-CL10))*(CM10/$BL10^2) -> -0.686917157 | CO10: =CL10/($BL10)+6*($BK10/($BK10-CL10))*(CM10/$BL10^2) -> 0.7833877452 | CP10: =IF(CJ10=0,CL10,CA10) -> 0.003 | CQ10: =IF(CJ10=0,CM10,CB10*CA10+CH10+IF(BV10=0,CG10*(BT10+BU10)/BN10,0)) -> 0.0023581 | CR10: =CP10/($BL10)-6*($BK10/($BK10-CP10))*(CQ10/$BL10^2) -> -0.611737199 | CS10: =CP10/($BL10)+6*($BK10/($BK10-CP10))*(CQ10/$BL10^2) -> 0.651737199 | CT10: =IF(CK10=0,0,CA10+CE10/CK10) -> 0.007078549849 | CU10: =IF(CK10=0,CB10*CA10,CB10*CA10+CE10*CF10/CK10)+CH10+IF(BV10=0,CG10*BU10*BM10*IF(BX10>1,0.27,BX10^-1/8-29*BX10^2/800+141*BX10/800)+CG10*BT10*BM10*IF(BW10>1.5,0,BW10^-1/8+2*BW10^2/27-BW10/6),IF(BX10<0.2,CG10*BU10*BM10*0.6*BX10,CG10*BU10*BM10*IF(BX10<1,(1125*BX10^3-3225*BX10^2+3075*BX10-111)/3200,0.27))) -> 0.002701690188 | CV10: =CT10/($BL10)-6*($BK10/($BK10-CT10))*(CU10/$BL10^2) -> -0.6811782887 | CW10: =CT10/($BL10)+6*($BK10/($BK10-CT10))*(CU10/$BL10^2) -> 0.7755589533 | CX10: =IF($AM$113,IF(DA10=CN10,"#1-venstre",IF(DA10=CR10,"#1-midt","#1-højre")),0) -> 0 | CY10: =IF($AM$113,IF(DA10=CN10,CL10,IF(DA10=CR10,CP10,CT10))*1000,0) -> 0 | CZ10: =IF($AM$113,IF(DA10=CN10,CM10,IF(DA10=CR10,CQ10,CU10))*1000,0) -> 0 | DA10: =IF($AM$113,MIN(CN10,CR10,CV10),0) -> 0 | DB10: =IF($AM$113,IF(CX10=CO10,"#1-venstre",IF(CX10=CS10,"#1-midt","#1-højre")),0) -> 0 | DC10: =IF($AM$113,IF(CX10=CO10,CL10,IF(CX10=CS10,CP10,CT10))*1000,0) -> 0 | DD10: =IF($AM$113,IF(CX10=CO10,CM10,IF(CX10=CS10,CQ10,CU10))*1000,0) -> 0 | DE10: =IF($AM$113,MAX(CO10,CS10,CW10),0) -> 0 | DF10: =IF($DA10=$DI10,CX10,IF($DA20=$DI10,CX20,IF($DA30=$DI10,CX30,CX40))) -> 0 | DG10: =IF($DA10=$DI10,CY10,IF($DA20=$DI10,CY20,IF($DA30=$DI10,CY30,CY40))) -> 0 | DH10: =IF($DA10=$DI10,CZ10,IF($DA20=$DI10,CZ20,IF($DA30=$DI10,CZ30,CZ40))) -> 0 | DI10: =MIN(DA10,DA20,DA30,DA40) -> 0 | DJ10: =IF($DE10=$DM10,DB10,IF($DE20=$DM10,DB20,IF($DE30=$DM10,DB30,DB40))) -> 0 | DK10: =IF($DE10=$DM10,DC10,IF($DE20=$DM10,DC20,IF($DE30=$DM10,DC30,DC40))) -> 0 | DL10: =IF($DE10=$DM10,DD10,IF($DE20=$DM10,DD20,IF($DE30=$DM10,DD30,DD40))) -> 0 | DM10: =MAX(DE10,DE20,DE30,DE40) -> 0 | DP10: =IF($AM$113,DP9+$DP$29/20,0) -> 0 | DQ10: 0
B11: B | C11: =DF11 -> 0 | D11: 0 | E11: 0 | F11: 0 | G11: 0 | H11: 0 | I11: 0 | J11: 0 | L11: Ecm | M11: =10000*M9^(1/3)*(M8/2200)^2 -> 14422.24875 | N11: MPa | O11: (uden tværvægge) | Q11: e5 | R11: 5 | S11: mm | AR11: =AN15 -> 0 | AS11: 0 | AT11: =AT10+AM16 -> 6500 | AU11: =AU10 -> 1000 | AV11: =AV10+AM14 -> 2750 | AW11: =AW10 -> 1000 | AY11: 2 | AZ11: 1250 | BA11: 0 | BB11: 5500 | BC11: 0 | BD11: 7000 | BE11: 0 | BF11: 1000000 | BG11: 1000000 | BJ11: =K32 -> B | BK11: =BK10 -> 0.651156345 | BL11: 0.15 | BM11: =BM10 -> 3 | BN11: =BN10 -> 1.25 | BO11: 0.15 | BP11: 0.135 | BQ11: 2.5 | BR11: 2.5 | BS11: TRUE | BT11: 0.8 | BU11: 0.75 | BV11: =BV10 -> 0 | BW11: 0.4166666667 | BX11: 0.4166666667 | BY11: 0.5666666667 | BZ11: 0.5516666667 | CA11: =SUM(N32:P32)/1000 -> 0.004 | CB11: =IF(CA11=0,0,(N32*$N$41+O32*$O$41-P32*$P$41)/(1000000*CA11)) -> 0.045 | CC11: =AT85/1000 -> 0.0032 | CD11: =AU85/1000 -> 0.045 | CE11: 0.003 | CF11: =IF(BS11,CB11,BC85/1000) -> 0.045 | CG11: =S32/1000 -> 0.00094 | CH11: 0.0010575 | CI11: =IF(BY11+BZ11<=BN11,BY11,MIN(IF(CC11=0,0,BN11*CC11/(CC11+CE11)),BY11)) -> 0.5666666667 | CJ11: =BN11-CI11-CK11 -> 0.1316666667 | CK11: =IF(BY11+BZ11<=BN11,BZ11,MIN(IF(CE11=0,0,BN11*CE11/(CC11+CE11)),BZ11)) -> 0.5516666667 | CL11: =IF(CI11=0,0,CA11+CC11/CI11) -> 0.009647058824 | CM11: =IF(CI11=0,CB11*CA11,CB11*CA11+CD11*CC11/CI11)+CH11+IF(BV11=0,CG11*BT11*BM11*IF(BW11>1,0.27,BW11^-1/8-29*BW11^2/800+141*BW11/800)+CG11*BU11*BM11*IF(BX11>1.5,0,BX11^-1/8+2*BX11^2/27-BX11/6),IF(BW11<0.2,CG11*BT11*BM11*0.6*BW11,CG11*BT11*BM11*IF(BW11<1,(1125*BW11^3-3225*BW11^2+3075*BW11-111)/3200,0.27))) -> 0.002834718804 | CN11: =CL11/($BL11)-6*($BK11/($BK11-CL11))*(CM11/$BL11^2) -> -0.7029789391 | CO11: =CL11/($BL11)+6*($BK11/($BK11-CL11))*(CM11/$BL11^2) -> 0.8316063901 | CP11: =IF(CJ11=0,CL11,CA11) -> 0.004 | CQ11: =IF(CJ11=0,CM11,CB11*CA11+CH11+IF(BV11=0,CG11*(BT11+BU11)/BN11,0)) -> 0.0024031 | CR11: =CP11/($BL11)-6*($BK11/($BK11-CP11))*(CQ11/$BL11^2) -> -0.618120877 | CS11: =CP11/($BL11)+6*($BK11/($BK11-CP11))*(CQ11/$BL11^2) -> 0.6714542103 | CT11: =IF(CK11=0,0,CA11+CE11/CK11) -> 0.009438066465 | CU11: =IF(CK11=0,CB11*CA11,CB11*CA11+CE11*CF11/CK11)+CH11+IF(BV11=0,CG11*BU11*BM11*IF(BX11>1,0.27,BX11^-1/8-29*BX11^2/800+141*BX11/800)+CG11*BT11*BM11*IF(BW11>1.5,0,BW11^-1/8+2*BW11^2/27-BW11/6),IF(BX11<0.2,CG11*BU11*BM11*0.6*BX11,CG11*BU11*BM11*IF(BX11<1,(1125*BX11^3-3225*BX11^2+3075*BX11-111)/3200,0.27))) -> 0.002807868436 | CV11: =CT11/($BL11)-6*($BK11/($BK11-CT11))*(CU11/$BL11^2) -> -0.6968569271 | CW11: =CT11/($BL11)+6*($BK11/($BK11-CT11))*(CU11/$BL11^2) -> 0.8226978133 | CX11: =IF($AM$113,IF(DA11=CN11,"#1-venstre",IF(DA11=CR11,"#1-midt","#1-højre")),0) -> 0 | CY11: =IF($AM$113,IF(DA11=CN11,CL11,IF(DA11=CR11,CP11,CT11))*1000,0) -> 0 | CZ11: =IF($AM$113,IF(DA11=CN11,CM11,IF(DA11=CR11,CQ11,CU11))*1000,0) -> 0 | DA11: =IF($AM$113,MIN(CN11,CR11,CV11),0) -> 0 | DB11: =IF($AM$113,IF(CX11=CO11,"#1-venstre",IF(CX11=CS11,"#1-midt","#1-højre")),0) -> 0 | DC11: =IF($AM$113,IF(CX11=CO11,CL11,IF(CX11=CS11,CP11,CT11))*1000,0) -> 0 | DD11: =IF($AM$113,IF(CX11=CO11,CM11,IF(CX11=CS11,CQ11,CU11))*1000,0) -> 0 | DE11: =IF($AM$113,MAX(CO11,CS11,CW11),0) -> 0 | DF11: =IF($DA11=$DI11,CX11,IF($DA21=$DI11,CX21,IF($DA31=$DI11,CX31,CX41))) -> 0 | DG11: =IF($DA11=$DI11,CY11,IF($DA21=$DI11,CY21,IF($DA31=$DI11,CY31,CY41))) -> 0 | DH11: =IF($DA11=$DI11,CZ11,IF($DA21=$DI11,CZ21,IF($DA31=$DI11,CZ31,CZ41))) -> 0 | DI11: =MIN(DA11,DA21,DA31,DA41) -> 0 | DJ11: =IF($DE11=$DM11,DB11,IF($DE21=$DM11,DB21,IF($DE31=$DM11,DB31,DB41))) -> 0 | DK11: =IF($DE11=$DM11,DC11,IF($DE21=$DM11,DC21,IF($DE31=$DM11,DC31,DC41))) -> 0 | DL11: 0 | DM11: =MAX(DE11,DE21,DE31,DE41) -> 0 | DP11: 0 | DQ11: 0
B12: C | C12: 0 | D12: 0 | E12: 0 | F12: 0 | G12: 0 | H12: 0 | I12: 0 | J12: 0 | L12: gcm | M12: 1.55 | Q12: ks | R12: =1/(1+12*($M$9/($M$11*PI()^2))*(R10/($M$19-2*$R$11))^2) -> 0.7209230962 | AL12: h | AM12: b | AN12: x | AO12: y | AR12: =AR11 -> 0 | AS12: =AL15 -> 0 | AT12: =AT11 -> 6500 | AU12: =AU11+AL16 -> 2500 | AV12: =AV11 -> 2750 | AW12: =AW11+AL14 -> 2500 | AY12: 3 | AZ12: 1250 | BA12: 2500 | BB12: 5500 | BC12: 2500 | BD12: 7000 | BE12: 2500 | BF12: 1000000 | BG12: 1000000 | BJ12: C | BK12: 0.651156345 | BL12: 0.15 | BM12: 3 | BN12: 1.25 | BO12: 0.15 | BP12: 0.135 | BQ12: 2.5 | BR12: 2.5 | BS12: TRUE | BT12: 0.8 | BU12: 0.75 | BV12: 0 | BW12: 0.4166666667 | BX12: 0.4166666667 | BY12: 0.5666666667 | BZ12: 0.5516666667 | CA12: 0.016 | CB12: 0.0225 | CC12: 0.0128 | CD12: 0.0225 | CE12: 0.012 | CF12: 0.0225 | CG12: 0.00094 | CH12: 0.0010575 | CI12: 0.5666666667 | CJ12: 0.1316666667 | CK12: 0.5516666667 | CL12: 0.03858823529 | CM12: 0.003268836452 | CN12: -0.6693462112 | CO12: 1.183856015 | CP12: 0.016 | CQ12: 0.0025831 | CR12: -0.5995119902 | CS12: 0.8128453235 | CT12: 0.03775226586 | CU12: 0.003232581427 | CV12: -0.6633935059 | CW12: 1.166757051 | CX12: 0 | CY12: 0 | CZ12: 0 | DA12: 0 | DB12: 0 | DC12: 0 | DD12: 0 | DE12: 0 | DF12: 0 | DG12: 0 | DH12: 0 | DI12: 0 | DJ12: 0 | DK12: 0 | DL12: =IF($DE12=$DM12,DD12,IF($DE22=$DM12,DD22,IF($DE32=$DM12,DD32,DD42))) -> 0 | DM12: 0 | DP12: 0 | DQ12: 0
B13: D | C13: 0 | D13: 0 | E13: 0 | F13: 0 | G13: 0 | H13: 0 | I13: 0 | J13: 0 | L13: gtm | M13: 1.6 | Q13: Ncr | R13: =R12*$R$8*($M$19-2*$R$11) -> 651.156345 | S13: kN/m | AL13: =P15 -> 500 | AM13: 150 | AP13: =Makro!A1 -> TRUE | AR13: =AR12+AM15 -> 0 | AS13: =AS12 -> 0 | AT13: =AT10 -> 5500 | AU13: =AU12 -> 2500 | AV13: =AV10 -> 1250 | AW13: =AW12 -> 2500 | AY13: 4 | AZ13: 1115 | BA13: 2500 | BB13: 5365 | BC13: 2500 | BD13: 6850 | BE13: 2500 | BF13: 1000000 | BG13: 1000000 | BJ13: D | BK13: 0.651156345 | BL13: 0.15 | BM13: 3 | BN13: 1.25 | BO13: 0.15 | BP13: 0.135 | BQ13: 2.5 | BR13: 2.5 | BS13: TRUE | BT13: 0.8 | BU13: 0.75 | BV13: 0 | BW13: 0.4166666667 | BX13: 0.4166666667 | BY13: 0.5666666667 | BZ13: 0.5516666667 | CA13: 0.016 | CB13: 0.0225 | CC13: 0.0128 | CD13: 0.0225 | CE13: 0.012 | CF13: 0.0225 | CG13: 0.00094 | CH13: 0.0010575 | CI13: 0.5666666667 | CJ13: 0.1316666667 | CK13: 0.5516666667 | CL13: 0.03858823529 | CM13: 0.003268836452 | CN13: -0.6693462112 | CO13: 1.183856015 | CP13: 0.016 | CQ13: 0.0025831 | CR13: -0.5995119902 | CS13: 0.8128453235 | CT13: 0.03775226586 | CU13: 0.003232581427 | CV13: -0.6633935059 | CW13: 1.166757051 | CX13: 0 | CY13: 0 | CZ13: 0 | DA13: 0 | DB13: 0 | DC13: 0 | DD13: 0 | DE13: 0 | DF13: 0 | DG13: 0 | DH13: 0 | DI13: 0 | DJ13: 0 | DK13: 0 | DL13: 0 | DM13: 0 | DP13: 0 | DQ13: 0
B14: E | C14: 0 | D14: 0 | E14: 0 | F14: 0 | G14: 0 | H14: 0 | I14: 0 | J14: 0 | K14: Geometri - alle mål i mm | N14: Udsparinger | P14: h | Q14: b | R14: x | S14: y | AL14: 1500 | AM14: 1500 | AN14: =R16 -> 1250 | AO14: =S16 -> 1000 | AP14: =Makro!A2 -> TRUE | AR14: =AR13 -> 0 | AS14: =0 -> 0 | AT14: =AT10 -> 5500 | AU14: =AU10 -> 1000 | AV14: =AV10 -> 1250 | AW14: =AW10 -> 1000 | AY14: 5 | AZ14: 1115 | BA14: 3000 | BB14: 5365 | BC14: 3000 | BD14: 6850 | BE14: 3000 | BF14: 1000000 | BG14: 1000000 | BJ14: E | BK14: 0.651156345 | BL14: 0.15 | BM14: 3 | BN14: 1.25 | BO14: 0.15 | BP14: 0.135 | BQ14: 2.5 | BR14: 2.5 | BS14: TRUE | BT14: 0.8 | BU14: 0.75 | BV14: 0 | BW14: 0.4166666667 | BX14: 0.4166666667 | BY14: 0.5666666667 | BZ14: 0.5516666667 | CA14: 0.005 | CB14: 0.045 | CC14: 0.004 | CD14: 0.045 | CE14: 0.00375 | CF14: 0.045 | CG14: 0.00047 | CH14: 0.00052875 | CI14: 0.5666666667 | CJ14: 0.1316666667 | CK14: 0.5516666667 | CL14: 0.01205882353 | CM14: 0.001742947638 | CN14: -0.3931637038 | CO14: 0.5539480176 | CP14: 0.005 | CQ14: 0.00133655 | CR14: -0.3258379497 | CS14: 0.3925046163 | CT14: 0.01179758308 | CU14: 0.001722468961 | CV14: -0.3891500655 | CW14: 0.5464511732 | CX14: 0 | CY14: 0 | CZ14: 0 | DA14: 0 | DB14: 0 | DC14: 0 | DD14: 0 | DE14: 0 | DF14: 0 | DG14: 0 | DH14: 0 | DI14: 0 | DJ14: 0 | DK14: 0 | DL14: 0 | DM14: 0 | DP14: 0 | DQ14: 0
B15: F | C15: 0 | D15: 0 | E15: 0 | F15: 0 | G15: 0 | H15: 0 | I15: 0 | J15: 0 | N15: Bjælke A | P15: 500 | Q15: 150 | AL15: 0 | AM15: 0 | AN15: =R17 -> 0 | AP15: =Makro!A3 -> FALSE | AR15: =AM10 -> 7000 | AS15: 0 | AY15: 6 | AZ15: 150 | BA15: 3000 | BB15: 2885 | BC15: 3000 | BD15: 6635 | BE15: 3000 | BF15: 1000000 | BG15: 1000000 | BJ15: F | BK15: 0.651156345 | BL15: 0.15 | BM15: 3 | BN15: 1.25 | BO15: 0.15 | BP15: 0.135 | BQ15: 2.5 | BR15: 2.5 | BS15: TRUE | BT15: 0.8 | BU15: 0.75 | BV15: 0 | BW15: 0.4166666667 | BX15: 0.4166666667 | BY15: 0.5666666667 | BZ15: 0.5516666667 | CA15: 0.017 | CB15: 0.02382352941 | CC15: 0.0136 | CD15: 0.02382352941 | CE15: 0.01275 | CF15: 0.02382352941 | CG15: 0.00047 | CH15: 0.00052875 | CI15: 0.5666666667 | CJ15: 0.1316666667 | CK15: 0.5516666667 | CL15: 0.041 | CM15: 0.002177065285 | CN15: -0.3462280344 | CO15: 0.892894701 | CP15: 0.017 | CQ15: 0.00151655 | CR15: -0.3019212172 | CS15: 0.5285878839 | CT15: 0.04011178248 | CU15: 0.002147181952 | CV15: -0.3427568836 | CW15: 0.87758065 | CX15: 0 | CY15: 0 | CZ15: 0 | DA15: 0 | DB15: 0 | DC15: 0 | DD15: 0 | DE15: 0 | DF15: 0 | DG15: 0 | DH15: 0 | DI15: 0 | DJ15: 0 | DK15: 0 | DL15: 0 | DM15: 0 | DP15: 0 | DQ15: 0
B16: G | C16: 0 | D16: 0 | E16: 0 | F16: 0 | G16: 0 | H16: 0 | I16: 0 | J16: 0 | K16: Hovedmål | N16: Vindue 1 | P16: 1500 | Q16: 1500 | R16: 1250 | S16: 1000 | AL16: 1500 | AM16: 1000 | AN16: =R18 -> 5500 | AO16: =S18 -> 1000 | AP16: =Makro!A4 -> TRUE | AR16: =AR15 -> 7000 | AS16: =AL10-AL17 -> 2500 | AY16: 7 | AZ16: 150 | BA16: 2500 | BB16: 2885 | BC16: 2500 | BD16: 6635 | BE16: 2500 | BF16: 1000000 | BG16: 1000000 | BJ16: G | BK16: 0.651156345 | BL16: 0.15 | BM16: 3 | BN16: 1.25 | BO16: 0.15 | BP16: 0.135 | BQ16: 2.5 | BR16: 2.5 | BS16: TRUE | BT16: 0.8 | BU16: 0.75 | BV16: 0 | BW16: 0.4166666667 | BX16: 0.4166666667 | BY16: 0.5666666667 | BZ16: 0.5516666667 | CA16: 0.017 | CB16: 0.02382352941 | CC16: 0.0136 | CD16: 0.02382352941 | CE16: 0.01275 | CF16: 0.02382352941 | CG16: 0.00047 | CH16: 0.00052875 | CI16: 0.5666666667 | CJ16: 0.1316666667 | CK16: 0.5516666667 | CL16: 0.041 | CM16: 0.002177065285 | CN16: -0.3462280344 | CO16: 0.892894701 | CP16: 0.017 | CQ16: 0.00151655 | CR16: -0.3019212172 | CS16: 0.5285878839 | CT16: 0.04011178248 | CU16: 0.002147181952 | CV16: -0.3427568836 | CW16: 0.87758065 | CX16: 0 | CY16: 0 | CZ16: 0 | DA16: 0 | DB16: 0 | DC16: 0 | DD16: 0 | DE16: 0 | DF16: 0 | DG16: 0 | DH16: 0 | DI16: 0 | DJ16: 0 | DK16: 0 | DL16: 0 | DM16: 0 | DP16: 0 | DQ16: 0
B17: H | C17: 0 | D17: 0 | E17: 0 | F17: 0 | G17: 0 | H17: 0 | I17: 0 | J17: 0 | K17: Væghøjde, H | M17: 3000 | N17: Dør | AL17: 500 | AM17: 150 | AP17: =Makro!A5 -> TRUE | AR17: =AR16-AM17 -> 6850 | AS17: =AS16 -> 2500 | AY17: 8 | AZ17: 0 | BA17: 2500 | BB17: 2750 | BC17: 2500 | BD17: 6500 | BE17: 2500 | BF17: 1000000 | BG17: 1000000 | BJ17: H | BK17: 0.651156345 | BL17: 0.15 | BM17: 3 | BN17: 1.25 | BO17: 0.15 | BP17: 0.135 | BQ17: 2.5 | BR17: 2.5 | BS17: TRUE | BT17: 0.8 | BU17: 0.75 | BV17: 0 | BW17: 0.4166666667 | BX17: 0.4166666667 | BY17: 0.5666666667 | BZ17: 0.5516666667 | CA17: 0.02 | CB17: 0.0225 | CC17: 0.016 | CD17: 0.0225 | CE17: 0.015 | CF17: 0.0225 | CG17: 0.00047 | CH17: 0.00052875 | CI17: 0.5666666667 | CJ17: 0.1316666667 | CK17: 0.5516666667 | CL17: 0.04823529412 | CM17: 0.002285594696 | CN17: -0.3366842727 | CO17: 0.9798215276 | CP17: 0.02 | CQ17: 0.00156155 | CR17: -0.2962752514 | CS17: 0.5629419181 | CT17: 0.04719033233 | CU17: 0.0022533602 | CV17: -0.3332443016 | CW17: 0.9624487326 | CX17: 0 | CY17: 0 | CZ17: 0 | DA17: 0 | DB17: 0 | DC17: 0 | DD17: 0 | DE17: 0 | DF17: 0 | DG17: 0 | DH17: 0 | DI17: 0 | DJ17: 0 | DK17: 0 | DL17: 0 | DM17: 0 | DP17: 0 | DQ17: 0
B18: I | C18: 0 | D18: 0 | E18: 0 | F18: 0 | G18: 0 | H18: 0 | I18: 0 | J18: 0 | K18: Vægbredde, B | M18: 7000 | N18: Vindue 2 | P18: 1500 | Q18: 1000 | R18: 5500 | S18: 1000 | AR18: =AR17 -> 6850 | AS18: =AL10 -> 3000 | AT18: NA | AV18: NB | AY18: 9 | AZ18: 0 | BA18: 0 | BB18: 2750 | BC18: 0 | BD18: 6500 | BE18: 0 | BF18: 1000000 | BG18: 1000000 | BJ18: I | BK18: 0.651156345 | BL18: 0.15 | BM18: 3 | BN18: 1.25 | BO18: 0.15 | BP18: 0.135 | BQ18: 2.5 | BR18: 2.5 | BS18: TRUE | BT18: 0.8 | BU18: 0.75 | BV18: 0 | BW18: 0.4166666667 | BX18: 0.4166666667 | BY18: 0.5666666667 | BZ18: 0.5516666667 | CA18: =SUM(N39:P39)/1000 -> 0.02 | CB18: 0.0225 | CC18: 0.016 | CD18: 0.0225 | CE18: 0.015 | CF18: 0.0225 | CG18: =S39/1000 -> 0.00047 | CH18: 0.00052875 | CI18: 0.5666666667 | CJ18: 0.1316666667 | CK18: 0.5516666667 | CL18: =IF(CI18=0,0,CA18+CC18/CI18) -> 0.04823529412 | CM18: 0.002285594696 | CN18: =CL18/($BL18)-6*($BK18/($BK18-CL18))*(CM18/$BL18^2) -> -0.3366842727 | CO18: =CL18/($BL18)+6*($BK18/($BK18-CL18))*(CM18/$BL18^2) -> 0.9798215276 | CP18: 0.02 | CQ18: 0.00156155 | CR18: =CP18/($BL18)-6*($BK18/($BK18-CP18))*(CQ18/$BL18^2) -> -0.2962752514 | CS18: =CP18/($BL18)+6*($BK18/($BK18-CP18))*(CQ18/$BL18^2) -> 0.5629419181 | CT18: =IF(CK18=0,0,CA18+CE18/CK18) -> 0.04719033233 | CU18: 0.0022533602 | CV18: =CT18/($BL18)-6*($BK18/($BK18-CT18))*(CU18/$BL18^2) -> -0.3332443016 | CW18: 0.9624487326 | CX18: 0 | CY18: 0 | CZ18: 0 | DA18: 0 | DB18: 0 | DC18: 0 | DD18: 0 | DE18: 0 | DF18: 0 | DG18: 0 | DH18: 0 | DI18: 0 | DJ18: 0 | DK18: 0 | DL18: 0 | DM18: 0 | DP18: 0 | DQ18: 0
B19: Resultat af styrkekontrol: | K19: Vægtykkelse, t | M19: 150 | N19: Bjælke B | P19: 500 | Q19: 150 | AR19: =AM13 -> 150 | AS19: =AS18 -> 3000 | AT19: x | AU19: y | AV19: x | AW19: y | BI19: Felt 2 | BK19: =$R$13/1000 -> 0.651156345 | BL19: =$M$19/1000 -> 0.15 | BM19: =$BB$107/1000 -> 2.586206897 | BN19: =($BB$11-$BB$10)/1000 -> 2.75 | BO19: =($BB$16-$BB$17)/1000 -> 0.135 | BP19: =($BB$12-$BB$13)/1000 -> 0.135 | BQ19: =$BC$16/1000 -> 2.5 | BR19: =$BC$13/1000 -> 2.5 | BS19: =IF($BD$10=1000000,FALSE,TRUE) -> TRUE | BT19: =BU9 -> 0.75 | BU19: =IF(BS19,0.5*$BC$21/1000,IF(AND($AP$17,$AS$77=1),$BB$80,0)) -> 0.5 | BV19: =BB105 -> 1 | BW19: =BB109/M17 -> 0.08333333333 | BX19: =BB111/M17 -> 0.8333333333 | BY19: =BO19+BQ19/6 -> 0.5516666667 | BZ19: =BP19+BR19/6 -> 0.5516666667 | DP19: 0 | DQ19: 0
C20: Mindste betonspænding: | F20: =IF($AM$113,MIN(F10:F18),"-") -> - | G20: MPa | H20: =IF($AM$113,IF(F20<-R9,"Trækstyrke overskredet !"," OK !"),"-") -> - | K20: Interne overliggere | N20: Tværvæg 1 | P20: x = | Q20: 3000 | AL20: Vederlagsdybder | AO20: =M21 -> 135 | AR20: =AR19 -> 150 | AS20: =AS19-AL13 -> 2500 | AT20: =IF(AP13,0.5*(AR21+AR20),1000000) -> 75 | AU20: =IF(AP13,AS20,1000000) -> 2500 | AV20: =IF(AP17,0.5*(AR16+AR17),1000000) -> 6925 | AW20: =IF(AP17,AS16,1000000) -> 2500 | AY20: OVERLIGGERE | BI20: Lasttilfælde | BJ20: =K31 -> A | BK20: =BK19 -> 0.651156345 | BL20: =BL19 -> 0.15 | BM20: =BM19 -> 2.586206897 | BN20: =BN19 -> 2.75 | BO20: =BO19 -> 0.135 | BP20: =BP19 -> 0.135 | BQ20: =BQ19 -> 2.5 | BR20: =BR19 -> 2.5 | BS20: =BS19 -> TRUE | BT20: =BT19 -> 0.75 | BU20: 0.5 | BV20: =BV19 -> 1 | BW20: =BW19 -> 0.08333333333 | BX20: =BX19 -> 0.8333333333 | BY20: =BY19 -> 0.5516666667 | BZ20: =BZ19 -> 0.5516666667 | CA20: =CA10 -> 0.003 | CB20: =CB10 -> 0.045 | CC20: =CE10 -> 0.00225 | CD20: =CF10 -> 0.045 | CE20: =IF(BS20,BU20*CA20,BB84/1000) -> 0.0015 | CF20: =IF(BS20,CB20,BC84/1000) -> 0.045 | CG20: =CG10 -> 0.00094 | CH20: =0.125*CG20*BM20^2 -> 0.0007858947681 | CI20: =IF(BY20+BZ20<=BN20,BY20,MIN(IF(CC20=0,0,BN20*CC20/(CC20+CE20)),BY20)) -> 0.5516666667 | CJ20: =BN20-CI20-CK20 -> 1.646666667 | CK20: =IF(BY20+BZ20<=BN20,BZ20,MIN(IF(CE20=0,0,BN20*CE20/(CC20+CE20)),BZ20)) -> 0.5516666667 | CL20: =IF(CI20=0,0,CA20+CC20/CI20) -> 0.007078549849 | CM20: =IF(BS10,IF(CI20=0,CB20*CA20,CB20*CA20+CD20*CC20/CI20)+CH20+IF(BV20=0,CG20*BT20*BM20*IF(BW20>1,0.27,BW20^-1/8-29*BW20^2/800+141*BW20/800)+CG20*BU20*BM20*IF(BX20>1.5,0,BX20^-1/8+2*BX20^2/27-BX20/6),IF(BW20<0.2,CG20*BT20*BM20*0.6*BW20,CG20*BT20*BM20*IF(BW20<1,(1125*BW20^3-3225*BW20^2+3075*BW20-111)/3200,0.27))),0) -> 0.001195593304 | CN20: =CL20/($BL20)-6*($BK20/($BK20-CL20))*(CM20/$BL20^2) -> -0.2751385011 | CO20: =CL20/($BL20)+6*($BK20/($BK20-CL20))*(CM20/$BL20^2) -> 0.3695191657 | CP20: =IF(CJ20=0,CL20,CA20) -> 0.003 | CQ20: =IF(CJ20=0,CM20,CB20*CA20+CH20+IF(BV20=0,CG20*(BT20+BU20)/BN20,0)) -> 0.0009208947681 | CR20: =CP20/($BL20)-6*($BK20/($BK20-CP20))*(CQ20/$BL20^2) -> -0.2267085711 | CS20: =CP20/($BL20)+6*($BK20/($BK20-CP20))*(CQ20/$BL20^2) -> 0.2667085711 | CT20: =IF(CK20=0,0,CA20+CE20/CK20) -> 0.005719033233 | CU20: =IF(BS10,IF(CK20=0,CB20*CA20,CB20*CA20+CE20*CF20/CK20)+CH20+IF(BV20=0,CG20*BU20*BM20*IF(BX20>1,0.27,BX20^-1/8-29*BX20^2/800+141*BX20/800)+CG20*BT20*BM20*IF(BW20>1.5,0,BW20^-1/8+2*BW20^2/27-BW20/6),IF(BX20<0.2,CG20*BU20*BM20*0.6*BX20,CG20*BU20*BM20*IF(BX20<1,(1125*BX20^3-3225*BX20^2+3075*BX20-111)/3200,0.27))),0) -> 0.001371045243 | CV20: =CT20/($BL20)-6*($BK20/($BK20-CT20))*(CU20/$BL20^2) -> -0.3307247592 | CW20: =CT20/($BL20)+6*($BK20/($BK20-CT20))*(CU20/$BL20^2) -> 0.4069785356 | CX20: =IF($AM$113,IF(DA20=CN20,"#2-venstre",IF(DA20=CR20,"#2-midt","#2-højre")),0) -> 0 | CY20: =IF($AM$113,IF(DA20=CN20,CL20,IF(DA20=CR20,CP20,CT20))*1000,0) -> 0 | CZ20: =IF($AM$113,IF(DA20=CN20,CM20,IF(DA20=CR20,CQ20,CU20))*1000,0) -> 0 | DA20: =IF($AM$113,MIN(CN20,CR20,CV20),0) -> 0 | DB20: =IF($AM$113,IF(CX20=CO20,"#2-venstre",IF(CX20=CS20,"#2-midt","#2-højre")),0) -> 0 | DC20: =IF($AM$113,IF(CX20=CO20,CL20,IF(CX20=CS20,CP20,CT20))*1000,0) -> 0 | DD20: =IF($AM$113,IF(CX20=CO20,CM20,IF(CX20=CS20,CQ20,CU20))*1000,0) -> 0 | DE20: =IF($AM$113,MAX(CO20,CS20,CW20),0) -> 0 | DP20: 0 | DQ20: 0
C21: Største betonspænding: | F21: =IF($AM$113,MAX(J10:J18),"-") -> - | G21: MPa | H21: =IF($AM$113,IF(F21>R8,"Trykstyrke overskredet !"," OK !"),"-") -> - | K21: Vederlagsdybder | M21: 135 | N21: Tværvæg 2 | P21: x = | Q21: 6750 | AR21: 0 | AS21: =AS20 -> 2500 | AT21: =AT20 -> 75 | AU21: =AU20+400 -> 2900 | AV21: =AV20 -> 6925 | AW21: =AW20+400 -> 2900 | BA21: =IF(BB10=1000000,0,BB15-AZ13-2*AO20) -> 1500 | BC21: =IF(BD10=1000000,0,BD15-BB13-2*AO20) -> 1000 | BE21: =IF(BF10=1000000,0,BF15-BD13-2*AO20) -> 0 | BJ21: =K32 -> B | BK21: =BK20 -> 0.651156345 | BL21: 0.15 | BM21: =BM20 -> 2.586206897 | BN21: =BN20 -> 2.75 | BO21: 0.135 | BP21: 0.135 | BQ21: 2.5 | BR21: 2.5 | BS21: TRUE | BT21: 0.75 | BU21: 0.5 | BV21: 1 | BW21: 0.08333333333 | BX21: 0.8333333333 | BY21: 0.5516666667 | BZ21: 0.5516666667 | CA21: 0.004 | CB21: 0.045 | CC21: =CE11 -> 0.003 | CD21: =CF11 -> 0.045 | CE21: 0.002 | CF21: 0.045 | CG21: 0.00094 | CH21: 0.0007858947681 | CI21: =IF(BY21+BZ21<=BN21,BY21,MIN(IF(CC21=0,0,BN21*CC21/(CC21+CE21)),BY21)) -> 0.5516666667 | CJ21: 1.646666667 | CK21: =IF(BY21+BZ21<=BN21,BZ21,MIN(IF(CE21=0,0,BN21*CE21/(CC21+CE21)),BZ21)) -> 0.5516666667 | CL21: =IF(CI21=0,0,CA21+CC21/CI21) -> 0.009438066465 | CM21: =IF(BS11,IF(CI21=0,CB21*CA21,CB21*CA21+CD21*CC21/CI21)+CH21+IF(BV21=0,CG21*BT21*BM21*IF(BW21>1,0.27,BW21^-1/8-29*BW21^2/800+141*BW21/800)+CG21*BU21*BM21*IF(BX21>1.5,0,BX21^-1/8+2*BX21^2/27-BX21/6),IF(BW21<0.2,CG21*BT21*BM21*0.6*BW21,CG21*BT21*BM21*IF(BW21<1,(1125*BW21^3-3225*BW21^2+3075*BW21-111)/3200,0.27))),0) -> 0.001301771552 | CN21: =CL21/($BL21)-6*($BK21/($BK21-CL21))*(CM21/$BL21^2) -> -0.2893241827 | CO21: =CL21/($BL21)+6*($BK21/($BK21-CL21))*(CM21/$BL21^2) -> 0.4151650689 | CP21: =IF(CJ21=0,CL21,CA21) -> 0.004 | CQ21: =IF(CJ21=0,CM21,CB21*CA21+CH21+IF(BV21=0,CG21*(BT21+BU21)/BN21,0)) -> 0.0009658947681 | CR21: =CP21/($BL21)-6*($BK21/($BK21-CP21))*(CQ21/$BL21^2) -> -0.2324972945 | CS21: =CP21/($BL21)+6*($BK21/($BK21-CP21))*(CQ21/$BL21^2) -> 0.2858306278 | CT21: =IF(CK21=0,0,CA21+CE21/CK21) -> 0.007625377644 | CU21: =IF(BS11,IF(CK21=0,CB21*CA21,CB21*CA21+CE21*CF21/CK21)+CH21+IF(BV21=0,CG21*BU21*BM21*IF(BX21>1,0.27,BX21^-1/8-29*BX21^2/800+141*BX21/800)+CG21*BT21*BM21*IF(BW21>1.5,0,BW21^-1/8+2*BW21^2/27-BW21/6),IF(BX21<0.2,CG21*BU21*BM21*0.6*BX21,CG21*BU21*BM21*IF(BX21<1,(1125*BX21^3-3225*BX21^2+3075*BX21-111)/3200,0.27))),0) -> 0.001456830741 | CV21: =CT21/($BL21)-6*($BK21/($BK21-CT21))*(CU21/$BL21^2) -> -0.3422556515 | CW21: =CT21/($BL21)+6*($BK21/($BK21-CT21))*(CU21/$BL21^2) -> 0.4439273534 | CX21: =IF($AM$113,IF(DA21=CN21,"#2-venstre",IF(DA21=CR21,"#2-midt","#2-højre")),0) -> 0 | CY21: =IF($AM$113,IF(DA21=CN21,CL21,IF(DA21=CR21,CP21,CT21))*1000,0) -> 0 | CZ21: =IF($AM$113,IF(DA21=CN21,CM21,IF(DA21=CR21,CQ21,CU21))*1000,0) -> 0 | DA21: =IF($AM$113,MIN(CN21,CR21,CV21),0) -> 0 | DB21: =IF($AM$113,IF(CX21=CO21,"#2-venstre",IF(CX21=CS21,"#2-midt","#2-højre")),0) -> 0 | DC21: =IF($AM$113,IF(CX21=CO21,CL21,IF(CX21=CS21,CP21,CT21))*1000,0) -> 0 | DD21: =IF($AM$113,IF(CX21=CO21,CM21,IF(CX21=CS21,CQ21,CU21))*1000,0) -> 0 | DE21: =IF($AM$113,MAX(CO21,CS21,CW21),0) -> 0 | DP21: 0 | DQ21: 0
K22: Jævnt fordelte laste på vægoverside | AR22: 0 | AS22: 0 | BJ22: C | BK22: 0.651156345 | BL22: 0.15 | BM22: 2.586206897 | BN22: 2.75 | BO22: 0.135 | BP22: 0.135 | BQ22: 2.5 | BR22: 2.5 | BS22: TRUE | BT22: 0.75 | BU22: 0.5 | BV22: 1 | BW22: 0.08333333333 | BX22: 0.8333333333 | BY22: 0.5516666667 | BZ22: 0.5516666667 | CA22: 0.016 | CB22: 0.0225 | CC22: 0.012 | CD22: 0.0225 | CE22: 0.008 | CF22: 0.0225 | CG22: 0.00094 | CH22: 0.0007858947681 | CI22: 0.5516666667 | CJ22: 1.646666667 | CK22: 0.5516666667 | CL22: 0.03775226586 | CM22: 0.001726484543 | CN22: -0.2370494041 | CO22: 0.7404129489 | CP22: 0.016 | CQ22: 0.001145894768 | CR22: -0.2066028267 | CS22: 0.41993616 | CT22: 0.03050151057 | CU22: 0.001799972735 | CV22: -0.3002381264 | CW22: 0.7069249341 | CX22: 0 | CY22: 0 | CZ22: 0 | DA22: 0 | DB22: 0 | DC22: 0 | DD22: 0 | DE22: 0 | DP22: 0 | DQ22: 0
K23: Maksimallaste (kN/m) | N23: Reducerede laste (kN/m) | Q23: Minimallaste (kN/m) | BJ23: D | BK23: 0.651156345 | BL23: 0.15 | BM23: 2.586206897 | BN23: 2.75 | BO23: 0.135 | BP23: 0.135 | BQ23: 2.5 | BR23: 2.5 | BS23: TRUE | BT23: 0.75 | BU23: 0.5 | BV23: 1 | BW23: 0.08333333333 | BX23: 0.8333333333 | BY23: 0.5516666667 | BZ23: 0.5516666667 | CA23: 0.016 | CB23: 0.0225 | CC23: 0.012 | CD23: 0.0225 | CE23: 0.008 | CF23: 0.0225 | CG23: 0.00094 | CH23: 0.0007858947681 | CI23: 0.5516666667 | CJ23: 1.646666667 | CK23: 0.5516666667 | CL23: 0.03775226586 | CM23: 0.001726484543 | CN23: -0.2370494041 | CO23: 0.7404129489 | CP23: 0.016 | CQ23: 0.001145894768 | CR23: -0.2066028267 | CS23: 0.41993616 | CT23: 0.03050151057 | CU23: 0.001799972735 | CV23: -0.3002381264 | CW23: 0.7069249341 | CX23: 0 | CY23: 0 | CZ23: 0 | DA23: 0 | DB23: 0 | DC23: 0 | DD23: 0 | DE23: 0 | DP23: 0 | DQ23: 0
K24: nv | L24: no | M24: nh | N24: nv | O24: no | P24: nh | Q24: nv | R24: no | S24: nh | BJ24: E | BK24: 0.651156345 | BL24: 0.15 | BM24: 2.586206897 | BN24: 2.75 | BO24: 0.135 | BP24: 0.135 | BQ24: 2.5 | BR24: 2.5 | BS24: TRUE | BT24: 0.75 | BU24: 0.5 | BV24: 1 | BW24: 0.08333333333 | BX24: 0.8333333333 | BY24: 0.5516666667 | BZ24: 0.5516666667 | CA24: 0.005 | CB24: 0.045 | CC24: 0.00375 | CD24: 0.045 | CE24: 0.0025 | CF24: 0.045 | CG24: 0.00047 | CH24: 0.0003929473841 | CI24: 0.5516666667 | CJ24: 1.646666667 | CK24: 0.5516666667 | CL24: 0.01179758308 | CM24: 0.0009694205193 | CN24: -0.1846317052 | CO24: 0.341932813 | CP24: 0.005 | CQ24: 0.0006179473841 | CR24: -0.1327277603 | CS24: 0.199394427 | CT24: 0.009531722054 | CU24: 0.000985771866 | CV24: =CT24/($BL24)-6*($BK24/($BK24-CT24))*(CU24/$BL24^2) -> -0.2032328139 | CW24: 0.3303224413 | CX24: 0 | CY24: 0 | CZ24: 0 | DA24: 0 | DB24: 0 | DC24: 0 | DD24: 0 | DE24: 0 | DP24: 0 | DQ24: 0
K25: 5 | L25: 15 | M25: 0 | N25: 4 | O25: 12 | P25: 0 | Q25: 3 | R25: 0 | S25: 0 | BJ25: F | BK25: 0.651156345 | BL25: 0.15 | BM25: 2.586206897 | BN25: 2.75 | BO25: 0.135 | BP25: 0.135 | BQ25: 2.5 | BR25: 2.5 | BS25: TRUE | BT25: 0.75 | BU25: 0.5 | BV25: 1 | BW25: 0.08333333333 | BX25: 0.8333333333 | BY25: 0.5516666667 | BZ25: 0.5516666667 | CA25: 0.017 | CB25: 0.02382352941 | CC25: 0.01275 | CD25: 0.02382352941 | CE25: 0.0085 | CF25: 0.02382352941 | CG25: 0.00047 | CH25: 0.0003929473841 | CI25: 0.5516666667 | CJ25: 1.646666667 | CK25: 0.5516666667 | CL25: 0.04011178248 | CM25: 0.00139413351 | CN25: -0.12876168 | CO25: 0.6635854464 | CP25: 0.017 | CQ25: 0.0007979473841 | CR25: -0.1051568466 | CS25: 0.3318235132 | CT25: 0.03240785498 | CU25: 0.00132891386 | CV25: -0.1568856767 | CW25: 0.5889904099 | CX25: 0 | CY25: 0 | CZ25: 0 | DA25: 0 | DB25: 0 | DC25: 0 | DD25: 0 | DE25: 0 | DP25: 0 | DQ25: 0
K26: Belastning fra bjælke A (venstre side) som: | O26: =INDEX(AP76:AP77,AS76,1) -> Vægoverligger | Q26: LA (m) | R26: LB (m) | AK26: INDDATAFORMATER | AQ26: BASISTILFÆLDE: | AU26: =MIN(AQ32:BE32) -> 5 | BJ26: G | BK26: 0.651156345 | BL26: 0.15 | BM26: 2.586206897 | BN26: 2.75 | BO26: 0.135 | BP26: 0.135 | BQ26: 2.5 | BR26: 2.5 | BS26: TRUE | BT26: 0.75 | BU26: 0.5 | BV26: 1 | BW26: 0.08333333333 | BX26: 0.8333333333 | BY26: 0.5516666667 | BZ26: 0.5516666667 | CA26: 0.017 | CB26: 0.02382352941 | CC26: 0.01275 | CD26: 0.02382352941 | CE26: 0.0085 | CF26: 0.02382352941 | CG26: 0.00047 | CH26: 0.0003929473841 | CI26: 0.5516666667 | CJ26: 1.646666667 | CK26: 0.5516666667 | CL26: 0.04011178248 | CM26: 0.00139413351 | CN26: -0.12876168 | CO26: 0.6635854464 | CP26: 0.017 | CQ26: 0.0007979473841 | CR26: -0.1051568466 | CS26: 0.3318235132 | CT26: 0.03240785498 | CU26: 0.00132891386 | CV26: -0.1568856767 | CW26: 0.5889904099 | CX26: 0 | CY26: 0 | CZ26: 0 | DA26: 0 | DB26: 0 | DC26: 0 | DD26: 0 | DE26: 0 | DP26: 0 | DQ26: 0
K27: Belastning fra bjælke B (højre side) som: | O27: =INDEX(AP76:AP77,AS77,1) -> Vægoverligger | Q27: 1.6 | R27: 1.2 | AL27: h | AM27: b | AN27: x | AO27: y | BJ27: H | BK27: 0.651156345 | BL27: 0.15 | BM27: 2.586206897 | BN27: 2.75 | BO27: 0.135 | BP27: 0.135 | BQ27: 2.5 | BR27: 2.5 | BS27: TRUE | BT27: 0.75 | BU27: 0.5 | BV27: 1 | BW27: 0.08333333333 | BX27: 0.8333333333 | BY27: 0.5516666667 | BZ27: 0.5516666667 | CA27: 0.02 | CB27: 0.0225 | CC27: 0.015 | CD27: 0.0225 | CE27: 0.01 | CF27: 0.0225 | CG27: 0.00047 | CH27: 0.0003929473841 | CI27: 0.5516666667 | CJ27: 1.646666667 | CK27: 0.5516666667 | CL27: 0.04719033233 | CM27: 0.001500311758 | CN27: -0.11674105 | CO27: 0.745945481 | CP27: 0.02 | CQ27: 0.0008429473841 | CR27: -0.09857562424 | CS27: 0.3652422909 | CT27: 0.03812688822 | CU27: 0.001414699358 | CV27: -0.1465368732 | CW27: 0.6548953828 | CX27: 0 | CY27: 0 | CZ27: 0 | DA27: 0 | DB27: 0 | DC27: 0 | DD27: 0 | DE27: 0 | DP27: 0 | DQ27: 0
K28: Brudlasttilfælde | M28: =Makro!B2 -> 1 | N28: Jævnt fordelt last, overside | Q28: Bjælkereaktioner | S28: Vind | AL28: 500 | AM28: 150 | AP28: =AP13 -> TRUE | AQ28: 1 | AS28: 2 | AU28: 3 | AW28: 4 | AY28: 5 | BA28: 6 | BC28: 7 | BE28: 8 | BJ28: I | BK28: 0.651156345 | BL28: 0.15 | BM28: 2.586206897 | BN28: 2.75 | BO28: 0.135 | BP28: 0.135 | BQ28: 2.5 | BR28: 2.5 | BS28: TRUE | BT28: 0.75 | BU28: 0.5 | BV28: 1 | BW28: 0.08333333333 | BX28: 0.8333333333 | BY28: 0.5516666667 | BZ28: 0.5516666667 | CA28: 0.02 | CB28: 0.0225 | CC28: 0.015 | CD28: 0.0225 | CE28: 0.01 | CF28: 0.0225 | CG28: 0.00047 | CH28: 0.0003929473841 | CI28: 0.5516666667 | CJ28: 1.646666667 | CK28: 0.5516666667 | CL28: 0.04719033233 | CM28: 0.001500311758 | CN28: -0.11674105 | CO28: 0.745945481 | CP28: 0.02 | CQ28: 0.0008429473841 | CR28: -0.09857562424 | CS28: 0.3652422909 | CT28: 0.03812688822 | CU28: 0.001414699358 | CV28: -0.1465368732 | CW28: 0.6548953828 | CX28: 0 | CY28: 0 | CZ28: 0 | DA28: 0 | DB28: 0 | DC28: 0 | DD28: 0 | DE28: 0 | DP28: 0 | DQ28: 0
N29: n1 | O29: n0 | P29: n2 | Q29: NA | R29: NB | S29: w | AL29: 1500 | AM29: 1500 | AN29: 1250 | AO29: 1000 | AP29: =AP14 -> TRUE | AQ29: FALSE | AS29: TRUE | AU29: TRUE | AW29: TRUE | AY29: TRUE | BA29: FALSE | BC29: FALSE | BE29: FALSE | BI29: Felt 3 | BK29: =$R$13/1000 -> 0.651156345 | BL29: =$M$19/1000 -> 0.15 | BM29: =$BD$107/1000 -> 0.1764705882 | BN29: =($BD$11-$BD$10)/1000 -> 0.5 | BO29: =($BD$16-$BD$17)/1000 -> 0.135 | BP29: =($BD$12-$BD$13)/1000 -> 0.15 | BQ29: =$BE$16/1000 -> 2.5 | BR29: =$BE$13/1000 -> 2.5 | BS29: =IF($BF$10=1000000,FALSE,TRUE) -> FALSE | BT29: =BU19 -> 0.5 | BU29: =IF(BS29,0.5*$BE$21/1000,IF(AND($AP$17,$AS$77=1),$BB$80,0)) -> 0.6 | BV29: =BD105 -> 1 | BW29: =BD109/M17 -> 0.08333333333 | BX29: =BD111/M17 -> 0.08333333333 | BY29: =BO29+BQ29/6 -> 0.5516666667 | BZ29: =BP29+BR29/6 -> 0.5666666667 | DP29: =R13 -> 651.156345 | DQ29: =MIN((($M$19/1000)^2*1000*$R$9/6+($M$19/6000)*DP29)*($DP$29-DP29)/$DP$29,(($M$19/1000)^2*1000*$R$8/6-($M$19/6000)*DP29)*($DP$29-DP29)/$DP$29) -> 0
N30: (kN/m) | O30: (kN/m) | P30: (kN/m) | Q30: (kN) | R30: (kN) | S30: (kN/m2) | AL30: 2500 | AM30: 1000 | AN30: 3250 | AP30: =AP15 -> FALSE | AQ30: FALSE | AS30: FALSE | AU30: TRUE | AW30: TRUE | AY30: FALSE | BA30: TRUE | BC30: TRUE | BE30: FALSE | BI30: Lasttilfælde | BJ30: =K31 -> A | BK30: =BK29 -> 0.651156345 | BL30: =BL29 -> 0.15 | BM30: =BM29 -> 0.1764705882 | BN30: =BN29 -> 0.5 | BO30: =BO29 -> 0.135 | BP30: =BP29 -> 0.15 | BQ30: =BQ29 -> 2.5 | BR30: =BR29 -> 2.5 | BS30: =BS29 -> FALSE | BT30: =BT29 -> 0.5 | BU30: 0.6 | BV30: =BV29 -> 1 | BW30: =BW29 -> 0.08333333333 | BX30: =BX29 -> 0.08333333333 | BY30: =BY29 -> 0.5516666667 | BZ30: =BZ29 -> 0.5666666667 | CA30: =CA20 -> 0.003 | CB30: =CB20 -> 0.045 | CC30: =CE20 -> 0.0015 | CD30: =CF20 -> 0.045 | CE30: =IF(BS30,BU30*CA30,BB84/1000) -> 0.0018 | CF30: =IF(BS30,CB30,BC84/1000) -> 0.045 | CG30: =CG20 -> 0.00094 | CH30: =0.125*CG30*BM30^2 -> 3.65916955e-06 | CI30: =IF(BY30+BZ30<=BN30,BY30,MIN(IF(CC30=0,0,BN30*CC30/(CC30+CE30)),BY30)) -> 0.2272727273 | CJ30: =BN30-CI30-CK30 -> 0 | CK30: =IF(BY30+BZ30<=BN30,BZ30,MIN(IF(CE30=0,0,BN30*CE30/(CC30+CE30)),BZ30)) -> 0.2727272727 | CL30: =IF(CI30=0,0,CA30+CC30/CI30) -> 0.0096 | CM30: =IF(BS20,IF(CI30=0,CB30*CA30,CB30*CA30+CD30*CC30/CI30)+CH30+IF(BV30=0,CG30*BT30*BM30*IF(BW30>1,0.27,BW30^-1/8-29*BW30^2/800+141*BW30/800)+CG30*BU30*BM30*IF(BX30>1.5,0,BX30^-1/8+2*BX30^2/27-BX30/6),IF(BW30<0.2,CG30*BT30*BM30*0.6*BW30,CG30*BT30*BM30*IF(BW30<1,(1125*BW30^3-3225*BW30^2+3075*BW30-111)/3200,0.27))),0) -> 0.0004398062284 | CN30: =CL30/($BL30)-6*($BK30/($BK30-CL30))*(CM30/$BL30^2) -> -0.05503661813 | CO30: =CL30/($BL30)+6*($BK30/($BK30-CL30))*(CM30/$BL30^2) -> 0.1830366181 | CP30: =IF(CJ30=0,CL30,CA30) -> 0.0096 | CQ30: =IF(CJ30=0,CM30,CB30*CA30+CH30+IF(BV30=0,CG30*(BT30+BU30)/BN30,0)) -> 0.0004398062284 | CR30: =CP30/($BL30)-6*($BK30/($BK30-CP30))*(CQ30/$BL30^2) -> -0.05503661813 | CS30: =CP30/($BL30)+6*($BK30/($BK30-CP30))*(CQ30/$BL30^2) -> 0.1830366181 | CT30: =IF(CK30=0,0,CA30+CE30/CK30) -> 0.0096 | CU30: =IF(BS20,IF(CK30=0,CB30*CA30,CB30*CA30+CE30*CF30/CK30)+CH30+IF(BV30=0,CG30*BU30*BM30*IF(BX30>1,0.27,BX30^-1/8-29*BX30^2/800+141*BX30/800)+CG30*BT30*BM30*IF(BW30>1.5,0,BW30^-1/8+2*BW30^2/27-BW30/6),IF(BX30<0.2,CG30*BU30*BM30*0.6*BX30,CG30*BU30*BM30*IF(BX30<1,(1125*BX30^3-3225*BX30^2+3075*BX30-111)/3200,0.27))),0) -> 0.0004406356401 | CV30: =CT30/($BL30)-6*($BK30/($BK30-CT30))*(CU30/$BL30^2) -> -0.0552611042 | CW30: =CT30/($BL30)+6*($BK30/($BK30-CT30))*(CU30/$BL30^2) -> 0.1832611042 | CX30: =IF($AM$113,IF(DA30=CN30,"#3-venstre",IF(DA30=CR30,"#3-midt","#3-højre")),0) -> 0 | CY30: =IF($AM$113,IF(DA30=CN30,CL30,IF(DA30=CR30,CP30,CT30))*1000,0) -> 0 | CZ30: =IF($AM$113,IF(DA30=CN30,CM30,IF(DA30=CR30,CQ30,CU30))*1000,0) -> 0 | DA30: =IF($AM$113,MIN(CN30,CR30,CV30),0) -> 0 | DB30: =IF($AM$113,IF(CX30=CO30,"#3-venstre",IF(CX30=CS30,"#3-midt","#3-højre")),0) -> 0 | DC30: =IF($AM$113,IF(CX30=CO30,CL30,IF(CX30=CS30,CP30,CT30))*1000,0) -> 0 | DD30: =IF($AM$113,IF(CX30=CO30,CM30,IF(CX30=CS30,CQ30,CU30))*1000,0) -> 0 | DE30: =IF($AM$113,MAX(CO30,CS30,CW30),0) -> 0 | DP30: =DG10 -> 0 | DR30: =DH10 -> 0
K31: A | L31: Med maksimal vind | N31: =INDEX(Laste,ROW()-30+9*(2-$M$28),1) -> 3 | O31: =INDEX(Laste,ROW()-30+9*(2-$M$28),2) -> 0 | P31: =INDEX(Laste,ROW()-30+9*(2-$M$28),3) -> 0 | Q31: =AV84 -> 2.4 | R31: =BD84 -> 1.8 | S31: 0.94 | AL31: 1500 | AM31: 1000 | AN31: 5500 | AO31: 1000 | AP31: =AP16 -> TRUE | AQ31: FALSE | AS31: FALSE | AU31: FALSE | AW31: TRUE | AY31: TRUE | BA31: FALSE | BC31: TRUE | BE31: TRUE | BJ31: =K32 -> B | BK31: =BK30 -> 0.651156345 | BL31: 0.15 | BM31: =BM30 -> 0.1764705882 | BN31: =BN30 -> 0.5 | BO31: 0.135 | BP31: 0.15 | BQ31: 2.5 | BR31: 2.5 | BS31: FALSE | BT31: 0.5 | BU31: 0.6 | BV31: 1 | BW31: 0.08333333333 | BX31: 0.08333333333 | BY31: 0.5516666667 | BZ31: 0.5666666667 | CA31: 0.004 | CB31: 0.045 | CC31: =CE21 -> 0.002 | CD31: =CF21 -> 0.045 | CE31: 0.0024 | CF31: 0.045 | CG31: 0.00094 | CH31: 3.65916955e-06 | CI31: =IF(BY31+BZ31<=BN31,BY31,MIN(IF(CC31=0,0,BN31*CC31/(CC31+CE31)),BY31)) -> 0.2272727273 | CJ31: 0 | CK31: =IF(BY31+BZ31<=BN31,BZ31,MIN(IF(CE31=0,0,BN31*CE31/(CC31+CE31)),BZ31)) -> 0.2727272727 | CL31: =IF(CI31=0,0,CA31+CC31/CI31) -> 0.0128 | CM31: =IF(BS21,IF(CI31=0,CB31*CA31,CB31*CA31+CD31*CC31/CI31)+CH31+IF(BV31=0,CG31*BT31*BM31*IF(BW31>1,0.27,BW31^-1/8-29*BW31^2/800+141*BW31/800)+CG31*BU31*BM31*IF(BX31>1.5,0,BX31^-1/8+2*BX31^2/27-BX31/6),IF(BW31<0.2,CG31*BT31*BM31*0.6*BW31,CG31*BT31*BM31*IF(BW31<1,(1125*BW31^3-3225*BW31^2+3075*BW31-111)/3200,0.27))),0) -> 0.0005838062284 | CN31: =CL31/($BL31)-6*($BK31/($BK31-CL31))*(CM31/$BL31^2) -> -0.07346997784 | CO31: =CL31/($BL31)+6*($BK31/($BK31-CL31))*(CM31/$BL31^2) -> 0.2441366445 | CP31: =IF(CJ31=0,CL31,CA31) -> 0.0128 | CQ31: =IF(CJ31=0,CM31,CB31*CA31+CH31+IF(BV31=0,CG31*(BT31+BU31)/BN31,0)) -> 0.0005838062284 | CR31: =CP31/($BL31)-6*($BK31/($BK31-CP31))*(CQ31/$BL31^2) -> -0.07346997784 | CS31: =CP31/($BL31)+6*($BK31/($BK31-CP31))*(CQ31/$BL31^2) -> 0.2441366445 | CT31: =IF(CK31=0,0,CA31+CE31/CK31) -> 0.0128 | CU31: =IF(BS21,IF(CK31=0,CB31*CA31,CB31*CA31+CE31*CF31/CK31)+CH31+IF(BV31=0,CG31*BU31*BM31*IF(BX31>1,0.27,BX31^-1/8-29*BX31^2/800+141*BX31/800)+CG31*BT31*BM31*IF(BW31>1.5,0,BW31^-1/8+2*BW31^2/27-BW31/6),IF(BX31<0.2,CG31*BU31*BM31*0.6*BX31,CG31*BU31*BM31*IF(BX31<1,(1125*BX31^3-3225*BX31^2+3075*BX31-111)/3200,0.27))),0) -> 0.0005846356401 | CV31: =CT31/($BL31)-6*($BK31/($BK31-CT31))*(CU31/$BL31^2) -> -0.07369558923 | CW31: =CT31/($BL31)+6*($BK31/($BK31-CT31))*(CU31/$BL31^2) -> 0.2443622559 | CX31: =IF($AM$113,IF(DA31=CN31,"#3-venstre",IF(DA31=CR31,"#3-midt","#3-højre")),0) -> 0 | CY31: =IF($AM$113,IF(DA31=CN31,CL31,IF(DA31=CR31,CP31,CT31))*1000,0) -> 0 | CZ31: =IF($AM$113,IF(DA31=CN31,CM31,IF(DA31=CR31,CQ31,CU31))*1000,0) -> 0 | DA31: =IF($AM$113,MIN(CN31,CR31,CV31),0) -> 0 | DB31: =IF($AM$113,IF(CX31=CO31,"#3-venstre",IF(CX31=CS31,"#3-midt","#3-højre")),0) -> 0 | DC31: =IF($AM$113,IF(CX31=CO31,CL31,IF(CX31=CS31,CP31,CT31))*1000,0) -> 0 | DD31: =IF($AM$113,IF(CX31=CO31,CM31,IF(CX31=CS31,CQ31,CU31))*1000,0) -> 0 | DE31: =IF($AM$113,MAX(CO31,CS31,CW31),0) -> 0 | DP31: =DG11 -> 0 | DS31: =DH11 -> 0
K32: B | N32: 4 | O32: 0 | P32: 0 | Q32: =AV85 -> 3.2 | R32: =BD85 -> 2.4 | S32: =S31 -> 0.94 | AL32: 500 | AM32: 150 | AP32: =AP17 -> TRUE | AQ32: =IF(AND(AQ29=$AP29,AQ30=$AP30,AQ31=$AP31),AQ28,1000) -> 1000 | AS32: =IF(AND(AS29=$AP29,AS30=$AP30,AS31=$AP31),AS28,1000) -> 1000 | AU32: 1000 | AW32: 1000 | AY32: 5 | BA32: 1000 | BC32: 1000 | BE32: 1000 | BJ32: C | BK32: 0.651156345 | BL32: 0.15 | BM32: 0.1764705882 | BN32: 0.5 | BO32: 0.135 | BP32: 0.15 | BQ32: 2.5 | BR32: 2.5 | BS32: FALSE | BT32: 0.5 | BU32: 0.6 | BV32: 1 | BW32: 0.08333333333 | BX32: 0.08333333333 | BY32: 0.5516666667 | BZ32: 0.5666666667 | CA32: 0.016 | CB32: 0.0225 | CC32: 0.008 | CD32: 0.0225 | CE32: 0.0096 | CF32: 0.0225 | CG32: 0.00094 | CH32: 3.65916955e-06 | CI32: 0.2272727273 | CJ32: 0 | CK32: 0.2727272727 | CL32: 0.0512 | CM32: 0.001159806228 | CN32: 0.005657716988 | CO32: 0.6770089497 | CP32: 0.0512 | CQ32: 0.001159806228 | CR32: 0.005657716988 | CS32: 0.6770089497 | CT32: 0.0512 | CU32: 0.00116063564 | CV32: 0.005417665419 | CW32: 0.6772490012 | CX32: 0 | CY32: 0 | CZ32: 0 | DA32: 0 | DB32: 0 | DC32: 0 | DD32: 0 | DE32: 0 | DP32: 0 | DT32: =DH12 -> 0
K33: C | N33: 4 | O33: 12 | P33: 0 | Q33: 12.8 | R33: 9.6 | S33: =S32 -> 0.94 | BJ33: D | BK33: 0.651156345 | BL33: 0.15 | BM33: 0.1764705882 | BN33: 0.5 | BO33: 0.135 | BP33: 0.15 | BQ33: 2.5 | BR33: 2.5 | BS33: FALSE | BT33: 0.5 | BU33: 0.6 | BV33: 1 | BW33: 0.08333333333 | BX33: 0.08333333333 | BY33: 0.5516666667 | BZ33: 0.5666666667 | CA33: 0.016 | CB33: 0.0225 | CC33: 0.008 | CD33: 0.0225 | CE33: 0.0096 | CF33: 0.0225 | CG33: 0.00094 | CH33: 3.65916955e-06 | CI33: 0.2272727273 | CJ33: 0 | CK33: 0.2727272727 | CL33: 0.0512 | CM33: 0.001159806228 | CN33: 0.005657716988 | CO33: 0.6770089497 | CP33: 0.0512 | CQ33: 0.001159806228 | CR33: 0.005657716988 | CS33: 0.6770089497 | CT33: 0.0512 | CU33: 0.00116063564 | CV33: 0.005417665419 | CW33: 0.6772490012 | CX33: 0 | CY33: 0 | CZ33: 0 | DA33: 0 | DB33: 0 | DC33: 0 | DD33: 0 | DE33: 0 | DP33: 0 | DU33: =DH13 -> 0
K34: D | N34: 4 | O34: 12 | P34: 0 | Q34: 12.8 | R34: 9.6 | S34: =S33 -> 0.94 | U34: NB: Resultaterne skal altid kontrolleres af ansvarlig statiker | BJ34: E | BK34: 0.651156345 | BL34: 0.15 | BM34: 0.1764705882 | BN34: 0.5 | BO34: 0.135 | BP34: 0.15 | BQ34: 2.5 | BR34: 2.5 | BS34: FALSE | BT34: 0.5 | BU34: 0.6 | BV34: 1 | BW34: 0.08333333333 | BX34: 0.08333333333 | BY34: 0.5516666667 | BZ34: 0.5666666667 | CA34: 0.005 | CB34: 0.045 | CC34: 0.0025 | CD34: 0.045 | CE34: 0.003 | CF34: 0.045 | CG34: 0.00047 | CH34: 1.829584775e-06 | CI34: 0.2272727273 | CJ34: 0 | CK34: 0.2727272727 | CL34: 0.016 | CM34: 0.0007239031142 | CN34: -0.09123698742 | CO34: 0.3045703208 | CP34: 0.016 | CQ34: 0.0007239031142 | CR34: -0.09123698742 | CS34: 0.3045703208 | CT34: 0.016 | CU34: 0.0007243178201 | CV34: -0.09135036144 | CW34: 0.3046836948 | CX34: 0 | CY34: 0 | CZ34: 0 | DA34: 0 | DB34: 0 | DC34: 0 | DD34: 0 | DE34: 0 | DP34: 0 | DV34: =DH14 -> 0
K35: E | L35: Med reduceret vind | N35: 5 | O35: 0 | P35: 0 | Q35: 4 | R35: 3 | S35: 0.47 | BJ35: F | BK35: 0.651156345 | BL35: 0.15 | BM35: 0.1764705882 | BN35: 0.5 | BO35: 0.135 | BP35: 0.15 | BQ35: 2.5 | BR35: 2.5 | BS35: FALSE | BT35: 0.5 | BU35: 0.6 | BV35: 1 | BW35: 0.08333333333 | BX35: 0.08333333333 | BY35: 0.5516666667 | BZ35: 0.5666666667 | CA35: 0.017 | CB35: 0.02382352941 | CC35: 0.0085 | CD35: 0.02382352941 | CE35: 0.0102 | CF35: 0.02382352941 | CG35: 0.00047 | CH35: 1.829584775e-06 | CI35: 0.2272727273 | CJ35: 0 | CK35: 0.2727272727 | CL35: 0.0544 | CM35: 0.001299903114 | CN35: -0.01557376274 | CO35: 0.7409070961 | CP35: 0.0544 | CQ35: 0.001299903114 | CR35: -0.01557376274 | CS35: 0.7409070961 | CT35: 0.0544 | CU35: 0.00130031782 | CV35: -0.01569443214 | CW35: 0.7410277655 | CX35: 0 | CY35: 0 | CZ35: 0 | DA35: 0 | DB35: 0 | DC35: 0 | DD35: 0 | DE35: 0 | DP35: 0 | DW35: =DH15 -> 0
K36: F | N36: 5 | O36: 12 | P36: 0 | Q36: 13.6 | R36: 10.2 | S36: =S35 -> 0.47 | BJ36: G | BK36: 0.651156345 | BL36: 0.15 | BM36: 0.1764705882 | BN36: 0.5 | BO36: 0.135 | BP36: 0.15 | BQ36: 2.5 | BR36: 2.5 | BS36: FALSE | BT36: 0.5 | BU36: 0.6 | BV36: 1 | BW36: 0.08333333333 | BX36: 0.08333333333 | BY36: 0.5516666667 | BZ36: 0.5666666667 | CA36: 0.017 | CB36: 0.02382352941 | CC36: 0.0085 | CD36: 0.02382352941 | CE36: 0.0102 | CF36: 0.02382352941 | CG36: 0.00047 | CH36: 1.829584775e-06 | CI36: 0.2272727273 | CJ36: 0 | CK36: 0.2727272727 | CL36: 0.0544 | CM36: 0.001299903114 | CN36: -0.01557376274 | CO36: 0.7409070961 | CP36: 0.0544 | CQ36: 0.001299903114 | CR36: -0.01557376274 | CS36: 0.7409070961 | CT36: 0.0544 | CU36: 0.00130031782 | CV36: -0.01569443214 | CW36: 0.7410277655 | CX36: 0 | CY36: 0 | CZ36: 0 | DA36: 0 | DB36: 0 | DC36: 0 | DD36: 0 | DE36: 0 | DP36: 0 | DX36: =DH16 -> 0
K37: G | N37: 5 | O37: 12 | P37: 0 | Q37: 13.6 | R37: 10.2 | S37: =S36 -> 0.47 | U37: Vejledning: | V37: Helvægge og dæk af letbeton; bærevene og stabilitet. Dansk Beton, Letbetongruppen - BIH | AQ37: x | AR37: y | AS37: x | AT37: y | AU37: x | AV37: y | AW37: x | AX37: y | AY37: x | AZ37: y | BA37: x | BB37: y | BC37: x | BD37: y | BE37: x | BF37: y | BJ37: H | BK37: 0.651156345 | BL37: 0.15 | BM37: 0.1764705882 | BN37: 0.5 | BO37: 0.135 | BP37: 0.15 | BQ37: 2.5 | BR37: 2.5 | BS37: FALSE | BT37: 0.5 | BU37: 0.6 | BV37: 1 | BW37: 0.08333333333 | BX37: 0.08333333333 | BY37: 0.5516666667 | BZ37: 0.5666666667 | CA37: 0.02 | CB37: 0.0225 | CC37: 0.01 | CD37: 0.0225 | CE37: 0.012 | CF37: 0.0225 | CG37: 0.00047 | CH37: 1.829584775e-06 | CI37: 0.2272727273 | CJ37: 0 | CK37: 0.2727272727 | CL37: 0.064 | CM37: 0.001443903114 | CN37: -0.0003435870219 | CO37: 0.8536769204 | CP37: 0.064 | CQ37: 0.001443903114 | CR37: -0.0003435870219 | CS37: 0.8536769204 | CT37: 0.064 | CU37: 0.00144431782 | CV37: -0.000466229367 | CW37: 0.8537995627 | CX37: 0 | CY37: 0 | CZ37: 0 | DA37: 0 | DB37: 0 | DC37: 0 | DD37: 0 | DE37: 0 | DP37: 0 | DY37: =DH17 -> 0
K38: H | N38: 5 | O38: 15 | P38: 0 | Q38: 16 | R38: 12 | S38: =S37 -> 0.47 | AK38: VÆGFELT: | AL38: 1 | AQ38: =AR10 -> 0 | AR38: =AS10 -> 0 | AS38: =AR10 -> 0 | AT38: =AS10 -> 0 | AU38: =AS38 -> 0 | AV38: =AT38 -> 0 | AW38: =AS38 -> 0 | AX38: =AT38 -> 0 | AY38: =AS38 -> 0 | AZ38: =AT38 -> 0 | BA38: =AS38 -> 0 | BB38: =AT38 -> 0 | BC38: =BA38 -> 0 | BD38: =BB38 -> 0 | BE38: =BC38 -> 0 | BF38: =BD38 -> 0 | BJ38: I | BK38: 0.651156345 | BL38: 0.15 | BM38: 0.1764705882 | BN38: 0.5 | BO38: 0.135 | BP38: 0.15 | BQ38: 2.5 | BR38: 2.5 | BS38: FALSE | BT38: 0.5 | BU38: 0.6 | BV38: 1 | BW38: 0.08333333333 | BX38: 0.08333333333 | BY38: 0.5516666667 | BZ38: 0.5666666667 | CA38: 0.02 | CB38: 0.0225 | CC38: 0.01 | CD38: 0.0225 | CE38: 0.012 | CF38: 0.0225 | CG38: 0.00047 | CH38: 1.829584775e-06 | CI38: 0.2272727273 | CJ38: 0 | CK38: 0.2727272727 | CL38: 0.064 | CM38: 0.001443903114 | CN38: -0.0003435870219 | CO38: 0.8536769204 | CP38: 0.064 | CQ38: 0.001443903114 | CR38: -0.0003435870219 | CS38: 0.8536769204 | CT38: 0.064 | CU38: 0.00144431782 | CV38: -0.000466229367 | CW38: 0.8537995627 | CX38: 0 | CY38: 0 | CZ38: 0 | DA38: 0 | DB38: 0 | DC38: 0 | DD38: 0 | DE38: 0 | DP38: 0 | DZ38: =DH18 -> 0
K39: I | N39: 5 | O39: 15 | P39: 0 | Q39: 16 | R39: 12 | S39: =S38 -> 0.47 | AQ39: =AR15 -> 7000 | AR39: 0 | AS39: =AV10 -> 1250 | AT39: =AT38 -> 0 | AU39: 1250 | AV39: 0 | AW39: 1250 | AX39: 0 | AY39: 1250 | AZ39: 0 | BA39: =AR11 -> 0 | BB39: =AT39 -> 0 | BC39: 0 | BD39: 0 | BE39: =AT10 -> 5500 | BF39: 0 | BI39: Felt 4 | BK39: =$R$13/1000 -> 0.651156345 | BL39: =$M$19/1000 -> 0.15 | BM39: =$BF$107/1000 -> 3 | BN39: =($BF$11-$BF$10)/1000 -> 0 | BO39: =($BF$16-$BF$17)/1000 -> 0 | BP39: =($BF$12-$BF$13)/1000 -> 0 | BQ39: =$BG$16/1000 -> 1000 | BR39: =$BG$13/1000 -> 1000 | BS39: FALSE | BT39: =BU29 -> 0.6 | BU39: =IF(AND($AP$17,$AS$77=1),$BB$80,0) -> 0.6 | BV39: =BF105 -> 0 | BW39: =BF109/M17 -> 0 | BX39: =BF111/M17 -> 0 | BY39: =BO39+BQ39/6 -> 166.6666667 | BZ39: =BP39+BR39/6 -> 166.6666667 | DP39: =DK10 -> 0 | EA39: =DL10 -> 0
K40: Excentricitet, top (mm): | N40: 60 | O40: 15 | P40: 45 | AQ40: 7000 | AR40: 2500 | AS40: =AS39 -> 1250 | AT40: =AW13 -> 2500 | AU40: 1250 | AV40: 2500 | AW40: 1250 | AX40: 2500 | AY40: 1250 | AZ40: 2500 | BA40: =BA39 -> 0 | BB40: =AS12 -> 0 | BC40: 0 | BD40: 0 | BE40: =BE39 -> 5500 | BF40: =AU13 -> 2500 | BI40: Lasttilfælde | BJ40: =K31 -> A | BK40: =BK39 -> 0.651156345 | BL40: =BL39 -> 0.15 | BM40: =BM39 -> 3 | BN40: =BN39 -> 0 | BO40: =BO39 -> 0 | BP40: =BP39 -> 0 | BQ40: =BQ39 -> 1000 | BR40: =BR39 -> 1000 | BS40: =BS39 -> FALSE | BT40: =BT39 -> 0.6 | BU40: =BU39 -> 0.6 | BV40: =BV39 -> 0 | BW40: =BW39 -> 0 | BX40: =BX39 -> 0 | BY40: =BY39 -> 166.6666667 | BZ40: =BZ39 -> 166.6666667 | CA40: =CA30 -> 0.003 | CB40: =CB30 -> 0.045 | CC40: =CE30 -> 0.0018 | CD40: =CF30 -> 0.045 | CE40: =BB84/1000 -> 0.0018 | CF40: =BC84/1000 -> 0.045 | CG40: =CG30 -> 0.00094 | CH40: =0.125*CG40*BM40^2 -> 0.0010575 | CI40: =IF(BY40+BZ40<=BN40,BY40,MIN(IF(CC40=0,0,BN40*CC40/(CC40+CE40)),BY40)) -> 0 | CJ40: =BN40-CI40-CK40 -> 0 | CK40: =IF(BY40+BZ40<=BN40,BZ40,MIN(IF(CE40=0,0,BN40*CE40/(CC40+CE40)),BZ40)) -> 0 | CL40: =IF(CI40=0,0,CA40+CC40/CI40) -> 0 | CM40: =IF(BS30,IF(CI40=0,CB40*CA40,CB40*CA40+CD40*CC40/CI40)+CH40+IF(BV40=0,CG40*BT40*BM40*IF(BW40>1,0.27,BW40^-1/8-29*BW40^2/800+141*BW40/800)+CG40*BU40*BM40*IF(BX40>1.5,0,BX40^-1/8+2*BX40^2/27-BX40/6),IF(BW40<0.2,CG40*BT40*BM40*0.6*BW40,CG40*BT40*BM40*IF(BW40<1,(1125*BW40^3-3225*BW40^2+3075*BW40-111)/3200,0.27))),0) -> 0 | CN40: =CL40/($BL40)-6*($BK40/($BK40-CL40))*(CM40/$BL40^2) -> 0 | CO40: =CL40/($BL40)+6*($BK40/($BK40-CL40))*(CM40/$BL40^2) -> 0 | CP40: =IF(CJ40=0,CL40,CA40) -> 0 | CQ40: =IF(CJ40=0,CM40,CB40*CA40+CH40+IF(BV40=0,CG40*(BT40+BU40)/BN40,0)) -> 0 | CR40: =CP40/($BL40)-6*($BK40/($BK40-CP40))*(CQ40/$BL40^2) -> 0 | CS40: =CP40/($BL40)+6*($BK40/($BK40-CP40))*(CQ40/$BL40^2) -> 0 | CT40: =IF(CK40=0,0,CA40+CE40/CK40) -> 0 | CU40: =IF(BS30,IF(CK40=0,CB40*CA40,CB40*CA40+CE40*CF40/CK40)+CH40+IF(BV40=0,CG40*BU40*BM40*IF(BX40>1,0.27,BX40^-1/8-29*BX40^2/800+141*BX40/800)+CG40*BT40*BM40*IF(BW40>1.5,0,BW40^-1/8+2*BW40^2/27-BW40/6),IF(BX40<0.2,CG40*BU40*BM40*0.6*BX40,CG40*BU40*BM40*IF(BX40<1,(1125*BX40^3-3225*BX40^2+3075*BX40-111)/3200,0.27))),0) -> 0 | CV40: =CT40/($BL40)-6*($BK40/($BK40-CT40))*(CU40/$BL40^2) -> 0 | CW40: =CT40/($BL40)+6*($BK40/($BK40-CT40))*(CU40/$BL40^2) -> 0 | CX40: =IF($AM$113,IF(DA40=CN40,"#4-venstre",IF(DA40=CR40,"#4-midt","#4-højre")),0) -> 0 | CY40: =IF($AM$113,IF(DA40=CN40,CL40,IF(DA40=CR40,CP40,CT40))*1000,0) -> 0 | CZ40: =IF($AM$113,IF(DA40=CN40,CM40,IF(DA40=CR40,CQ40,CU40))*1000,0) -> 0 | DA40: =IF($AM$113,MIN(CN40,CR40,CV40),0) -> 0 | DB40: =IF($AM$113,IF(CX40=CO40,"#4-venstre",IF(CX40=CS40,"#4-midt","#4-højre")),0) -> 0 | DC40: =IF($AM$113,IF(CX40=CO40,CL40,IF(CX40=CS40,CP40,CT40))*1000,0) -> 0 | DD40: =IF($AM$113,IF(CX40=CO40,CM40,IF(CX40=CS40,CQ40,CU40))*1000,0) -> 0 | DE40: =IF($AM$113,MAX(CO40,CS40,CW40),0) -> 0 | DP40: =DK11 -> 0 | EB40: =DL11 -> 0
K41: Excentricitet, eff. (mm) : | N41: =2*N40/3+$R$11 -> 45 | O41: =2*O40/3+$R$11 -> 15 | P41: =2*P40/3-$R$11 -> 25 | U41: Polyteknisk Forlag 2010 eller www.bef.dk | AQ41: 6850 | AR41: 2500 | AS41: =AS40-$AO$20 -> 1115 | AT41: =AT40 -> 2500 | AU41: 1115 | AV41: 2500 | AW41: 1115 | AX41: 2500 | AY41: 1115 | AZ41: 2500 | BA41: =BA40-$AO$20 -> -135 | BB41: =BB40 -> 0 | BC41: -135 | BD41: 0 | BE41: =BE40-$AO$20 -> 5365 | BF41: =BF40 -> 2500 | BJ41: =K32 -> B | BK41: =BK40 -> 0.651156345 | BL41: 0.15 | BM41: =BM40 -> 3 | BN41: =BN40 -> 0 | BO41: 0 | BP41: 0 | BQ41: 1000 | BR41: 1000 | BS41: FALSE | BT41: 0.6 | BU41: 0.6 | BV41: 0 | BW41: 0 | BX41: 0 | BY41: 166.6666667 | BZ41: 166.6666667 | CA41: 0.004 | CB41: 0.045 | CC41: =CE31 -> 0.0024 | CD41: =CF31 -> 0.045 | CE41: =BB85/1000 -> 0.0024 | CF41: =BC85/1000 -> 0.045 | CG41: 0.00094 | CH41: 0.0010575 | CI41: =IF(BY41+BZ41<=BN41,BY41,MIN(IF(CC41=0,0,BN41*CC41/(CC41+CE41)),BY41)) -> 0 | CJ41: 0 | CK41: =IF(BY41+BZ41<=BN41,BZ41,MIN(IF(CE41=0,0,BN41*CE41/(CC41+CE41)),BZ41)) -> 0 | CL41: =IF(CI41=0,0,CA41+CC41/CI41) -> 0 | CM41: =IF(BS31,IF(CI41=0,CB41*CA41,CB41*CA41+CD41*CC41/CI41)+CH41+IF(BV41=0,CG41*BT41*BM41*IF(BW41>1,0.27,BW41^-1/8-29*BW41^2/800+141*BW41/800)+CG41*BU41*BM41*IF(BX41>1.5,0,BX41^-1/8+2*BX41^2/27-BX41/6),IF(BW41<0.2,CG41*BT41*BM41*0.6*BW41,CG41*BT41*BM41*IF(BW41<1,(1125*BW41^3-3225*BW41^2+3075*BW41-111)/3200,0.27))),0) -> 0 | CN41: =CL41/($BL41)-6*($BK41/($BK41-CL41))*(CM41/$BL41^2) -> 0 | CO41: =CL41/($BL41)+6*($BK41/($BK41-CL41))*(CM41/$BL41^2) -> 0 | CP41: =IF(CJ41=0,CL41,CA41) -> 0 | CQ41: =IF(CJ41=0,CM41,CB41*CA41+CH41+IF(BV41=0,CG41*(BT41+BU41)/BN41,0)) -> 0 | CR41: =CP41/($BL41)-6*($BK41/($BK41-CP41))*(CQ41/$BL41^2) -> 0 | CS41: =CP41/($BL41)+6*($BK41/($BK41-CP41))*(CQ41/$BL41^2) -> 0 | CT41: =IF(CK41=0,0,CA41+CE41/CK41) -> 0 | CU41: =IF(BS31,IF(CK41=0,CB41*CA41,CB41*CA41+CE41*CF41/CK41)+CH41+IF(BV41=0,CG41*BU41*BM41*IF(BX41>1,0.27,BX41^-1/8-29*BX41^2/800+141*BX41/800)+CG41*BT41*BM41*IF(BW41>1.5,0,BW41^-1/8+2*BW41^2/27-BW41/6),IF(BX41<0.2,CG41*BU41*BM41*0.6*BX41,CG41*BU41*BM41*IF(BX41<1,(1125*BX41^3-3225*BX41^2+3075*BX41-111)/3200,0.27))),0) -> 0 | CV41: =CT41/($BL41)-6*($BK41/($BK41-CT41))*(CU41/$BL41^2) -> 0 | CW41: =CT41/($BL41)+6*($BK41/($BK41-CT41))*(CU41/$BL41^2) -> 0 | CX41: =IF($AM$113,IF(DA41=CN41,"#4-venstre",IF(DA41=CR41,"#4-midt","#4-højre")),0) -> 0 | CY41: =IF($AM$113,IF(DA41=CN41,CL41,IF(DA41=CR41,CP41,CT41))*1000,0) -> 0 | CZ41: =IF($AM$113,IF(DA41=CN41,CM41,IF(DA41=CR41,CQ41,CU41))*1000,0) -> 0 | DA41: =IF($AM$113,MIN(CN41,CR41,CV41),0) -> 0 | DB41: =IF($AM$113,IF(CX41=CO41,"#4-venstre",IF(CX41=CS41,"#4-midt","#4-højre")),0) -> 0 | DC41: =IF($AM$113,IF(CX41=CO41,CL41,IF(CX41=CS41,CP41,CT41))*1000,0) -> 0 | DD41: =IF($AM$113,IF(CX41=CO41,CM41,IF(CX41=CS41,CQ41,CU41))*1000,0) -> 0 | DE41: =IF($AM$113,MAX(CO41,CS41,CW41),0) -> 0 | DP41: 0 | EC41: =DL12 -> 0
AQ42: 6850 | AR42: 3000 | AS42: =AS41 -> 1115 | AT42: =AR42 -> 3000 | AU42: 1115 | AV42: 3000 | AW42: 1115 | AX42: 3000 | AY42: 1115 | AZ42: 3000 | BA42: =BA41 -> -135 | BB42: =AT42 -> 3000 | BC42: -135 | BD42: 3000 | BE42: =BE41 -> 5365 | BF42: 3000 | BJ42: C | BK42: 0.651156345 | BL42: 0.15 | BM42: 3 | BN42: 0 | BO42: 0 | BP42: 0 | BQ42: 1000 | BR42: 1000 | BS42: FALSE | BT42: 0.6 | BU42: 0.6 | BV42: 0 | BW42: 0 | BX42: 0 | BY42: 166.6666667 | BZ42: 166.6666667 | CA42: 0.016 | CB42: 0.0225 | CC42: 0.0096 | CD42: 0.0225 | CE42: 0.0096 | CF42: 0.0225 | CG42: 0.00094 | CH42: 0.0010575 | CI42: 0 | CJ42: 0 | CK42: 0 | CL42: 0 | CM42: 0 | CN42: 0 | CO42: 0 | CP42: 0 | CQ42: 0 | CR42: 0 | CS42: 0 | CT42: 0 | CU42: 0 | CV42: 0 | CW42: 0 | CX42: 0 | CY42: 0 | CZ42: 0 | DA42: 0 | DB42: 0 | DC42: 0 | DD42: 0 | DE42: 0 | DP42: 0 | ED42: =DL13 -> 0
AQ43: 150 | AR43: 3000 | AS43: =AQ43 -> 150 | AT43: =AR43 -> 3000 | AU43: 150 | AV43: 3000 | AW43: 150 | AX43: 3000 | AY43: 150 | AZ43: 3000 | BA43: =AS43 -> 150 | BB43: 3000 | BC43: 150 | BD43: 3000 | BE43: =BC43 -> 150 | BF43: 3000 | BJ43: D | BK43: 0.651156345 | BL43: 0.15 | BM43: 3 | BN43: 0 | BO43: 0 | BP43: 0 | BQ43: 1000 | BR43: 1000 | BS43: FALSE | BT43: 0.6 | BU43: 0.6 | BV43: 0 | BW43: 0 | BX43: 0 | BY43: 166.6666667 | BZ43: 166.6666667 | CA43: 0.016 | CB43: 0.0225 | CC43: 0.0096 | CD43: 0.0225 | CE43: 0.0096 | CF43: 0.0225 | CG43: 0.00094 | CH43: 0.0010575 | CI43: 0 | CJ43: 0 | CK43: 0 | CL43: 0 | CM43: 0 | CN43: 0 | CO43: 0 | CP43: 0 | CQ43: 0 | CR43: 0 | CS43: 0 | CT43: 0 | CU43: 0 | CV43: 0 | CW43: 0 | CX43: 0 | CY43: 0 | CZ43: 0 | DA43: 0 | DB43: 0 | DC43: 0 | DD43: 0 | DE43: 0 | DP43: 0 | EE43: =DL14 -> 0
AQ44: 150 | AR44: 2500 | AS44: =AQ44 -> 150 | AT44: =AR44 -> 2500 | AU44: 150 | AV44: 2500 | AW44: 150 | AX44: 2500 | AY44: 150 | AZ44: 2500 | BA44: =AS44 -> 150 | BB44: 2500 | BC44: 150 | BD44: 2500 | BE44: =BC44 -> 150 | BF44: 2500 | BJ44: E | BK44: 0.651156345 | BL44: 0.15 | BM44: 3 | BN44: 0 | BO44: 0 | BP44: 0 | BQ44: 1000 | BR44: 1000 | BS44: FALSE | BT44: 0.6 | BU44: 0.6 | BV44: 0 | BW44: 0 | BX44: 0 | BY44: 166.6666667 | BZ44: 166.6666667 | CA44: 0.005 | CB44: 0.045 | CC44: 0.003 | CD44: 0.045 | CE44: 0.003 | CF44: 0.045 | CG44: 0.00047 | CH44: 0.00052875 | CI44: 0 | CJ44: 0 | CK44: 0 | CL44: 0 | CM44: 0 | CN44: 0 | CO44: 0 | CP44: 0 | CQ44: 0 | CR44: 0 | CS44: 0 | CT44: 0 | CU44: 0 | CV44: 0 | CW44: 0 | CX44: 0 | CY44: 0 | CZ44: 0 | DA44: 0 | DB44: 0 | DC44: 0 | DD44: 0 | DE44: 0 | DP44: 0 | EF44: =DL15 -> 0
AQ45: 0 | AR45: 2500 | AS45: =AQ45 -> 0 | AT45: =AR45 -> 2500 | AU45: 0 | AV45: 2500 | AW45: 0 | AX45: 2500 | AY45: 0 | AZ45: 2500 | BA45: =AS45 -> 0 | BB45: 2500 | BC45: 0 | BD45: 2500 | BE45: =BC45 -> 0 | BF45: 2500 | BJ45: F | BK45: 0.651156345 | BL45: 0.15 | BM45: 3 | BN45: 0 | BO45: 0 | BP45: 0 | BQ45: 1000 | BR45: 1000 | BS45: FALSE | BT45: 0.6 | BU45: 0.6 | BV45: 0 | BW45: 0 | BX45: 0 | BY45: 166.6666667 | BZ45: 166.6666667 | CA45: 0.017 | CB45: 0.02382352941 | CC45: 0.0102 | CD45: 0.02382352941 | CE45: 0.0102 | CF45: 0.02382352941 | CG45: 0.00047 | CH45: 0.00052875 | CI45: 0 | CJ45: 0 | CK45: 0 | CL45: 0 | CM45: 0 | CN45: 0 | CO45: 0 | CP45: 0 | CQ45: 0 | CR45: 0 | CS45: 0 | CT45: 0 | CU45: 0 | CV45: 0 | CW45: 0 | CX45: 0 | CY45: 0 | CZ45: 0 | DA45: 0 | DB45: 0 | DC45: 0 | DD45: 0 | DE45: 0 | DP45: 0 | EG45: =DL16 -> 0
AQ46: 0 | AR46: 0 | AS46: =AQ46 -> 0 | AT46: =AR46 -> 0 | AU46: 0 | AV46: 0 | AW46: 0 | AX46: 0 | AY46: 0 | AZ46: 0 | BA46: =AS46 -> 0 | BB46: 0 | BC46: 0 | BD46: 0 | BE46: =BC46 -> 0 | BF46: 0 | BJ46: G | BK46: 0.651156345 | BL46: 0.15 | BM46: 3 | BN46: 0 | BO46: 0 | BP46: 0 | BQ46: 1000 | BR46: 1000 | BS46: FALSE | BT46: 0.6 | BU46: 0.6 | BV46: 0 | BW46: 0 | BX46: 0 | BY46: 166.6666667 | BZ46: 166.6666667 | CA46: 0.017 | CB46: 0.02382352941 | CC46: 0.0102 | CD46: 0.02382352941 | CE46: 0.0102 | CF46: 0.02382352941 | CG46: 0.00047 | CH46: 0.00052875 | CI46: 0 | CJ46: 0 | CK46: 0 | CL46: 0 | CM46: 0 | CN46: 0 | CO46: 0 | CP46: 0 | CQ46: 0 | CR46: 0 | CS46: 0 | CT46: 0 | CU46: 0 | CV46: 0 | CW46: 0 | CX46: 0 | CY46: 0 | CZ46: 0 | DA46: 0 | DB46: 0 | DC46: 0 | DD46: 0 | DE46: 0 | DP46: 0 | EH46: =DL17 -> 0
AK47: VÆGFELT: | AL47: 2 | AQ47: 1000000 | AR47: 1000000 | AS47: =AV11 -> 2750 | AT47: 0 | AU47: =AV11 -> 2750 | AV47: 0 | AW47: =AU47 -> 2750 | AX47: =AV47 -> 0 | AY47: =AV11 -> 2750 | AZ47: 0 | BA47: =AR14 -> 0 | BB47: 0 | BC47: 0 | BD47: 0 | BE47: =AT11 -> 6500 | BF47: 0 | BJ47: H | BK47: 0.651156345 | BL47: 0.15 | BM47: 3 | BN47: 0 | BO47: 0 | BP47: 0 | BQ47: 1000 | BR47: 1000 | BS47: FALSE | BT47: 0.6 | BU47: 0.6 | BV47: 0 | BW47: 0 | BX47: 0 | BY47: 166.6666667 | BZ47: 166.6666667 | CA47: 0.02 | CB47: 0.0225 | CC47: 0.012 | CD47: 0.0225 | CE47: 0.012 | CF47: 0.0225 | CG47: 0.00047 | CH47: 0.00052875 | CI47: 0 | CJ47: 0 | CK47: 0 | CL47: 0 | CM47: 0 | CN47: 0 | CO47: 0 | CP47: 0 | CQ47: 0 | CR47: 0 | CS47: 0 | CT47: 0 | CU47: 0 | CV47: 0 | CW47: 0 | CX47: 0 | CY47: 0 | CZ47: 0 | DA47: 0 | DB47: 0 | DC47: 0 | DD47: 0 | DE47: 0 | DP47: 0 | EI47: =DL18 -> 0
AQ48: 1000000 | AR48: 1000000 | AS48: =AR15 -> 7000 | AT48: 0 | AU48: =AR11 -> 0 | AV48: =AS11 -> 0 | AW48: 0 | AX48: 0 | AY48: =AT10 -> 5500 | AZ48: 0 | BA48: =AS48 -> 7000 | BB48: 0 | BC48: =AY48 -> 5500 | BD48: 0 | BE48: =AS48 -> 7000 | BF48: 0 | BJ48: I | BK48: 0.651156345 | BL48: 0.15 | BM48: 3 | BN48: 0 | BO48: 0 | BP48: 0 | BQ48: 1000 | BR48: 1000 | BS48: FALSE | BT48: 0.6 | BU48: 0.6 | BV48: 0 | BW48: 0 | BX48: 0 | BY48: 166.6666667 | BZ48: 166.6666667 | CA48: 0.02 | CB48: 0.0225 | CC48: 0.012 | CD48: 0.0225 | CE48: 0.012 | CF48: 0.0225 | CG48: 0.00047 | CH48: 0.00052875 | CI48: 0 | CJ48: 0 | CK48: 0 | CL48: 0 | CM48: 0 | CN48: 0 | CO48: 0 | CP48: 0 | CQ48: 0 | CR48: 0 | CS48: 0 | CT48: 0 | CU48: 0 | CV48: 0 | CW48: 0 | CX48: 0 | CY48: 0 | CZ48: 0 | DA48: 0 | DB48: 0 | DC48: 0 | DD48: 0 | DE48: 0
AQ49: 1000000 | AR49: 1000000 | AS49: 7000 | AT49: 2500 | AU49: =AU48 -> 0 | AV49: =AS12 -> 0 | AW49: 0 | AX49: 0 | AY49: =AY48 -> 5500 | AZ49: =AU13 -> 2500 | BA49: 7000 | BB49: 2500 | BC49: 5500 | BD49: 2500 | BE49: 7000 | BF49: 2500
AQ50: 1000000 | AR50: 1000000 | AS50: 6850 | AT50: 2500 | AU50: =AU49-$AO$20 -> -135 | AV50: =AV49 -> 0 | AW50: -135 | AX50: 0 | AY50: =AY49-$AO$20 -> 5365 | AZ50: =AZ49 -> 2500 | BA50: 6850 | BB50: 2500 | BC50: 5365 | BD50: 2500 | BE50: 6850 | BF50: 2500
AQ51: 1000000 | AR51: 1000000 | AS51: 6850 | AT51: 3000 | AU51: =AU50 -> -135 | AV51: =AT51 -> 3000 | AW51: -135 | AX51: 3000 | AY51: =AY50 -> 5365 | AZ51: =AX51 -> 3000 | BA51: 6850 | BB51: 3000 | BC51: 5365 | BD51: 3000 | BE51: 6850 | BF51: 3000
AQ52: 1000000 | AR52: 1000000 | AS52: =AS47+$AO$20 -> 2885 | AT52: =AT51 -> 3000 | AU52: =AS52 -> 2885 | AV52: =AT52 -> 3000 | AW52: 2885 | AX52: 3000 | AY52: =AS52 -> 2885 | AZ52: 3000 | BA52: =AR13+$AO$20 -> 135 | BB52: =BB51 -> 3000 | BC52: =BA52 -> 135 | BD52: 3000 | BE52: =BE47+$AO$20 -> 6635 | BF52: =BF51 -> 3000
AQ53: 1000000 | AR53: 1000000 | AS53: =AS52 -> 2885 | AT53: =AW12 -> 2500 | AU53: =AS53 -> 2885 | AV53: =AT53 -> 2500 | AW53: 2885 | AX53: 2500 | AY53: 2885 | AZ53: 2500 | BA53: =BA52 -> 135 | BB53: =AS13 -> 0 | BC53: 135 | BD53: 0 | BE53: =BE52 -> 6635 | BF53: =AU12 -> 2500 | CI53: Lodret bæreevne | CL53: Venstre | CP53: Midt | CT53: Højre | CX53: Kontrol
AQ54: 1000000 | AR54: 1000000 | AS54: =AS53-$AO$20 -> 2750 | AT54: =AT53 -> 2500 | AU54: =AS54 -> 2750 | AV54: =AT54 -> 2500 | AW54: 2750 | AX54: 2500 | AY54: 2750 | AZ54: 2500 | BA54: =BA53-$AO$20 -> 0 | BB54: =BB53 -> 0 | BC54: 0 | BD54: 0 | BE54: =BE53-$AO$20 -> 6500 | BF54: =BF53 -> 2500 | CI54: fck | CJ54: =M9 -> 10 | CK54: FELT #1: | CL54: n-s1 | CM54: e-t1 | CN54: ks | CO54: rd | CP54: n-s0 | CQ54: e-t0 | CR54: ks | CS54: rd | CT54: n-s2 | CU54: e-t2 | CV54: ks | CW54: rd | CX54: =MAX(CX55:CX63) -> 0 | CY54: =IF(MAX(CX55:CX63)=0,"",CK54&"Last "&CY55&CY56&CY57&CY58&CY59&CY60&CY61&CY62&CY63) -> 
AQ55: 1000000 | AR55: 1000000 | AS55: =AS47 -> 2750 | AT55: =AT47 -> 0 | AU55: =AS55 -> 2750 | AV55: =AT55 -> 0 | AW55: 2750 | AX55: 0 | AY55: 2750 | AZ55: 0 | BA55: =BA47 -> 0 | BB55: =BB47 -> 0 | BC55: 0 | BD55: 0 | BE55: =BE47 -> 6500 | BF55: =BF47 -> 0 | CI55: Ecm | CJ55: =M11 -> 14422.24875 | CK55: A, | CL55: =IF(CI10=0,0,CA10+CC10/CI10)*1000 -> 7.235294118 | CM55: =IF(CL55=0,0,IF(CI10=0,0,CB10*CA10+CD10*CC10/CI10)/CL55)*1000000 -> 45 | CN55: =IF($CJ$60-2*CM55<=0,0,1/(1+12*($CJ$54/($CJ$55*PI()^2)*($CJ$56/($CJ$60-2*CM55))^2))) -> 0.3217915668 | CO55: =CN55*($CJ$60-2*CM55)*$R$8 -> 124.5644775 | CP55: =IF(CJ10=0,0,CA10)*1000 -> 3 | CQ55: =IF(CP55=0,0,IF(CJ10=0,0,CB10*CA10)/CP55)*1000000 -> 45 | CR55: =IF($CJ$60-2*CQ55<=0,0,1/(1+12*($CJ$54/($CJ$55*PI()^2)*($CJ$56/($CJ$60-2*CQ55))^2))) -> 0.3217915668 | CS55: =CR55*($CJ$60-2*CQ55)*$R$8 -> 124.5644775 | CT55: =IF(CK10=0,0,CA10+CE10/CK10)*1000 -> 7.078549849 | CU55: =IF(CT55=0,0,IF(CK10=0,0,CB10*CA10+CF10*CE10/CK10)/CT55)*1000000 -> 45 | CV55: =IF($CJ$60-2*CU55<=0,0,1/(1+12*($CJ$54/($CJ$55*PI()^2)*($CJ$56/($CJ$60-2*CU55))^2))) -> 0.3217915668 | CW55: =CV55*($CJ$60-2*CU55)*$R$8 -> 124.5644775 | CX55: =IF(OR(CL55>CO55,CP55>CS55,CT55>CW55),1,0) -> 0 | CY55: =IF(CX55=0,"",CK55) -> 
AK56: VÆGFELT: | AL56: 3 | AQ56: 1000000 | AR56: 1000000 | AS56: 1000000 | AT56: 1000000 | AU56: =BA47 -> 0 | AV56: =BB47 -> 0 | AW56: =BC47 -> 0 | AX56: =BD47 -> 0 | AY56: =BE47 -> 6500 | AZ56: =BF47 -> 0 | BA56: 1000000 | BB56: 1000000 | BC56: =AY56 -> 6500 | BD56: =AZ56 -> 0 | BE56: 1000000 | BF56: 1000000 | CI56: L #1 | CJ56: =$R$10 -> 3000 | CK56: B, | CL56: =IF(CI11=0,0,CA11+CC11/CI11)*1000 -> 9.647058824 | CM56: =IF(CL56=0,0,IF(CI11=0,0,CB11*CA11+CD11*CC11/CI11)/CL56)*1000000 -> 45 | CN56: 0.3217915668 | CO56: 124.5644775 | CP56: =IF(CJ11=0,0,CA11)*1000 -> 4 | CQ56: =IF(CP56=0,0,IF(CJ11=0,0,CB11*CA11)/CP56)*1000000 -> 45 | CR56: 0.3217915668 | CS56: 124.5644775 | CT56: =IF(CK11=0,0,CA11+CE11/CK11)*1000 -> 9.438066465 | CU56: =IF(CT56=0,0,IF(CK11=0,0,CB11*CA11+CF11*CE11/CK11)/CT56)*1000000 -> 45 | CV56: 0.3217915668 | CW56: 124.5644775 | CX56: =IF(OR(CL56>CO56,CP56>CS56,CT56>CW56),1,0) -> 0 | CY56: =IF(CX56=0,"",CK56) -> 
AQ57: 1000000 | AR57: 1000000 | AS57: 1000000 | AT57: 1000000 | AU57: 7000 | AV57: 0 | AW57: 5500 | AX57: 0 | AY57: 7000 | AZ57: 0 | BA57: 1000000 | BB57: 1000000 | BC57: =AY57 -> 7000 | BD57: 0 | BE57: 1000000 | BF57: 1000000 | CI57: L #2 | CJ57: =CJ56 -> 3000 | CK57: C, | CL57: 38.58823529 | CM57: 22.5 | CN57: 0.5923481228 | CO57: 401.2680832 | CP57: 16 | CQ57: 22.5 | CR57: 0.5923481228 | CS57: 401.2680832 | CT57: 37.75226586 | CU57: 22.5 | CV57: 0.5923481228 | CW57: 401.2680832 | CX57: 0
AQ58: 1000000 | AR58: 1000000 | AS58: 1000000 | AT58: 1000000 | AU58: 7000 | AV58: 2500 | AW58: 5500 | AX58: 2500 | AY58: 7000 | AZ58: 2500 | BA58: 1000000 | BB58: 1000000 | BC58: 7000 | BD58: 2500 | BE58: 1000000 | BF58: 1000000 | CI58: L #3 | CJ58: =CJ56 -> 3000 | CK58: D, | CL58: 38.58823529 | CM58: 22.5 | CN58: 0.5923481228 | CO58: 401.2680832 | CP58: 16 | CQ58: 22.5 | CR58: 0.5923481228 | CS58: 401.2680832 | CT58: 37.75226586 | CU58: 22.5 | CV58: 0.5923481228 | CW58: 401.2680832 | CX58: 0
AQ59: 1000000 | AR59: 1000000 | AS59: 1000000 | AT59: 1000000 | AU59: 6850 | AV59: 2500 | AW59: 5365 | AX59: 2500 | AY59: 6850 | AZ59: 2500 | BA59: 1000000 | BB59: 1000000 | BC59: 6850 | BD59: 2500 | BE59: 1000000 | BF59: 1000000 | CI59: L #4 | CJ59: =CJ56 -> 3000 | CK59: E, | CL59: 12.05882353 | CM59: 45 | CN59: 0.3217915668 | CO59: 124.5644775 | CP59: 5 | CQ59: 45 | CR59: 0.3217915668 | CS59: 124.5644775 | CT59: 11.79758308 | CU59: 45 | CV59: 0.3217915668 | CW59: 124.5644775 | CX59: 0
AQ60: 1000000 | AR60: 1000000 | AS60: 1000000 | AT60: 1000000 | AU60: 6850 | AV60: 3000 | AW60: 5365 | AX60: 3000 | AY60: 6850 | AZ60: 3000 | BA60: 1000000 | BB60: 1000000 | BC60: 6850 | BD60: 3000 | BE60: 1000000 | BF60: 1000000 | CI60: t | CJ60: =M19 -> 150 | CK60: F, | CL60: 41 | CM60: 23.82352941 | CN60: 0.5799612532 | CO60: 382.9725164 | CP60: 17 | CQ60: 23.82352941 | CR60: 0.5799612532 | CS60: 382.9725164 | CT60: 40.11178248 | CU60: 23.82352941 | CV60: 0.5799612532 | CW60: 382.9725164 | CX60: 0
AQ61: 1000000 | AR61: 1000000 | AS61: 1000000 | AT61: 1000000 | AU61: 135 | AV61: 3000 | AW61: 135 | AX61: 3000 | AY61: 6635 | AZ61: 3000 | BA61: 1000000 | BB61: 1000000 | BC61: 6635 | BD61: 3000 | BE61: 1000000 | BF61: 1000000 | CI61: Ac | CJ61: =CJ60 -> 150 | CK61: G, | CL61: 41 | CM61: 23.82352941 | CN61: 0.5799612532 | CO61: 382.9725164 | CP61: 17 | CQ61: 23.82352941 | CR61: 0.5799612532 | CS61: 382.9725164 | CT61: 40.11178248 | CU61: 23.82352941 | CV61: 0.5799612532 | CW61: 382.9725164 | CX61: 0
AQ62: 1000000 | AR62: 1000000 | AS62: 1000000 | AT62: 1000000 | AU62: 135 | AV62: 0 | AW62: 135 | AX62: 0 | AY62: 6635 | AZ62: 2500 | BA62: 1000000 | BB62: 1000000 | BC62: 6635 | BD62: 2500 | BE62: 1000000 | BF62: 1000000 | CK62: H, | CL62: 48.23529412 | CM62: 22.5 | CN62: 0.5923481228 | CO62: 401.2680832 | CP62: 20 | CQ62: 22.5 | CR62: 0.5923481228 | CS62: 401.2680832 | CT62: 47.19033233 | CU62: 22.5 | CV62: 0.5923481228 | CW62: 401.2680832 | CX62: 0
AQ63: 1000000 | AR63: 1000000 | AS63: 1000000 | AT63: 1000000 | AU63: 0 | AV63: 0 | AW63: 0 | AX63: 0 | AY63: 6500 | AZ63: 2500 | BA63: 1000000 | BB63: 1000000 | BC63: 6500 | BD63: 2500 | BE63: 1000000 | BF63: 1000000 | CK63: I, | CL63: 48.23529412 | CM63: 22.5 | CN63: 0.5923481228 | CO63: 401.2680832 | CP63: 20 | CQ63: 22.5 | CR63: 0.5923481228 | CS63: 401.2680832 | CT63: 47.19033233 | CU63: 22.5 | CV63: 0.5923481228 | CW63: 401.2680832 | CX63: 0
AQ64: 1000000 | AR64: 1000000 | AS64: 1000000 | AT64: 1000000 | AU64: 0 | AV64: 0 | AW64: 0 | AX64: 0 | AY64: 6500 | AZ64: 0 | BA64: 1000000 | BB64: 1000000 | BC64: 6500 | BD64: 0 | BE64: 1000000 | BF64: 1000000 | CK64: FELT #2: | CX64: =MAX(CX65:CX73) -> 0 | CY64: =IF(MAX(CX65:CX73)=0,"",CK64&"Last "&CY65&CY66&CY67&CY68&CY69&CY70&CY71&CY72&CY73) -> 
AK65: VÆGFELT: | AL65: 4 | AQ65: 1000000 | AR65: 1000000 | AS65: 1000000 | AT65: 1000000 | AU65: 1000000 | AV65: 1000000 | AW65: =AY56 -> 6500 | AX65: =AZ56 -> 0 | AY65: 1000000 | AZ65: 1000000 | BA65: 1000000 | BB65: 1000000 | BC65: 1000000 | BD65: 1000000 | BE65: 1000000 | BF65: 1000000 | CK65: A, | CL65: =IF(CI20=0,0,CA20+CC20/CI20)*1000 -> 7.078549849 | CM65: =IF(CL65=0,0,IF(CI20=0,0,CB20*CA20+CD20*CC20/CI20)/CL65)*1000000 -> 45 | CN65: =IF($CJ$60-2*CM65<=0,0,1/(1+12*($CJ$54/($CJ$55*PI()^2)*($CJ$57/($CJ$60-2*CM65))^2))) -> 0.3217915668 | CO65: =CN65*($CJ$60-2*CM65)*$R$8 -> 124.5644775 | CP65: =IF(CJ20=0,0,CA20)*1000 -> 3 | CQ65: =IF(CP65=0,0,IF(CJ20=0,0,CB20*CA20)/CP65)*1000000 -> 45 | CR65: =IF($CJ$60-2*CQ65<=0,0,1/(1+12*($CJ$54/($CJ$55*PI()^2)*($CJ$57/($CJ$60-2*CQ65))^2))) -> 0.3217915668 | CS65: =CR65*($CJ$60-2*CQ65)*$R$8 -> 124.5644775 | CT65: =IF(CK20=0,0,CA20+CE20/CK20)*1000 -> 5.719033233 | CU65: =IF(CT65=0,0,IF(CK20=0,0,CB20*CA20+CF20*CE20/CK20)/CT65)*1000000 -> 45 | CV65: =IF($CJ$60-2*CU65<=0,0,1/(1+12*($CJ$54/($CJ$55*PI()^2)*($CJ$57/($CJ$60-2*CU65))^2))) -> 0.3217915668 | CW65: =CV65*($CJ$60-2*CU65)*$R$8 -> 124.5644775 | CX65: =IF(OR(CL65>CO65,CP65>CS65,CT65>CW65),1,0) -> 0 | CY65: =IF(CX65=0,"",CK65) -> 
AQ66: 1000000 | AR66: 1000000 | AS66: 1000000 | AT66: 1000000 | AU66: 1000000 | AV66: 1000000 | AW66: 7000 | AX66: 0 | AY66: 1000000 | AZ66: 1000000 | BA66: 1000000 | BB66: 1000000 | BC66: 1000000 | BD66: 1000000 | BE66: 1000000 | BF66: 1000000 | CK66: B, | CL66: =IF(CI21=0,0,CA21+CC21/CI21)*1000 -> 9.438066465 | CM66: =IF(CL66=0,0,IF(CI21=0,0,CB21*CA21+CD21*CC21/CI21)/CL66)*1000000 -> 45 | CN66: =IF($CJ$60-2*CM66<=0,0,1/(1+12*($CJ$54/($CJ$55*PI()^2)*($CJ$57/($CJ$60-2*CM66))^2))) -> 0.3217915668 | CO66: =CN66*($CJ$60-2*CM66)*$R$8 -> 124.5644775 | CP66: =IF(CJ21=0,0,CA21)*1000 -> 4 | CQ66: =IF(CP66=0,0,IF(CJ21=0,0,CB21*CA21)/CP66)*1000000 -> 45 | CR66: =IF($CJ$60-2*CQ66<=0,0,1/(1+12*($CJ$54/($CJ$55*PI()^2)*($CJ$57/($CJ$60-2*CQ66))^2))) -> 0.3217915668 | CS66: =CR66*($CJ$60-2*CQ66)*$R$8 -> 124.5644775 | CT66: =IF(CK21=0,0,CA21+CE21/CK21)*1000 -> 7.625377644 | CU66: =IF(CT66=0,0,IF(CK21=0,0,CB21*CA21+CF21*CE21/CK21)/CT66)*1000000 -> 45 | CV66: =IF($CJ$60-2*CU66<=0,0,1/(1+12*($CJ$54/($CJ$55*PI()^2)*($CJ$57/($CJ$60-2*CU66))^2))) -> 0.3217915668 | CW66: =CV66*($CJ$60-2*CU66)*$R$8 -> 124.5644775 | CX66: =IF(OR(CL66>CO66,CP66>CS66,CT66>CW66),1,0) -> 0
AQ67: 1000000 | AR67: 1000000 | AS67: 1000000 | AT67: 1000000 | AU67: 1000000 | AV67: 1000000 | AW67: 7000 | AX67: 2500 | AY67: 1000000 | AZ67: 1000000 | BA67: 1000000 | BB67: 1000000 | BC67: 1000000 | BD67: 1000000 | BE67: 1000000 | BF67: 1000000 | CK67: C, | CL67: 37.75226586 | CM67: 22.5 | CN67: 0.5923481228 | CO67: 401.2680832 | CP67: 16 | CQ67: 22.5 | CR67: 0.5923481228 | CS67: 401.2680832 | CT67: 30.50151057 | CU67: 22.5 | CV67: 0.5923481228 | CW67: 401.2680832 | CX67: 0
AQ68: 1000000 | AR68: 1000000 | AS68: 1000000 | AT68: 1000000 | AU68: 1000000 | AV68: 1000000 | AW68: 6850 | AX68: 2500 | AY68: 1000000 | AZ68: 1000000 | BA68: 1000000 | BB68: 1000000 | BC68: 1000000 | BD68: 1000000 | BE68: 1000000 | BF68: 1000000 | CK68: D, | CL68: 37.75226586 | CM68: 22.5 | CN68: 0.5923481228 | CO68: 401.2680832 | CP68: 16 | CQ68: 22.5 | CR68: 0.5923481228 | CS68: 401.2680832 | CT68: 30.50151057 | CU68: 22.5 | CV68: 0.5923481228 | CW68: 401.2680832 | CX68: 0
AQ69: 1000000 | AR69: 1000000 | AS69: 1000000 | AT69: 1000000 | AU69: 1000000 | AV69: 1000000 | AW69: 6850 | AX69: 3000 | AY69: 1000000 | AZ69: 1000000 | BA69: 1000000 | BB69: 1000000 | BC69: 1000000 | BD69: 1000000 | BE69: 1000000 | BF69: 1000000 | CK69: E, | CL69: 11.79758308 | CM69: 45 | CN69: 0.3217915668 | CO69: 124.5644775 | CP69: 5 | CQ69: 45 | CR69: 0.3217915668 | CS69: 124.5644775 | CT69: 9.531722054 | CU69: 45 | CV69: 0.3217915668 | CW69: 124.5644775 | CX69: 0
AQ70: 1000000 | AR70: 1000000 | AS70: 1000000 | AT70: 1000000 | AU70: 1000000 | AV70: 1000000 | AW70: 6635 | AX70: 3000 | AY70: 1000000 | AZ70: 1000000 | BA70: 1000000 | BB70: 1000000 | BC70: 1000000 | BD70: 1000000 | BE70: 1000000 | BF70: 1000000 | CK70: F, | CL70: 40.11178248 | CM70: 23.82352941 | CN70: 0.5799612532 | CO70: 382.9725164 | CP70: 17 | CQ70: 23.82352941 | CR70: 0.5799612532 | CS70: 382.9725164 | CT70: 32.40785498 | CU70: 23.82352941 | CV70: 0.5799612532 | CW70: 382.9725164 | CX70: 0
AQ71: 1000000 | AR71: 1000000 | AS71: 1000000 | AT71: 1000000 | AU71: 1000000 | AV71: 1000000 | AW71: 6635 | AX71: 2500 | AY71: 1000000 | AZ71: 1000000 | BA71: 1000000 | BB71: 1000000 | BC71: 1000000 | BD71: 1000000 | BE71: 1000000 | BF71: 1000000 | CK71: G, | CL71: 40.11178248 | CM71: 23.82352941 | CN71: 0.5799612532 | CO71: 382.9725164 | CP71: 17 | CQ71: 23.82352941 | CR71: 0.5799612532 | CS71: 382.9725164 | CT71: 32.40785498 | CU71: 23.82352941 | CV71: 0.5799612532 | CW71: 382.9725164 | CX71: 0
AQ72: 1000000 | AR72: 1000000 | AS72: 1000000 | AT72: 1000000 | AU72: 1000000 | AV72: 1000000 | AW72: 6500 | AX72: 2500 | AY72: 1000000 | AZ72: 1000000 | BA72: 1000000 | BB72: 1000000 | BC72: 1000000 | BD72: 1000000 | BE72: 1000000 | BF72: 1000000 | CK72: H, | CL72: 47.19033233 | CM72: 22.5 | CN72: 0.5923481228 | CO72: 401.2680832 | CP72: 20 | CQ72: 22.5 | CR72: 0.5923481228 | CS72: 401.2680832 | CT72: 38.12688822 | CU72: 22.5 | CV72: 0.5923481228 | CW72: 401.2680832 | CX72: 0
AQ73: 1000000 | AR73: 1000000 | AS73: 1000000 | AT73: 1000000 | AU73: 1000000 | AV73: 1000000 | AW73: 6500 | AX73: 0 | AY73: 1000000 | AZ73: 1000000 | BA73: 1000000 | BB73: 1000000 | BC73: 1000000 | BD73: 1000000 | BE73: 1000000 | BF73: 1000000 | CK73: I, | CL73: 47.19033233 | CM73: 22.5 | CN73: 0.5923481228 | CO73: 401.2680832 | CP73: 20 | CQ73: 22.5 | CR73: 0.5923481228 | CS73: 401.2680832 | CT73: 38.12688822 | CU73: 22.5 | CV73: 0.5923481228 | CW73: 401.2680832 | CX73: 0
CK74: FELT #3: | CX74: =MAX(CX75:CX83) -> 0 | CY74: =IF(MAX(CX75:CX83)=0,"",CK74&"Last "&CY75&CY76&CY77&CY78&CY79&CY80&CY81&CY82&CY83) -> 
CK75: A, | CL75: =IF(CI30=0,0,CA30+CC30/CI30)*1000 -> 9.6 | CM75: =IF(CL75=0,0,IF(CI30=0,0,CB30*CA30+CD30*CC30/CI30)/CL75)*1000000 -> 45 | CN75: =IF($CJ$60-2*CM75<=0,0,1/(1+12*($CJ$54/($CJ$55*PI()^2)*($CJ$58/($CJ$60-2*CM75))^2))) -> 0.3217915668 | CO75: =CN75*($CJ$60-2*CM75)*$R$8 -> 124.5644775 | CP75: =IF(CJ30=0,0,CA30)*1000 -> 0 | CQ75: =IF(CP75=0,0,IF(CJ30=0,0,CB30*CA30)/CP75)*1000000 -> 0 | CR75: =IF($CJ$60-2*CQ75<=0,0,1/(1+12*($CJ$54/($CJ$55*PI()^2)*($CJ$58/($CJ$60-2*CQ75))^2))) -> 0.7478221948 | CS75: =CR75*($CJ$60-2*CQ75)*$R$8 -> 723.6988982 | CT75: =IF(CK30=0,0,CA30+CE30/CK30)*1000 -> 9.6 | CU75: =IF(CT75=0,0,IF(CK30=0,0,CB30*CA30+CF30*CE30/CK30)/CT75)*1000000 -> 45 | CV75: =IF($CJ$60-2*CU75<=0,0,1/(1+12*($CJ$54/($CJ$55*PI()^2)*($CJ$58/($CJ$60-2*CU75))^2))) -> 0.3217915668 | CW75: =CV75*($CJ$60-2*CU75)*$R$8 -> 124.5644775 | CX75: =IF(OR(CL75>CO75,CP75>CS75,CT75>CW75),1,0) -> 0 | CY75: =IF(CX75=0,"",CK75) -> 
AK76: B = | AL76: 1 | AP76: Vægoverligger | AR76: Bjælke A | AS76: =Makro!C1 -> 1 | BH76: Interne overliggere | BN76: Afskalningsbrud | BR76: Vederlagstryk | CK76: B, | CL76: =IF(CI31=0,0,CA31+CC31/CI31)*1000 -> 12.8 | CM76: =IF(CL76=0,0,IF(CI31=0,0,CB31*CA31+CD31*CC31/CI31)/CL76)*1000000 -> 45 | CN76: =IF($CJ$60-2*CM76<=0,0,1/(1+12*($CJ$54/($CJ$55*PI()^2)*($CJ$58/($CJ$60-2*CM76))^2))) -> 0.3217915668 | CO76: =CN76*($CJ$60-2*CM76)*$R$8 -> 124.5644775 | CP76: =IF(CJ31=0,0,CA31)*1000 -> 0 | CQ76: =IF(CP76=0,0,IF(CJ31=0,0,CB31*CA31)/CP76)*1000000 -> 0 | CR76: =IF($CJ$60-2*CQ76<=0,0,1/(1+12*($CJ$54/($CJ$55*PI()^2)*($CJ$58/($CJ$60-2*CQ76))^2))) -> 0.7478221948 | CS76: =CR76*($CJ$60-2*CQ76)*$R$8 -> 723.6988982 | CT76: =IF(CK31=0,0,CA31+CE31/CK31)*1000 -> 12.8 | CU76: =IF(CT76=0,0,IF(CK31=0,0,CB31*CA31+CF31*CE31/CK31)/CT76)*1000000 -> 45 | CV76: =IF($CJ$60-2*CU76<=0,0,1/(1+12*($CJ$54/($CJ$55*PI()^2)*($CJ$58/($CJ$60-2*CU76))^2))) -> 0.3217915668 | CW76: =CV76*($CJ$60-2*CU76)*$R$8 -> 124.5644775 | CX76: =IF(OR(CL76>CO76,CP76>CS76,CT76>CW76),1,0) -> 0
AK77: N1 (kN) | AL77: N0 (kN) | AM77: N2 (kN) | AP77: Separat bjælke | AR77: Bjælke B | AS77: =Makro!C2 -> 1 | BH77: Vægtykkelse, t [mm] | BJ77: =M19 -> 150 | BK77: Væg 1-2 | BL77: Væg 2-3 | BM77: Væg 3-4 | CK77: C, | CL77: 51.2 | CM77: 22.5 | CN77: 0.5923481228 | CO77: 401.2680832 | CP77: 0 | CQ77: 0 | CR77: 0.7478221948 | CS77: 723.6988982 | CT77: 51.2 | CU77: 22.5 | CV77: 0.5923481228 | CW77: 401.2680832 | CX77: 0
AK78: =AL76*S25 -> 0 | AL78: =AL76*R25 -> 0 | AM78: =AL76*Q25 -> 3 | BH78: Vederlagsdybder [mm] | BJ78: =M21 -> 135 | CK78: D, | CL78: 51.2 | CM78: 22.5 | CN78: 0.5923481228 | CO78: 401.2680832 | CP78: 0 | CQ78: 0 | CR78: 0.7478221948 | CS78: 723.6988982 | CT78: 51.2 | CU78: 22.5 | CV78: 0.5923481228 | CW78: 401.2680832 | CX78: 0
AK79: =AL76*P25 -> 0 | AL79: =AL76*R25 -> 0 | AM79: =AL76*Q25 -> 3 | AR79: LA (m) | AT79: LA (m) | AZ79: LB (m) | BB79: LB (m) | BK79: L (m) | BL79: L (m) | BM79: L (m) | CK79: E, | CL79: 16 | CM79: 45 | CN79: 0.3217915668 | CO79: 124.5644775 | CP79: 0 | CQ79: 0 | CR79: 0.7478221948 | CS79: 723.6988982 | CT79: 16 | CU79: 45 | CV79: 0.3217915668 | CW79: 124.5644775 | CX79: 0
AK80: =AL76*P25 -> 0 | AL80: =AL76*(O25+MAX(AN47,AO47)) -> 12 | AM80: =AL76*Q25 -> 3 | AR80: 1.6 | AT80: =$Q$27/2 -> 0.8 | AZ80: 1.2 | BB80: =$R$27/2 -> 0.6 | BH80: ftld | BI80: =R9 -> 1.085498843 | BJ80: MPa | BK80: =(Q16+2*M21)/1000 -> 1.77 | BL80: =(Q17+2*M21)/1000 -> 0.27 | BM80: =(Q18+2*M21)/1000 -> 1.27 | CK80: F, | CL80: 54.4 | CM80: 23.82352941 | CN80: 0.5799612532 | CO80: 382.9725164 | CP80: 0 | CQ80: 0 | CR80: 0.7478221948 | CS80: 723.6988982 | CT80: 54.4 | CU80: 23.82352941 | CV80: 0.5799612532 | CW80: 382.9725164 | CX80: 0
AK81: =AL76*P25 -> 0 | AL81: =AL76*(O25+MAX(AN47,AO47)) -> 12 | AM81: =AL76*N25 -> 4 | AP81: Bjælkereaktioner | AR81: Bjælkereaktioner | BH81: fcd | BI81: =R8 -> 6.451612903 | BJ81: MPa | CK81: G, | CL81: 54.4 | CM81: 23.82352941 | CN81: 0.5799612532 | CO81: 382.9725164 | CP81: 0 | CQ81: 0 | CR81: 0.7478221948 | CS81: 723.6988982 | CT81: 54.4 | CU81: 23.82352941 | CV81: 0.5799612532 | CW81: 382.9725164 | CX81: 0
AK82: =AL76*M25 -> 0 | AL82: =AL76*R25 -> 0 | AM82: =AL76*Q25 -> 3 | AP82: NA | AR82: NA | AT82: NA | AU82: exc | AV82: NA-o | AX82: NB | AZ82: NB | BB82: NB | BC82: exc | BD82: NB-o | BH82: NB | BI82: exc | BJ82: beff | BK82: NB | BL82: NB | BM82: NB | BN82: bæreevne | BR82: bæreevne | CK82: H, | CL82: 64 | CM82: 22.5 | CN82: 0.5923481228 | CO82: 401.2680832 | CP82: 0 | CQ82: 0 | CR82: 0.7478221948 | CS82: 723.6988982 | CT82: 64 | CU82: 22.5 | CV82: 0.5923481228 | CW82: 401.2680832 | CX82: 0
AK83: =AL76*M25 -> 0 | AL83: =AL76*(O25+MAX(AN47,AO47)) -> 12 | AM83: =AL76*Q25 -> 3 | AP83: (kN) | AR83: (kN) | AT83: (kN) | AU83: (mm) | AX83: (kN) | AZ83: (kN) | BB83: (kN) | BC83: (mm) | BH83: (kN/m) | BI83: (mm) | BJ83: (mm) | BK83: kN | BL83: kN | BM83: kN | BN83: kN | BR83: kN | CK83: I, | CL83: 64 | CM83: 22.5 | CN83: 0.5923481228 | CO83: 401.2680832 | CP83: 0 | CQ83: 0 | CR83: 0.7478221948 | CS83: 723.6988982 | CT83: 64 | CU83: 22.5 | CV83: 0.5923481228 | CW83: 401.2680832 | CX83: 0
AK84: =AL76*M25 -> 0 | AL84: =AL76*(O25+MAX(AN47,AO47)) -> 12 | AM84: =AL76*K25 -> 5 | AP84: 12 | AR84: =BW137 -> 0 | AT84: =IF($AP$13,IF($AS$76=1,($N31+$O31+$P31)*AT$80,$Q31),0) -> 2.4 | AU84: =IF($AS$76=1,IF($AP$13,IF(AT84=0,0,($N$41*$N31+$O$41*$O31-$P$41*$P31)/($AT84/$AT$80)),0),$Q$41) -> 45 | AV84: =IF($AP$13,($N31+$O31+$P31)*AT$80,0) -> 2.4 | AX84: 15 | AZ84: =CL137 -> 0 | BB84: =IF($AP$17,IF($AS$77=1,($N31+$O31+$P31)*BB$80,$R31)) -> 1.8 | BC84: =IF($AS$77=1,IF($AP$17,($N$41*$N31+$O$41*$O31-$P$41*$P31)/(BB84/$BB$80),0),$R$41) -> 45 | BD84: =IF($AP$17,($N31+$O31+$P31)*BB$80,0) -> 1.8 | BH84: =N31+O31+P31 -> 3 | BI84: =(N31*$N$40+O31*$O$40+P31*$P$40)/BH84 -> 60 | BJ84: =$BJ$77-2*BI84 -> 30 | BK84: =$BH84*BK$80*0.5 -> 2.655 | BL84: =$BH84*BL$80*0.5 -> 0.405 | BM84: =$BH84*BM$80*0.5 -> 1.905 | BN84: =5/4*$BJ$78*BJ84*$BI$80*10^-3 -> 5.495337893 | BO84: =IF(BK84>$BN84,"Brud","OK") -> OK | BP84: =IF(BL84>$BN84,"Brud","OK") -> OK | BQ84: OK | BR84: =0.8*BJ84*$BJ$78*$BI$81*10^-3 -> 20.90322581 | BS84: =IF(BK84>$BR84,"Brud","OK") -> OK | BT84: =IF(BL84>$BR84,"Brud","OK") -> OK | BU84: OK | CK84: FELT #4: | CX84: =MAX(CX85:CX93) -> 0 | CY84: =IF(MAX(CX85:CX93)=0,"",CK84&"Last "&CY85&CY86&CY87&CY88&CY89&CY90&CY91&CY92&CY93) -> 
AK85: =AL76*M25 -> 0 | AL85: =AL76*(L25+MAX(AM47,AP47)) -> 15 | AM85: =AL76*Q25 -> 3 | AP85: 13 | AR85: =BW138 -> 0 | AT85: =IF($AP$13,IF($AS$76=1,($N32+$O32+$P32)*AT$80,$Q32),0) -> 3.2 | AU85: =IF($AS$76=1,IF($AP$13,IF(AT85=0,0,($N$41*$N32+$O$41*$O32-$P$41*$P32)/($AT85/$AT$80)),0),$Q$41) -> 45 | AV85: =IF($AP$13,($N32+$O32+$P32)*AT$80,0) -> 3.2 | AX85: 16 | AZ85: =CL138 -> 0 | BB85: =IF($AP$17,IF($AS$77=1,($N32+$O32+$P32)*BB$80,$R32)) -> 2.4 | BC85: =IF($AS$77=1,IF($AP$17,($N$41*$N32+$O$41*$O32-$P$41*$P32)/(BB85/$BB$80),0),$R$41) -> 45 | BD85: =IF($AP$17,($N32+$O32+$P32)*BB$80,0) -> 2.4 | BH85: =N32+O32+P32 -> 4 | BI85: =(N32*$N$40+O32*$O$40+P32*$P$40)/BH85 -> 60 | BJ85: =$BJ$77-2*BI85 -> 30 | BK85: =$BH85*BK$80*0.5 -> 3.54 | BL85: 0.54 | BM85: 2.54 | BN85: =5/4*$BJ$78*BJ85*$BI$80*10^-3 -> 5.495337893 | BO85: =IF(BK85>$BN85,"Brud","OK") -> OK | BP85: OK | BQ85: OK | BR85: =0.8*BJ85*$BJ$78*$BI$81*10^-3 -> 20.90322581 | BS85: =IF(BK85>$BR85,"Brud","OK") -> OK | BT85: OK | BU85: OK | CK85: A, | CL85: =IF(CI40=0,0,CA40+CC40/CI40)*1000 -> 0 | CM85: =IF(CL85=0,0,IF(CI40=0,0,CB40*CA40+CD40*CC40/CI40)/CL85)*1000000 -> 0 | CN85: =IF($CJ$60-2*CM85<=0,0,1/(1+12*($CJ$54/($CJ$55*PI()^2)*($CJ$59/($CJ$60-2*CM85))^2))) -> 0.7478221948 | CO85: =CN85*($CJ$60-2*CM85)*$R$8 -> 723.6988982 | CP85: =IF(CJ40=0,0,CA40)*1000 -> 0 | CQ85: =IF(CP85=0,0,IF(CJ40=0,0,CB40*CA40)/CP85)*1000000 -> 0 | CR85: =IF($CJ$60-2*CQ85<=0,0,1/(1+12*($CJ$54/($CJ$55*PI()^2)*($CJ$59/($CJ$60-2*CQ85))^2))) -> 0.7478221948 | CS85: =CR85*($CJ$60-2*CQ85)*$R$8 -> 723.6988982 | CT85: =IF(CK40=0,0,CA40+CE40/CK40)*1000 -> 0 | CU85: =IF(CT85=0,0,IF(CK40=0,0,CB40*CA40+CF40*CE40/CK40)/CT85)*1000000 -> 0 | CV85: =IF($CJ$60-2*CU85<=0,0,1/(1+12*($CJ$54/($CJ$55*PI()^2)*($CJ$59/($CJ$60-2*CU85))^2))) -> 0.7478221948 | CW85: =CV85*($CJ$60-2*CU85)*$R$8 -> 723.6988982 | CX85: =IF(OR(CL85>CO85,CP85>CS85,CT85>CW85),1,0) -> 0 | CY85: =IF(CX85=0,"",CK85) -> 
AK86: =AL76*M25 -> 0 | AL86: =AL76*(L25+MAX(AM47,AP47)) -> 15 | AM86: =AL76*K25 -> 5 | AP86: 13 | AR86: 0 | AT86: 12.8 | AU86: 22.5 | AV86: 12.8 | AX86: 16 | AZ86: 0 | BB86: 9.6 | BC86: 22.5 | BD86: 9.6 | BH86: 16 | BI86: 26.25 | BJ86: 97.5 | BK86: 14.16 | BL86: 2.16 | BM86: 10.16 | BN86: 17.85984815 | BO86: OK | BP86: OK | BQ86: OK | BR86: 67.93548387 | BS86: OK | BT86: OK | BU86: OK | CK86: B, | CL86: =IF(CI41=0,0,CA41+CC41/CI41)*1000 -> 0 | CM86: =IF(CL86=0,0,IF(CI41=0,0,CB41*CA41+CD41*CC41/CI41)/CL86)*1000000 -> 0 | CN86: =IF($CJ$60-2*CM86<=0,0,1/(1+12*($CJ$54/($CJ$55*PI()^2)*($CJ$59/($CJ$60-2*CM86))^2))) -> 0.7478221948 | CO86: =CN86*($CJ$60-2*CM86)*$R$8 -> 723.6988982 | CP86: =IF(CJ41=0,0,CA41)*1000 -> 0 | CQ86: =IF(CP86=0,0,IF(CJ41=0,0,CB41*CA41)/CP86)*1000000 -> 0 | CR86: =IF($CJ$60-2*CQ86<=0,0,1/(1+12*($CJ$54/($CJ$55*PI()^2)*($CJ$59/($CJ$60-2*CQ86))^2))) -> 0.7478221948 | CS86: =CR86*($CJ$60-2*CQ86)*$R$8 -> 723.6988982 | CT86: =IF(CK41=0,0,CA41+CE41/CK41)*1000 -> 0 | CU86: =IF(CT86=0,0,IF(CK41=0,0,CB41*CA41+CF41*CE41/CK41)/CT86)*1000000 -> 0 | CV86: =IF($CJ$60-2*CU86<=0,0,1/(1+12*($CJ$54/($CJ$55*PI()^2)*($CJ$59/($CJ$60-2*CU86))^2))) -> 0.7478221948 | CW86: =CV86*($CJ$60-2*CU86)*$R$8 -> 723.6988982 | CX86: 0
AK87: =AL76*Q25 -> 3 | AL87: =AL76*R25 -> 0 | AM87: =AL76*S25 -> 0 | AP87: 13 | AR87: 0 | AT87: 12.8 | AU87: 22.5 | AV87: 12.8 | AX87: 16 | AZ87: 0 | BB87: 9.6 | BC87: 22.5 | BD87: 9.6 | BH87: 16 | BI87: 26.25 | BJ87: 97.5 | BK87: 14.16 | BL87: 2.16 | BM87: 10.16 | BN87: 17.85984815 | BO87: OK | BP87: OK | BQ87: OK | BR87: 67.93548387 | BS87: OK | BT87: OK | BU87: OK | CK87: C, | CL87: 0 | CM87: 0 | CN87: 0.7478221948 | CO87: 723.6988982 | CP87: 0 | CQ87: 0 | CR87: 0.7478221948 | CS87: 723.6988982 | CT87: 0 | CU87: 0 | CV87: 0.7478221948 | CW87: 723.6988982 | CX87: 0
AK88: =AL76*N25 -> 4 | AL88: =AL76*R25 -> 0 | AM88: =AL76*S25 -> 0 | AP88: 13 | AR88: 0 | AT88: 4 | AU88: 45 | AV88: 4 | AX88: 16 | AZ88: 0 | BB88: 3 | BC88: 45 | BD88: 3 | BH88: 5 | BI88: 60 | BJ88: 30 | BK88: 4.425 | BL88: 0.675 | BM88: 3.175 | BN88: 5.495337893 | BO88: OK | BP88: OK | BQ88: OK | BR88: 20.90322581 | BS88: OK | BT88: OK | BU88: OK | CK88: D, | CL88: 0 | CM88: 0 | CN88: 0.7478221948 | CO88: 723.6988982 | CP88: 0 | CQ88: 0 | CR88: 0.7478221948 | CS88: 723.6988982 | CT88: 0 | CU88: 0 | CV88: 0.7478221948 | CW88: 723.6988982 | CX88: 0
AK89: =AL76*N25 -> 4 | AL89: =AL76*(O25+MAX(AN47,AO47)) -> 12 | AM89: =AL76*S25 -> 0 | AP89: 13 | AR89: 0 | AT89: 13.6 | AU89: 23.82352941 | AV89: 13.6 | AX89: 16 | AZ89: 0 | BB89: 10.2 | BC89: 23.82352941 | BD89: 10.2 | BH89: 17 | BI89: 28.23529412 | BJ89: 93.52941176 | BK89: 15.045 | BL89: 2.295 | BM89: 10.795 | BN89: 17.13252402 | BO89: OK | BP89: OK | BQ89: OK | BR89: 65.16888046 | BS89: OK | BT89: OK | BU89: OK | CK89: E, | CL89: 0 | CM89: 0 | CN89: 0.7478221948 | CO89: 723.6988982 | CP89: 0 | CQ89: 0 | CR89: 0.7478221948 | CS89: 723.6988982 | CT89: 0 | CU89: 0 | CV89: 0.7478221948 | CW89: 723.6988982 | CX89: 0
AK90: =AL76*N25 -> 4 | AL90: =AL76*(O25+MAX(AN47,AO47)) -> 12 | AM90: =AL76*P25 -> 0 | AP90: 13 | AR90: 0 | AT90: 13.6 | AU90: 23.82352941 | AV90: 13.6 | AX90: 16 | AZ90: 0 | BB90: 10.2 | BC90: 23.82352941 | BD90: 10.2 | BH90: 17 | BI90: 28.23529412 | BJ90: 93.52941176 | BK90: 15.045 | BL90: 2.295 | BM90: 10.795 | BN90: 17.13252402 | BO90: OK | BP90: OK | BQ90: OK | BR90: 65.16888046 | BS90: OK | BT90: OK | BU90: OK | CK90: F, | CL90: 0 | CM90: 0 | CN90: 0.7478221948 | CO90: 723.6988982 | CP90: 0 | CQ90: 0 | CR90: 0.7478221948 | CS90: 723.6988982 | CT90: 0 | CU90: 0 | CV90: 0.7478221948 | CW90: 723.6988982 | CX90: 0
AK91: =AL76*K25 -> 5 | AL91: =AL76*R25 -> 0 | AM91: =AL76*S25 -> 0 | AP91: 13 | AR91: 0 | AT91: 16 | AU91: 22.5 | AV91: 16 | AX91: 16 | AZ91: 0 | BB91: 12 | BC91: 22.5 | BD91: 12 | BH91: 20 | BI91: 26.25 | BJ91: 97.5 | BK91: 17.7 | BL91: 2.7 | BM91: 12.7 | BN91: 17.85984815 | BO91: OK | BP91: OK | BQ91: OK | BR91: 67.93548387 | BS91: OK | BT91: OK | BU91: OK | CK91: G, | CL91: 0 | CM91: 0 | CN91: 0.7478221948 | CO91: 723.6988982 | CP91: 0 | CQ91: 0 | CR91: 0.7478221948 | CS91: 723.6988982 | CT91: 0 | CU91: 0 | CV91: 0.7478221948 | CW91: 723.6988982 | CX91: 0
AK92: =AL76*K25 -> 5 | AL92: =AL76*(O25+MAX(AN47,AO47)) -> 12 | AM92: =AL76*S25 -> 0 | AP92: 13 | AR92: 0 | AT92: 16 | AU92: 22.5 | AV92: 16 | AX92: 16 | AZ92: 0 | BB92: 12 | BC92: 22.5 | BD92: 12 | BH92: 20 | BI92: 26.25 | BJ92: 97.5 | BK92: 17.7 | BL92: 2.7 | BM92: 12.7 | BN92: 17.85984815 | BO92: OK | BP92: OK | BQ92: OK | BR92: 67.93548387 | BS92: OK | BT92: OK | BU92: OK | CK92: H, | CL92: 0 | CM92: 0 | CN92: 0.7478221948 | CO92: 723.6988982 | CP92: 0 | CQ92: 0 | CR92: 0.7478221948 | CS92: 723.6988982 | CT92: 0 | CU92: 0 | CV92: 0.7478221948 | CW92: 723.6988982 | CX92: 0
AK93: =AL76*K25 -> 5 | AL93: =AL76*(O25+MAX(AN47,AO47)) -> 12 | AM93: =AL76*M25 -> 0 | AP93: 40 | AX93: 40 | BN93: Brud | BO93: =COUNTIF(BO84:BO92,"Brud") -> 0 | BP93: =COUNTIF(BP84:BP92,"Brud") -> 0 | BQ93: =COUNTIF(BQ84:BQ92,"Brud") -> 0 | BR93: Brud | BS93: =COUNTIF(BS84:BS92,"Brud") -> 0 | BT93: =COUNTIF(BT84:BT92,"Brud") -> 0 | BU93: =COUNTIF(BU84:BU92,"Brud") -> 0 | CK93: I, | CL93: 0 | CM93: 0 | CN93: 0.7478221948 | CO93: 723.6988982 | CP93: 0 | CQ93: 0 | CR93: 0.7478221948 | CS93: 723.6988982 | CT93: 0 | CU93: 0 | CV93: 0.7478221948 | CW93: 723.6988982 | CX93: 0
AK94: =AL76*K25 -> 5 | AL94: =AL76*(L25+MAX(AM47,AP47)) -> 15 | AM94: =AL76*S25 -> 0 | AP94: =2*AP93/3+$R$11 -> 31.66666667 | AX94: =2*AX93/3+$R$11 -> 31.66666667 | BN94: Eksist. | BO94: =AP14 -> TRUE | BP94: =AP15 -> FALSE | BQ94: =AP16 -> TRUE | BR94: Eksist. | BS94: =AP14 -> TRUE | BT94: =AP15 -> FALSE | BU94: =AP16 -> TRUE
AK95: =AL76*K25 -> 5 | AL95: =AL76*(L25+MAX(AM47,AP47)) -> 15 | AM95: =AL76*M25 -> 0 | BN95: Besked: | BO95: =IF(OR(AND(BO94,BO93>0),AND(BP94,BP93>0),AND(BQ94,BQ93>0)),"(intern overligger)","") ->  | BR95: Besked: | BS95: =IF(OR(AND(BS94,BS93>0),AND(BT94,BT93>0),AND(BU94,BU93>0)),"(intern overligger)","") -> 
BH97: Eksterne overliggere | BN97: Afskalningsbrud | BR97: Vederlagstryk
AK98: Brudlasttilfælde | AO98: Trækstyrke | AQ98: =Makro!B1 -> 1 | AS98: =$M$10 -> 1.736798149 | AU98: Tværvæg | AW98: Tværvæg | AY98: Felt 1 | BA98: Felt 2 | BC98: Felt 3 | BE98: Felt 4 | BH98: Vægtykkelse, t [mm] | BJ98: =M19 -> 150 | BK98: Bjælke A | BL98: Bjælke B | BN98: Bjælke A | BP98: Bjælke B | BR98: Bjælke A | BT98: Bjælke B
AL99: 1 | AO99: Beregn | AQ99: =0.42*$M$9^(2/3)*IF($M$8>1400,(0.4+0.6*$M$8/2200),0.78) -> 1.736798149 | AU99: 1 | AW99: 2 | AY99: tv 1 | AZ99: =IF(AND($AU$101>=AZ10,$AU$101<=AZ11),TRUE,FALSE) -> FALSE | BA99: tv 1 | BB99: =IF(AND($AU$101>=BB10,$AU$101<=BB11),TRUE,FALSE) -> TRUE | BC99: tv 1 | BD99: =IF(AND($AU$101>=BD10,$AU$101<=BD11),TRUE,FALSE) -> FALSE | BE99: tv 1 | BF99: =IF(AND($AU$101>=BF10,$AU$101<=BF11),TRUE,FALSE) -> FALSE | BH99: Vederlagsdybder [mm] | BJ99: =Q15 -> 150
AL100: 2 | AO100: Definer | AQ100: 1.8 | AU100: x | AV100: y | AW100: x | AX100: y | AY100: tv2 | AZ100: =IF(AND($AW$101>=AZ10,$AW$101<=AZ11),TRUE,FALSE) -> FALSE | BA100: tv2 | BB100: =IF(AND($AW$101>=BB10,$AW$101<=BB11),TRUE,FALSE) -> FALSE | BC100: tv2 | BD100: =IF(AND($AW$101>=BD10,$AW$101<=BD11),TRUE,FALSE) -> TRUE | BE100: tv2 | BF100: =IF(AND($AW$101>=BF10,$AW$101<=BF11),TRUE,FALSE) -> FALSE | BH100: Vederlagsdybder [mm] | BJ100: =Q19 -> 150 | BK100: L (m) | BL100: L (m)
AU101: =IF(AU103,Q20,1000000) -> 3000 | AV101: 0 | AW101: =IF(AW103,Q21,1000000) -> 6750 | AX101: 0 | AY101: b-tv1 | AZ101: =IF(AZ99,MAX($AU$101-AZ10,IF(AZ100,$AW$101,AZ11)-$AU$101),IF(AZ100,0,AZ11-AZ10)) -> 1250 | BA101: b-tv1 | BB101: =IF(BB99,MAX($AU$101-BB10,IF(BB100,$AW$101,BB11)-$AU$101),IF(BB100,0,BB11-BB10)) -> 2500 | BC101: b-tv1 | BD101: =IF(BD99,MAX($AU$101-BD10,IF(BD100,$AW$101,BD11)-$AU$101),IF(BD100,0,BD11-BD10)) -> 0 | BE101: b-tv1 | BF101: =IF(BF99,MAX($AU$101-BF10,IF(BF100,$AW$101,BF11)-$AU$101),IF(BF100,0,BF11-BF10)) -> 0 | BH101: ftld | BI101: =R9 -> 1.085498843 | BJ101: MPa | BK101: =Q27 -> 1.6 | BL101: =R27 -> 1.2
AU102: =AU101 -> 3000 | AV102: =$AL$10 -> 3000 | AW102: =AW101 -> 6750 | AX102: =$AL$10 -> 3000 | AY102: b-tv2 | AZ102: =IF(AZ100,MAX($AW$101-IF(AZ99,$AU$101,AZ10),AZ11-$AW$101),IF(AZ99,0,AZ11-AZ10)) -> 1250 | BA102: b-tv2 | BB102: =IF(BB100,MAX($AW$101-IF(BB99,$AU$101,BB10),BB11-$AW$101),IF(BB99,0,BB11-BB10)) -> 0 | BC102: b-tv2 | BD102: =IF(BD100,MAX($AW$101-IF(BD99,$AU$101,BD10),BD11-$AW$101),IF(BD99,0,BD11-BD10)) -> 250 | BE102: b-tv2 | BF102: =IF(BF100,MAX($AW$101-IF(BF99,$AU$101,BF10),BF11-$AW$101),IF(BF99,0,BF11-BF10)) -> 0 | BH102: fcd | BI102: =R8 -> 6.451612903 | BJ102: MPa
AU103: =Makro!A6 -> TRUE | AW103: =Makro!A7 -> TRUE | AY103: beff | AZ103: =MAX(AZ101:AZ102,0.5*AZ110,0.01) -> 1250 | BA103: beff | BB103: =MAX(BB101:BB102,0.5*BB110,0.01) -> 2500 | BC103: beff | BD103: =MAX(BD101:BD102,0.5*BD110,0.01) -> 250 | BE103: beff | BF103: =MAX(BF101:BF102,0.5*BF110,0.01) -> 0.01 | BH103: NB | BI103: exc | BJ103: beff | BK103: NB | BL103: NB | BN103: bæreevne | BP103: bæreevne | BR103: bæreevne | BT103: bæreevne
AY104: H | AZ104: =$AL$10 -> 3000 | BA104: H | BB104: =$AL$10 -> 3000 | BC104: H | BD104: =$AL$10 -> 3000 | BE104: H | BF104: =$AL$10 -> 3000 | BH104: (kN/m) | BI104: (mm) | BJ104: (mm) | BK104: kN | BL104: kN | BN104: kN | BP104: kN | BR104: kN | BT104: kN
AY105: Tilf. | AZ105: =IF(AZ99<>AZ100,1,IF(AND(AZ99,AZ100),2,0)) -> 0 | BA105: Tilf. | BB105: =IF(BB99<>BB100,1,IF(AND(BB99,BB100),2,0)) -> 1 | BC105: Tilf. | BD105: =IF(BD99<>BD100,1,IF(AND(BD99,BD100),2,0)) -> 1 | BE105: Tilf. | BF105: =IF(BF99<>BF100,1,IF(AND(BF99,BF100),2,0)) -> 0 | BH105: =N31+O31+P31 -> 3 | BI105: =(N31*$N$40+O31*$O$40+P31*$P$40)/BH84 -> 60 | BJ105: =$BJ$98-2*BI105 -> 30 | BK105: =IF(BK$101=0,Q31,$BH105*BK$101*0.5) -> 2.4 | BL105: =IF(BL$101=0,R31,$BH105*BL$101*0.5) -> 1.8 | BN105: =5/4*$BJ$99*BJ105*$BI$101*10^-3 -> 6.105930993 | BO105: =IF(BK105>$BN105,"Brud","OK") -> OK | BP105: =5/4*$BJ$100*BJ105*$BI$101*10^-3 -> 6.105930993 | BQ105: =IF(BL105>$BP105,"Brud","OK") -> OK | BR105: =0.8*BJ105*$BJ$99*$BI$102*10^-3 -> 23.22580645 | BS105: =IF(BK105>$BR105,"Brud","OK") -> OK | BT105: =0.8*BJ105*$BJ$100*$BI$102*10^-3 -> 23.22580645 | BU105: =IF(BM105>$BR105,"Brud","OK") -> OK
AU106: x = | AV106: 3000 | AZ106: =IF(AZ105=0,1,IF(AZ105=1,1/(1+(AZ104/(3*AZ103))^2),IF(AZ103>=AZ104,1/(1+(AZ104/AZ103)^2),AZ103/(2*AZ104)))) -> 1 | BB106: =IF(BB105=0,1,IF(BB105=1,1/(1+(BB104/(3*BB103))^2),IF(BB103>=BB104,1/(1+(BB104/BB103)^2),BB103/(2*BB104)))) -> 0.8620689655 | BD106: =IF(BD105=0,1,IF(BD105=1,1/(1+(BD104/(3*BD103))^2),IF(BD103>=BD104,1/(1+(BD104/BD103)^2),BD103/(2*BD104)))) -> 0.05882352941 | BF106: =IF(BF105=0,1,IF(BF105=1,1/(1+(BF104/(3*BF103))^2),IF(BF103>=BF104,1/(1+(BF104/BF103)^2),BF103/(2*BF104)))) -> 1 | BH106: =N32+O32+P32 -> 4 | BI106: =(N32*$N$40+O32*$O$40+P32*$P$40)/BH85 -> 60 | BJ106: =$BJ$98-2*BI106 -> 30 | BK106: =IF(BK$101=0,Q32,$BH106*BK$101*0.5) -> 3.2 | BL106: 2.4 | BN106: =5/4*$BJ$99*BJ106*$BI$101*10^-3 -> 6.105930993 | BO106: =IF(BK106>$BN106,"Brud","OK") -> OK | BP106: =5/4*$BJ$100*BJ106*$BI$101*10^-3 -> 6.105930993 | BQ106: =IF(BL106>$BP106,"Brud","OK") -> OK | BR106: 23.22580645 | BS106: =IF(BK106>$BR106,"Brud","OK") -> OK | BT106: =0.8*BJ106*$BJ$100*$BI$102*10^-3 -> 23.22580645 | BU106: OK
AU107: x = | AV107: 6750 | AY107: Ls | AZ107: =AZ106*AZ104 -> 3000 | BB107: =BB106*BB104 -> 2586.206897 | BD107: =BD106*BD104 -> 176.4705882 | BF107: =BF106*BF104 -> 3000 | BH107: 16 | BI107: 26.25 | BJ107: 97.5 | BK107: 12.8 | BL107: 9.6 | BN107: 19.84427573 | BO107: OK | BP107: 19.84427573 | BQ107: OK | BR107: 75.48387097 | BS107: OK | BT107: 75.48387097 | BU107: OK
AY108: B | AZ108: =AZ11-AZ10 -> 1250 | BB108: =BB11-BB10 -> 2750 | BD108: =BD11-BD10 -> 500 | BF108: =BF11-BF10 -> 0 | BH108: 16 | BI108: 26.25 | BJ108: 97.5 | BK108: 12.8 | BL108: 9.6 | BN108: 19.84427573 | BO108: OK | BP108: 19.84427573 | BQ108: OK | BR108: 75.48387097 | BS108: OK | BT108: 75.48387097 | BU108: OK
AY109: b_v | AZ109: =MAX(IF(AZ99,MIN($AU$101,IF(AZ100,$AW$101,1000000))-AZ10,0),IF(AZ100,MIN(IF(AZ99,$AU$101,1000000),$AW$101)-AZ10,0),IF(OR(AZ99,AZ100),0,AZ108)) -> 1250 | BB109: =MAX(IF(BB99,MIN($AU$101,IF(BB100,$AW$101,1000000))-BB10,0),IF(BB100,MIN(IF(BB99,$AU$101,1000000),$AW$101)-BB10,0),IF(OR(BB99,BB100),0,BB108)) -> 250 | BD109: =MAX(IF(BD99,MIN($AU$101,IF(BD100,$AW$101,1000000))-BD10,0),IF(BD100,MIN(IF(BD99,$AU$101,1000000),$AW$101)-BD10,0),IF(OR(BD99,BD100),0,BD108)) -> 250 | BF109: =MAX(IF(BF99,MIN($AU$101,IF(BF100,$AW$101,1000000))-BF10,0),IF(BF100,MIN(IF(BF99,$AU$101,1000000),$AW$101)-BF10,0),IF(OR(BF99,BF100),0,BF108)) -> 0 | BH109: 5 | BI109: 60 | BJ109: 30 | BK109: 4 | BL109: 3 | BN109: 6.105930993 | BO109: OK | BP109: 6.105930993 | BQ109: OK | BR109: 23.22580645 | BS109: OK | BT109: 23.22580645 | BU109: OK
AY110: b_m | AZ110: =IF(AZ109+AZ111<AZ108,AZ108-AZ109-AZ111,AZ108) -> 1250 | BB110: =IF(BB109+BB111<BB108,BB108-BB109-BB111,BB108) -> 2750 | BD110: =IF(BD109+BD111<BD108,BD108-BD109-BD111,BD108) -> 500 | BF110: =IF(BF109+BF111<BF108,BF108-BF109-BF111,BF108) -> 0 | BH110: 17 | BI110: 28.23529412 | BJ110: 93.52941176 | BK110: 13.6 | BL110: 10.2 | BN110: 19.0361378 | BO110: OK | BP110: 19.0361378 | BQ110: OK | BR110: 72.40986717 | BS110: OK | BT110: 72.40986717 | BU110: OK
AY111: b_h | AZ111: =MAX(IF(AZ99,AZ11-MAX($AU$101,IF(AZ100,$AW$101,0)),0),IF(AZ100,AZ11-MAX(IF(AZ99,$AU$101,0),$AW$101),0),IF(OR(AZ99,AZ100),0,AZ108)) -> 1250 | BB111: =MAX(IF(BB99,BB11-MAX($AU$101,IF(BB100,$AW$101,0)),0),IF(BB100,BB11-MAX(IF(BB99,$AU$101,0),$AW$101),0),IF(OR(BB99,BB100),0,BB108)) -> 2500 | BD111: =MAX(IF(BD99,BD11-MAX($AU$101,IF(BD100,$AW$101,0)),0),IF(BD100,BD11-MAX(IF(BD99,$AU$101,0),$AW$101),0),IF(OR(BD99,BD100),0,BD108)) -> 250 | BF111: =MAX(IF(BF99,BF11-MAX($AU$101,IF(BF100,$AW$101,0)),0),IF(BF100,BF11-MAX(IF(BF99,$AU$101,0),$AW$101),0),IF(OR(BF99,BF100),0,BF108)) -> 0 | BH111: 17 | BI111: 28.23529412 | BJ111: 93.52941176 | BK111: 13.6 | BL111: 10.2 | BN111: 19.0361378 | BO111: OK | BP111: 19.0361378 | BQ111: OK | BR111: 72.40986717 | BS111: OK | BT111: 72.40986717 | BU111: OK
AY112: ks | AZ112: =1/(1+12*($M$9/($M$11*PI()^2))*(AZ107/($M$19-2*$R$11))^2) -> 0.7209230962 | BB112: =1/(1+12*($M$9/($M$11*PI()^2))*(BB107/($M$19-2*$R$11))^2) -> 0.7765867386 | BD112: =1/(1+12*($M$9/($M$11*PI()^2))*(BD107/($M$19-2*$R$11))^2) -> 0.9986623091 | BF112: =1/(1+12*($M$9/($M$11*PI()^2))*(BF107/($M$19-2*$R$11))^2) -> 0.7209230962 | BH112: 20 | BI112: 26.25 | BJ112: 97.5 | BK112: 16 | BL112: 12 | BN112: 19.84427573 | BO112: OK | BP112: 19.84427573 | BQ112: OK | BR112: 75.48387097 | BS112: OK | BT112: 75.48387097 | BU112: OK
AK113: Fejltabel | AM113: =IF(MAX(AM114:AM133,AM135:AM142)=0,TRUE,FALSE) -> FALSE | AP113: PROJEKTTYPE | AY113: NCR | AZ113: =AZ112*$R$8*($M$19-2*$R$11) -> 651.156345 | BB113: =BB112*$R$8*($M$19-2*$R$11) -> 701.4331833 | BD113: =BD112*$R$8*($M$19-2*$R$11) -> 902.0175695 | BF113: =BF112*$R$8*($M$19-2*$R$11) -> 651.156345 | BH113: 20 | BI113: 26.25 | BJ113: 97.5 | BK113: 16 | BL113: 12 | BN113: 19.84427573 | BO113: OK | BP113: 19.84427573 | BQ113: OK | BR113: 75.48387097 | BS113: OK | BT113: 75.48387097 | BU113: OK
AK114: Programmet modtager ikke negative inddata. | AL114: =IF(AM114=0,"",AK114) ->  | AM114: =IF(MIN(M8:M9,M12:M13,R11,M17:M19,P15:S19,M21,Q20:Q21,K25:S25,Q27:R27,Q31:R40,N40:P40,S31,S35)<0,1,0) -> 0 | AP114: Res: | AQ114: =IF(AP116="",""&AQ117," "&AQ116) -> Overslagsberegning | BN114: Brud | BO114: =COUNTIF(BO105:BO113,"Brud") -> 0 | BQ114: =COUNTIF(BQ105:BQ113,"Brud") -> 0 | BR114: Brud | BS114: =COUNTIF(BS105:BS113,"Brud") -> 0 | BU114: =COUNTIF(BU105:BU113,"Brud") -> 0
AK115: Densitet skal være mindst 1200 kg/m3). | AL115: =IF(AM115=0,"",AK115) ->  | AM115: =IF(M8<1200,1,0) -> 0 | BN115: Eksist. | BO115: =AP13 -> TRUE | BQ115: =AP17 -> TRUE | BR115: Eksist. | BS115: =AP13 -> TRUE | BU115: =AP17 -> TRUE
AK116: Partialkoefficienter skal være mellem 1 og 2. | AM116: =IF(OR(M12<1,M13<1,M12>2,M13>2),1,0) -> 0 | AP116: =AO117&AO118&AO119&AO120&AO121&AO122&AO123&AO124&AO125&AO126&AO127&AO128 ->  | AQ116: Overslagsberegning | BN116: Besked: | BO116: =IF(AND(BO115,BO114>0),"(Bjælke A)","") ->  | BQ116: =IF(AND(BQ115,BQ114>0),"(Bjælke B)","") ->  | BR116: Besked: | BS116: =IF(AND(BS115,BS114>0),"(Bjælke A)","") ->  | BU116: =IF(AND(BU115,BU114>0),"(Bjælke B)","") -> 
AK117: Geometrikonflikt. | AM117: =IF(OR(AZ14<AZ15,BB14<BB15,BD14<BD15,BF14<BF15),1,0) -> 0 | AP117: 123 | AQ117: Overslagsberegning
AK118: Geometrikonflikt. | AM118: =IF(OR(BB10<AZ14,BD10<BB14,BF10<BD14),1,0) -> 0 | AO118: =IF(AND(AP118=$AP$117,AQ118=$AQ$116),AP118,"") ->  | AP118: BEF1 | AQ118: Leverandørprojekt: CRH Concrete, Purhusvej 20, Linå • 8600 Silkeborg
AK119: Overligger under 200 mm. | AM119: =IF(MAX(AS12,AU12,AW12)>AL10-200,1,0) -> 0 | AO119: =IF(AND(AP119=$AP$117,AQ119=$AQ$116),AP119,"") ->  | AP119: BEF2 | AQ119: Leverandørprojekt: CRH Concrete, Ribevej 45 • 6650 Brørup
AK120: Lodret bæreevne overskredet: | AM120: =IF(MAX(AM121:AM124)=0,0,1) -> 0 | AP120: BEF3 | AQ120: Leverandørprojekt: CRH Concrete, Bækgårdsvej 74 • 4140 Borup
AL121: =IF(AM120=0,"",CY54) ->  | AM121: =IF(CX54=0,0,1) -> 0 | AP121: BEF4 | AQ121: Leverandørprojekt: CRH Concrete, Snavevej 23 • 5471 Søndersø
AL122: =IF(AM121=0,"",CY64) ->  | AM122: =IF(CX64=0,0,1) -> 0 | AP122: BEF5 | AQ122: Leverandørprojekt: Gandrup Element, Teglværksvej 35 • 9362 Gandrup
AL123: =IF(AM122=0,"",CY74) ->  | AM123: =IF(CX74=0,0,1) -> 0 | AP123: BEF6 | AQ123: Leverandørprojekt: Give Elementfabrik A/S, Hjortsvangen 19 • 7323 Give
AL124: =IF(AM123=0,"",CY84) ->  | AM124: =IF(CX84=0,0,1) -> 0 | AP124: BEF7 | AQ124: Leverandørprojekt: Leth Beton A/S, Rishøjvej 26 • 7755 Bedsted Thy
AP125: BEF8 | AQ125: Leverandørprojekt: Niss Sørensen & søn a-s, Drosselvej 9, P.B. 19, Balling • 7860 Spøttrup
AP126: BEF9 | AQ126: Leverandørprojekt: Præfa-Byg v/O.J. Beton A/S, Høngårdsvej 30 • 9750 Øster Vrå
AP127: BEF10 | AQ127: Leverandørprojekt: Contiga Tinglev A/S Mads Clausens Vej 58 • 6360 Tinglev
AP128: BEF11 | AQ128: Leverandørprojekt: Fårup Betonindustri A/S Kærvej 1• 8990 Fårup
AJ134: Sat ud af kraft | AK134: ="Afskalningsbrud "&BO95&BO116&BQ116 -> Afskalningsbrud | AL134: =IF(AM134=0,"",AK134) ->  | AM134: =0*IF(AND(BO95="",BO116="",BQ116=""),0,1) -> 0
AK135: ="Vederlagsbrud "&BS95&BS116&BU116 -> Vederlagsbrud | AM135: =IF(AND(BS95="",BS116="",BU116=""),0,1) -> 0
AK136: For ny bruger: Klik på knappen 'angiv nyt brugernavn' for ibrugtagning. | AL136: =IF(AM136=1,AK136,"") -> For ny bruger: Klik på knappen 'angiv nyt brugernavn' for ibrugtagning. | AM136: =Makro!E20 -> 1

Sheet Sheet2
L2: =Sheet1!K2 -> Letbetonvæg | M2: =Sheet1!L2 -> 0 | N2: =Sheet1!M2 -> 0 | O2: =Sheet1!N2 -> 0 | P2: =Sheet1!O2 -> Betonelement-Foreningen Feb 2019
B3: Sagsnavn: | D3: =Sheet1!C3 -> Letbetonhuset | E3: 0 | F3: 0 | G3: 0 | H3: 0 | I3: =Sheet1!H3 -> Sag nr.: | J3: =Sheet1!I3 -> 23 - 4545 | K3: 0
B4: Bygningsdel: | D4: =Sheet1!C4 -> Væg i modul B-C/3 | E4: 0 | F4: 0 | G4: 0 | H4: 0 | I4: =Sheet1!H4 -> Dato: | J4: =Sheet1!I4 -> 2019-01-01 | K4: 00:00:00 | L4: =Sheet1!K4 -> NB : For ny bruger: Klik på knappen 'angiv nyt brugernavn' for ibrugtagning.
B5: Emne: | D5: =Sheet1!C5&", kontrol : "&INDEX(AL8:AL11,AM8,1) -> Normale lastkombinationer, kontrol : Felt #3 | E5: 0 | F5: 0 | G5: 0 | H5: 0 | I5: =Sheet1!H5 -> Init: | J5: =Sheet1!I5 -> JFJ | K5: 0
B7: Totaler | C7: A | D7: B | E7: C | F7: D | G7: E | H7: F | I7: G | J7: H | K7: I | L7: Materialeparametre | P7: Afledte parametre
B8: N (kN) | C8: =C13*D13+F13*G13+I13*J13 ->  | D8: =C14*D14+F14*G14+I14*J14 ->  | E8: =C15*D15+F15*G15+I15*J15 ->  | F8: =C16*D16+F16*G16+I16*J16 ->  | G8: =C17*D17+F17*G17+I17*J17 ->  | H8: =C18*D18+F18*G18+I18*J18 ->  | I8: =C19*D19+F19*G19+I19*J19 ->  | J8: =C20*D20+F20*G20+I20*J20 ->  | K8: =C21*D21+F21*G21+I21*J21 ->  | M8: d | N8: =Sheet1!M8 -> 1800 | O8: kg/m3 | R8: fcd | S8: =Sheet1!R8 -> 6.451612903 | T8: MPa | AL8: Felt #1 | AM8: =Makro!D1 -> 4 | AP8: b1 | AQ8: =S16+0.5*R16 -> 2000
B9: M (kNm) | C9: =C13*E13+F13*H13+I13*K13 ->  | D9: =C14*E14+F14*H14+I14*K14 ->  | E9: =C15*E15+F15*H15+I15*K15 ->  | F9: =C16*E16+F16*H16+I16*K16 ->  | G9: =C17*E17+F17*H17+I17*K17 ->  | H9: =C18*E18+F18*H18+I18*K18 ->  | I9: =C19*E19+F19*H19+I19*K19 ->  | J9: =C20*E20+F20*H20+I20*K20 ->  | K9: =C21*E21+F21*H21+I21*K21 ->  | M9: fck | N9: =Sheet1!M9 -> 10 | O9: MPa | R9: fctd | S9: =Sheet1!R9 -> 1.085498843 | T9: MPa | AL9: =IF(Sheet1!BS9,"Felt #2",AL8) -> Felt #2 | AM9: =MIN(AM8,AM10) -> 3 | AP9: b2 | AQ9: =S17-S16-R16+0.5*(R16+R17) -> -2000
B10: Udsnit | C10: Venstre delfelt | F10: Midterdel | I10: Højre delfelt | M10: ftk | N10: =0.42*N9^(2/3)*(0.4+0.6*N8/2200) -> 1.736798149 | O10: MPa | P10: Søjlebæreevne | R10: Ls | S10: =Sheet1!R10 -> 3000 | T10: mm | AL10: =IF(Sheet1!BS19,"Felt #3",AL9) -> Felt #3 | AM10: =IF(Sheet1!BS29,4,IF(Sheet1!BS19,3,IF(Sheet1!BS9,2,1))) -> 3 | AP10: b3 | AQ10: =S18-S17-R17+0.5*(R17+R18) -> 6000
C11: s | D11: n | E11: m | F11: s | G11: n | H11: m | I11: s | J11: n | K11: m | M11: Ecm | N11: =10000*N9^(1/3)*(N8/2200)^2 -> 14422.24875 | O11: MPa | P11: (uden tværvægge) | R11: e5 | S11: =Sheet1!R11 -> 5 | T11: mm | AL11: =IF(Sheet1!BS29,"Felt #4",AL10) -> Felt #3 | AP11: b4 | AQ11: =N18-S18-R18+0.5*R18 -> 1000
C12: (m) | D12: (kN/m) | E12: (kNm/m) | F12: (m) | G12: (kN/m) | H12: (kNm/m) | I12: (m) | J12: (kN/m) | K12: (kNm/m) | M12: gcm | N12: =Sheet1!M12 -> 1.55 | R12: ks | S12: =Sheet1!R12 -> 0.7209230962 | AP12: B | AQ12: =INDEX(AQ8:AQ11,AM8,1)/1000 -> 1
B13: =L31 -> A | C13: =IF(Sheet1!$AM$113,OFFSET(Sheet1!CI10,(Sheet2!$AM$9-1)*10,0),"-") -> - | D13: =IF(Sheet1!$AM$113,OFFSET(Sheet1!CL10,(Sheet2!$AM$9-1)*10,0)*1000,"-") -> - | E13: =IF(Sheet1!$AM$113,OFFSET(Sheet1!CM10,(Sheet2!$AM$9-1)*10,0)*1000,"-") -> - | F13: =IF(Sheet1!$AM$113,OFFSET(Sheet1!CJ10,(Sheet2!$AM$9-1)*10,0),"-") -> - | G13: =IF(Sheet1!$AM$113,OFFSET(Sheet1!CP10,(Sheet2!$AM$9-1)*10,0)*1000,"-") -> - | H13: =IF(Sheet1!$AM$113,OFFSET(Sheet1!CQ10,(Sheet2!$AM$9-1)*10,0)*1000,"-") -> - | I13: =IF(Sheet1!$AM$113,OFFSET(Sheet1!CK10,(Sheet2!$AM$9-1)*10,0),"-") -> - | J13: =IF(Sheet1!$AM$113,OFFSET(Sheet1!CT10,(Sheet2!$AM$9-1)*10,0)*1000,"-") -> - | K13: =IF(Sheet1!$AM$113,OFFSET(Sheet1!CU10,(Sheet2!$AM$9-1)*10,0)*1000,"-") -> - | M13: gtm | N13: =Sheet1!M13 -> 1.6 | R13: Ncr | S13: =Sheet1!R13 -> 651.156345 | T13: kN/m | AP13: N | AQ13: M
B14: B | C14: =IF(Sheet1!$AM$113,OFFSET(Sheet1!CI11,(Sheet2!$AM$9-1)*10,0),"-") -> - | D14: =IF(Sheet1!$AM$113,OFFSET(Sheet1!CL11,(Sheet2!$AM$9-1)*10,0)*1000,"-") -> - | E14: =IF(Sheet1!$AM$113,OFFSET(Sheet1!CM11,(Sheet2!$AM$9-1)*10,0)*1000,"-") -> - | F14: =IF(Sheet1!$AM$113,OFFSET(Sheet1!CJ11,(Sheet2!$AM$9-1)*10,0),"-") -> - | G14: =IF(Sheet1!$AM$113,OFFSET(Sheet1!CP11,(Sheet2!$AM$9-1)*10,0)*1000,"-") -> - | H14: =IF(Sheet1!$AM$113,OFFSET(Sheet1!CQ11,(Sheet2!$AM$9-1)*10,0)*1000,"-") -> - | I14: =IF(Sheet1!$AM$113,OFFSET(Sheet1!CK11,(Sheet2!$AM$9-1)*10,0),"-") -> - | J14: =IF(Sheet1!$AM$113,OFFSET(Sheet1!CT11,(Sheet2!$AM$9-1)*10,0)*1000,"-") -> - | K14: =IF(Sheet1!$AM$113,OFFSET(Sheet1!CU11,(Sheet2!$AM$9-1)*10,0)*1000,"-") -> - | L14: Geometri - alle mål i mm | O14: Udsparinger | Q14: h | R14: b | S14: x | T14: y | AP14: =(O31+P31+Q31)*$AQ$12+IF($AM$8=1,IF($R$27="",R31,0.5*$R$27*(O31+P31+Q31)))+IF($AM$8=4,S31) -> 4.8 | AQ14: =((O31*$O$41+P31*$P$41-Q31*$Q$41)*$AQ$12+IF($AM$8=1,IF($R$27="",R31*$R$41,0.5*$R$27*(O31*$O$41+P31*$P$41-Q31*$Q$41)),0))/1000+0.125*($AQ$12+IF($AM$8=1,(IF($R$27="",0,0.5*$R$27)),0))*T31*($S$10/1000)^2+IF($AM$8=4,S31*$S$41,0)/1000 -> 
B15: C | C15: =IF(Sheet1!$AM$113,OFFSET(Sheet1!CI12,(Sheet2!$AM$9-1)*10,0),"-") -> - | D15: =IF(Sheet1!$AM$113,OFFSET(Sheet1!CL12,(Sheet2!$AM$9-1)*10,0)*1000,"-") -> - | E15: =IF(Sheet1!$AM$113,OFFSET(Sheet1!CM12,(Sheet2!$AM$9-1)*10,0)*1000,"-") -> - | F15: =IF(Sheet1!$AM$113,OFFSET(Sheet1!CJ12,(Sheet2!$AM$9-1)*10,0),"-") -> - | G15: =IF(Sheet1!$AM$113,OFFSET(Sheet1!CP12,(Sheet2!$AM$9-1)*10,0)*1000,"-") -> - | H15: =IF(Sheet1!$AM$113,OFFSET(Sheet1!CQ12,(Sheet2!$AM$9-1)*10,0)*1000,"-") -> - | I15: =IF(Sheet1!$AM$113,OFFSET(Sheet1!CK12,(Sheet2!$AM$9-1)*10,0),"-") -> - | J15: =IF(Sheet1!$AM$113,OFFSET(Sheet1!CT12,(Sheet2!$AM$9-1)*10,0)*1000,"-") -> - | K15: =IF(Sheet1!$AM$113,OFFSET(Sheet1!CU12,(Sheet2!$AM$9-1)*10,0)*1000,"-") -> - | O15: Bjælke A | Q15: =Sheet1!P15 -> 500 | R15: =Sheet1!Q15 -> 150 | AP15: 6.4
B16: D | C16: =IF(Sheet1!$AM$113,OFFSET(Sheet1!CI13,(Sheet2!$AM$9-1)*10,0),"-") -> - | D16: =IF(Sheet1!$AM$113,OFFSET(Sheet1!CL13,(Sheet2!$AM$9-1)*10,0)*1000,"-") -> - | E16: =IF(Sheet1!$AM$113,OFFSET(Sheet1!CM13,(Sheet2!$AM$9-1)*10,0)*1000,"-") -> - | F16: =IF(Sheet1!$AM$113,OFFSET(Sheet1!CJ13,(Sheet2!$AM$9-1)*10,0),"-") -> - | G16: =IF(Sheet1!$AM$113,OFFSET(Sheet1!CP13,(Sheet2!$AM$9-1)*10,0)*1000,"-") -> - | H16: =IF(Sheet1!$AM$113,OFFSET(Sheet1!CQ13,(Sheet2!$AM$9-1)*10,0)*1000,"-") -> - | I16: =IF(Sheet1!$AM$113,OFFSET(Sheet1!CK13,(Sheet2!$AM$9-1)*10,0),"-") -> - | J16: =IF(Sheet1!$AM$113,OFFSET(Sheet1!CT13,(Sheet2!$AM$9-1)*10,0)*1000,"-") -> - | K16: =IF(Sheet1!$AM$113,OFFSET(Sheet1!CU13,(Sheet2!$AM$9-1)*10,0)*1000,"-") -> - | L16: Hovedmål | O16: Vindue 1 | Q16: =Sheet1!P16 -> 1500 | R16: =Sheet1!Q16 -> 1500 | S16: =Sheet1!R16 -> 1250 | T16: =Sheet1!S16 -> 1000 | AP16: 25.6
B17: E | C17: =IF(Sheet1!$AM$113,OFFSET(Sheet1!CI14,(Sheet2!$AM$9-1)*10,0),"-") -> - | D17: =IF(Sheet1!$AM$113,OFFSET(Sheet1!CL14,(Sheet2!$AM$9-1)*10,0)*1000,"-") -> - | E17: =IF(Sheet1!$AM$113,OFFSET(Sheet1!CM14,(Sheet2!$AM$9-1)*10,0)*1000,"-") -> - | F17: =IF(Sheet1!$AM$113,OFFSET(Sheet1!CJ14,(Sheet2!$AM$9-1)*10,0),"-") -> - | G17: =IF(Sheet1!$AM$113,OFFSET(Sheet1!CP14,(Sheet2!$AM$9-1)*10,0)*1000,"-") -> - | H17: =IF(Sheet1!$AM$113,OFFSET(Sheet1!CQ14,(Sheet2!$AM$9-1)*10,0)*1000,"-") -> - | I17: =IF(Sheet1!$AM$113,OFFSET(Sheet1!CK14,(Sheet2!$AM$9-1)*10,0),"-") -> - | J17: =IF(Sheet1!$AM$113,OFFSET(Sheet1!CT14,(Sheet2!$AM$9-1)*10,0)*1000,"-") -> - | K17: =IF(Sheet1!$AM$113,OFFSET(Sheet1!CU14,(Sheet2!$AM$9-1)*10,0)*1000,"-") -> - | L17: Væghøjde, H | N17: =Sheet1!M17 -> 3000 | O17: Dør | Q17: =Sheet1!P17 -> 0 | R17: =Sheet1!Q17 -> 0 | S17: =Sheet1!R17 -> 0 | T17: =Sheet1!S17 -> 0 | AP17: 25.6
B18: F | C18: =IF(Sheet1!$AM$113,OFFSET(Sheet1!CI15,(Sheet2!$AM$9-1)*10,0),"-") -> - | D18: =IF(Sheet1!$AM$113,OFFSET(Sheet1!CL15,(Sheet2!$AM$9-1)*10,0)*1000,"-") -> - | E18: =IF(Sheet1!$AM$113,OFFSET(Sheet1!CM15,(Sheet2!$AM$9-1)*10,0)*1000,"-") -> - | F18: =IF(Sheet1!$AM$113,OFFSET(Sheet1!CJ15,(Sheet2!$AM$9-1)*10,0),"-") -> - | G18: =IF(Sheet1!$AM$113,OFFSET(Sheet1!CP15,(Sheet2!$AM$9-1)*10,0)*1000,"-") -> - | H18: =IF(Sheet1!$AM$113,OFFSET(Sheet1!CQ15,(Sheet2!$AM$9-1)*10,0)*1000,"-") -> - | I18: =IF(Sheet1!$AM$113,OFFSET(Sheet1!CK15,(Sheet2!$AM$9-1)*10,0),"-") -> - | J18: =IF(Sheet1!$AM$113,OFFSET(Sheet1!CT15,(Sheet2!$AM$9-1)*10,0)*1000,"-") -> - | K18: =IF(Sheet1!$AM$113,OFFSET(Sheet1!CU15,(Sheet2!$AM$9-1)*10,0)*1000,"-") -> - | L18: Vægbredde, B | N18: =Sheet1!M18 -> 7000 | O18: Vindue 2 | Q18: =Sheet1!P18 -> 1500 | R18: =Sheet1!Q18 -> 1000 | S18: =Sheet1!R18 -> 5500 | T18: =Sheet1!S18 -> 1000 | AP18: 8
B19: G | C19: =IF(Sheet1!$AM$113,OFFSET(Sheet1!CI16,(Sheet2!$AM$9-1)*10,0),"-") -> - | D19: =IF(Sheet1!$AM$113,OFFSET(Sheet1!CL16,(Sheet2!$AM$9-1)*10,0)*1000,"-") -> - | E19: =IF(Sheet1!$AM$113,OFFSET(Sheet1!CM16,(Sheet2!$AM$9-1)*10,0)*1000,"-") -> - | F19: =IF(Sheet1!$AM$113,OFFSET(Sheet1!CJ16,(Sheet2!$AM$9-1)*10,0),"-") -> - | G19: =IF(Sheet1!$AM$113,OFFSET(Sheet1!CP16,(Sheet2!$AM$9-1)*10,0)*1000,"-") -> - | H19: =IF(Sheet1!$AM$113,OFFSET(Sheet1!CQ16,(Sheet2!$AM$9-1)*10,0)*1000,"-") -> - | I19: =IF(Sheet1!$AM$113,OFFSET(Sheet1!CK16,(Sheet2!$AM$9-1)*10,0),"-") -> - | J19: =IF(Sheet1!$AM$113,OFFSET(Sheet1!CT16,(Sheet2!$AM$9-1)*10,0)*1000,"-") -> - | K19: =IF(Sheet1!$AM$113,OFFSET(Sheet1!CU16,(Sheet2!$AM$9-1)*10,0)*1000,"-") -> - | L19: Vægtykkelse, t | N19: =Sheet1!M19 -> 150 | O19: Bjælke B | Q19: =Sheet1!P19 -> 500 | R19: =Sheet1!Q19 -> 150 | AP19: 27.2
B20: H | C20: =IF(Sheet1!$AM$113,OFFSET(Sheet1!CI17,(Sheet2!$AM$9-1)*10,0),"-") -> - | D20: =IF(Sheet1!$AM$113,OFFSET(Sheet1!CL17,(Sheet2!$AM$9-1)*10,0)*1000,"-") -> - | E20: =IF(Sheet1!$AM$113,OFFSET(Sheet1!CM17,(Sheet2!$AM$9-1)*10,0)*1000,"-") -> - | F20: =IF(Sheet1!$AM$113,OFFSET(Sheet1!CJ17,(Sheet2!$AM$9-1)*10,0),"-") -> - | G20: =IF(Sheet1!$AM$113,OFFSET(Sheet1!CP17,(Sheet2!$AM$9-1)*10,0)*1000,"-") -> - | H20: =IF(Sheet1!$AM$113,OFFSET(Sheet1!CQ17,(Sheet2!$AM$9-1)*10,0)*1000,"-") -> - | I20: =IF(Sheet1!$AM$113,OFFSET(Sheet1!CK17,(Sheet2!$AM$9-1)*10,0),"-") -> - | J20: =IF(Sheet1!$AM$113,OFFSET(Sheet1!CT17,(Sheet2!$AM$9-1)*10,0)*1000,"-") -> - | K20: =IF(Sheet1!$AM$113,OFFSET(Sheet1!CU17,(Sheet2!$AM$9-1)*10,0)*1000,"-") -> - | L20: Interne overliggere | O20: Tværvæg 1 | Q20: =IF(Sheet1!P20="","-",Sheet1!P20) -> x = | R20: =IF(Sheet1!Q20="","",Sheet1!Q20) -> 3000 | AP20: 27.2
B21: I | C21: =IF(Sheet1!$AM$113,OFFSET(Sheet1!CI18,(Sheet2!$AM$9-1)*10,0),"-") -> - | D21: =IF(Sheet1!$AM$113,OFFSET(Sheet1!CL18,(Sheet2!$AM$9-1)*10,0)*1000,"-") -> - | E21: =IF(Sheet1!$AM$113,OFFSET(Sheet1!CM18,(Sheet2!$AM$9-1)*10,0)*1000,"-") -> - | F21: =IF(Sheet1!$AM$113,OFFSET(Sheet1!CJ18,(Sheet2!$AM$9-1)*10,0),"-") -> - | G21: =IF(Sheet1!$AM$113,OFFSET(Sheet1!CP18,(Sheet2!$AM$9-1)*10,0)*1000,"-") -> - | H21: =IF(Sheet1!$AM$113,OFFSET(Sheet1!CQ18,(Sheet2!$AM$9-1)*10,0)*1000,"-") -> - | I21: =IF(Sheet1!$AM$113,OFFSET(Sheet1!CK18,(Sheet2!$AM$9-1)*10,0),"-") -> - | J21: =IF(Sheet1!$AM$113,OFFSET(Sheet1!CT18,(Sheet2!$AM$9-1)*10,0)*1000,"-") -> - | K21: =IF(Sheet1!$AM$113,OFFSET(Sheet1!CU18,(Sheet2!$AM$9-1)*10,0)*1000,"-") -> - | L21: Vederlagsdybder | N21: =Sheet1!M21 -> 135 | O21: Tværvæg 2 | Q21: =IF(Sheet1!P21="","-",Sheet1!P21) -> x = | R21: =IF(Sheet1!Q21="","",Sheet1!Q21) -> 6750 | AP21: 32
L22: Jævnt fordelte laste på vægoverside | AP22: 32
L23: Maksimallaste (kN/m) | O23: Reducerede laste (kN/m) | R23: Minimallaste (kN/m)
L24: nv | M24: no | N24: nh | O24: nv | P24: no | Q24: nh | R24: nv | S24: no | T24: nh
L25: =Sheet1!K25 -> 5 | M25: =Sheet1!L25 -> 15 | N25: =Sheet1!M25 -> 0 | O25: =Sheet1!N25 -> 4 | P25: =Sheet1!O25 -> 12 | Q25: =Sheet1!P25 -> 0 | R25: =Sheet1!Q25 -> 3 | S25: =Sheet1!R25 -> 0 | T25: =Sheet1!S25 -> 0
L26: Belastning fra bjælke A (venstre side) som: | P26: =Sheet1!O26 -> Vægoverligger | Q26: 0 | R26: LA (m) | S26: LB (m)
L27: Belastning fra bjælke B (højre side) som: | P27: =Sheet1!O27 -> Vægoverligger | Q27: 0 | R27: =IF(Sheet1!Q27="","",Sheet1!Q27) -> 1.6 | S27: =IF(Sheet1!R27="","",Sheet1!R27) -> 1.2
L28: Brudlasttilfælde | N28: =Sheet1!M28 -> 1 | O28: =Sheet1!N28 -> Jævnt fordelt last, overside | P28: 0 | Q28: 0 | R28: =Sheet1!Q28 -> Bjælkereaktioner | T28: =Sheet1!S28 -> Vind
O29: n1 | P29: n0 | Q29: n2 | R29: NA | S29: NB | T29: w
O30: =Sheet1!N30 -> (kN/m) | P30: =Sheet1!O30 -> (kN/m) | Q30: =Sheet1!P30 -> (kN/m) | R30: =Sheet1!Q30 -> (kN) | S30: =Sheet1!R30 -> (kN) | T30: =Sheet1!S30 -> (kN/m2)
L31: A | M31: Med maksimal vind | O31: =Sheet1!N31 -> 3 | P31: =Sheet1!O31 -> 0 | Q31: =Sheet1!P31 -> 0 | R31: =Sheet1!Q31 -> 2.4 | S31: =Sheet1!R31 -> 1.8 | T31: =Sheet1!S31 -> 0.94
L32: B | O32: =Sheet1!N32 -> 4 | P32: =Sheet1!O32 -> 0 | Q32: =Sheet1!P32 -> 0 | R32: =Sheet1!Q32 -> 3.2 | S32: =Sheet1!R32 -> 2.4 | T32: =Sheet1!S32 -> 0.94
L33: C | O33: =Sheet1!N33 -> 4 | P33: =Sheet1!O33 -> 12 | Q33: =Sheet1!P33 -> 0 | R33: =Sheet1!Q33 -> 12.8 | S33: =Sheet1!R33 -> 9.6 | T33: =Sheet1!S33 -> 0.94
L34: D | O34: =Sheet1!N34 -> 4 | P34: =Sheet1!O34 -> 12 | Q34: =Sheet1!P34 -> 0 | R34: =Sheet1!Q34 -> 12.8 | S34: =Sheet1!R34 -> 9.6 | T34: =Sheet1!S34 -> 0.94 | V34: NB: Resultaterne skal altid kontrolleres af ansvarlig statiker
L35: E | M35: Med reduceret vind | O35: =Sheet1!N35 -> 5 | P35: =Sheet1!O35 -> 0 | Q35: =Sheet1!P35 -> 0 | R35: =Sheet1!Q35 -> 4 | S35: =Sheet1!R35 -> 3 | T35: =Sheet1!S35 -> 0.47
L36: F | O36: =Sheet1!N36 -> 5 | P36: =Sheet1!O36 -> 12 | Q36: =Sheet1!P36 -> 0 | R36: =Sheet1!Q36 -> 13.6 | S36: =Sheet1!R36 -> 10.2 | T36: =Sheet1!S36 -> 0.47
L37: G | O37: =Sheet1!N37 -> 5 | P37: =Sheet1!O37 -> 12 | Q37: =Sheet1!P37 -> 0 | R37: =Sheet1!Q37 -> 13.6 | S37: =Sheet1!R37 -> 10.2 | T37: =Sheet1!S37 -> 0.47 | V37: Vejledning: | W37: Helvægge og dæk af letbeton; bærevene og stabilitet. Dansk Beton, Letbetongruppen - BIH
L38: H | O38: =Sheet1!N38 -> 5 | P38: =Sheet1!O38 -> 15 | Q38: =Sheet1!P38 -> 0 | R38: =Sheet1!Q38 -> 16 | S38: =Sheet1!R38 -> 12 | T38: =Sheet1!S38 -> 0.47
L39: I | O39: =Sheet1!N39 -> 5 | P39: =Sheet1!O39 -> 15 | Q39: =Sheet1!P39 -> 0 | R39: =Sheet1!Q39 -> 16 | S39: =Sheet1!R39 -> 12 | T39: =Sheet1!S39 -> 0.47
L40: Excentricitet, top (mm): | O40: =Sheet1!N40 -> 60 | P40: =Sheet1!O40 -> 15 | Q40: =Sheet1!P40 -> 45 | R40: =IF(R27="",Sheet1!Q40,"") ->  | S40: =IF(S27="",Sheet1!R40,"") -> 
L41: Excentricitet, eff. (mm) : | O41: =Sheet1!N41 -> 45 | P41: =Sheet1!O41 -> 15 | Q41: =Sheet1!P41 -> 25 | R41: =IF(R27="",Sheet1!Q41,"") ->  | S41: =IF(S27="",Sheet1!R41,"") ->  | V41: Polyteknisk Forlag 2010 eller www.bef.dk

Sheet Makro
A1: TRUE | B1: 1 | C1: 1 | D1: 4
A2: TRUE | B2: 1 | C2: 1
A3: FALSE
A4: TRUE
A5: TRUE
A6: TRUE
A7: TRUE
A20: =IF(E20=1,0,1000000) -> 0 | E20: 1
